Workbook

Sheet INDICE
B6: LOCALIZACION | F6: 1 .INVERSION TOTAL | J6: 8.COSTOS VARIABLES | N6: 15.PRECIO DE EQUILIBRIO
B8: CROQUIS | F8: 2. FINANCIAMIENTO | J8: 9.DEPRECIACION | N8: 16. ESTADO DE GANANCIAS Y PERDIDAS
B10: ORGANIGRAMA | F10: 3. AMORTIZACION DE CREDITO | J10: 10.PRESUPUESTO DE GASTOS | N10: 17.PRINCIPALES RATIOS
F12: 4. INGRESO POR VENTAS | J12: 11.BALANCE GENERAL | N12: 18.CUADRO DE RATIOS
F14: 5.PLANILLA DE EMPLEADOS | J14: 12.COSTO BENEFICIO | N14: 19.ENCUESTA
F16: 6.GASTOS INDIRECTOS | J16: 13.FLUJO DE CAJA ECONOMICO | N16: 20. MUESTRA
F18: 7. COSTOS FIJOS | J18: 14.PUNTO DE EQUILIBRIO | N18: 21.ENTREVISTA

Sheet ORGANIGRAMA

Sheet LOCALIZACION
D15: 7. Si usted pudiera elegir la ubicación del centro de fisioterapia y rehabilitación física, ¿Cuál de las siguientes alternativas preferiría?
E18: PAMPA INALAMBRICA | F18: 86 | G18: =(F18/F21) -> 0.2606060606
E19: PUERTO | F19: 165 | G19: =F19/F21 -> 0.5
E20: CIUDAD NUEVA | F20: 79 | G20: =F20/F21 -> 0.2393939394
F21: =SUM(F18:F20) -> 330 | G21: =SUM(G18:G20) -> 1

Sheet CROQUIS

Sheet INVERSION TOTAL
A1: ESTRUCTURA DE LA INVERSION
A3: RUBRO | B3: VALOR UNITARIO | C3: CANT. | D3: UNID. | E3: COSTO TOTAL
A5: I. ACTIVO FIJO
A6: A. TANGIBLES
A7: Maquinaria y/o Equipos | E7: =SUM(E8:E35) -> 42044
A8: COMPUTADORAS | B8: 1500 | C8: 3 | D8: Unidad | E8: =B8*C8 -> 4500
A9: Glomed - Camilla para Masajes | B9: 559 | C9: 6 | D9: Unidad | E9: =B9*C9 -> 3354
A10: Masajeador Tens 4 Electrodos | B10: 139 | C10: 6 | D10: Unidad | E10: =B10*C10 -> 834
A11: Ems electroestimulador | B11: 659 | C11: 6 | D11: Unidad | E11: 3954
A12: Ultrasonido GB 818 | B12: 399 | C12: 2 | D12: Unidad | E12: 798
A13: Nevera pequeña | B13: 699 | C13: 1 | D13: Unidad | E13: 699
A14: Hidrocolector | B14: 750 | C14: 1 | D14: Unidad | E14: 750
A15: Tanque de Parafina | B15: 379 | C15: 2 | D15: Unidad | E15: 758
A16: Bicicleta de Spinning Best Fitness SP2 | B16: 949 | C16: 2 | D16: Unidad | E16: 1898
A17: Elíptica E820P | B17: 899 | C17: 2 | D17: Unidad | E17: 1798
A18: Trotadoras performance 400 | B18: 3000 | C18: 2 | D18: Unidad | E18: 6000
A19: Soporte de 6 pares de mancuerna | B19: 200 | C19: 1 | D19: Unidad | E19: 200
A20: Mancuernas 2 libras | B20: 57 | C20: 4 | D20: par | E20: 228
A21: Mancuernas 3 libras | B21: 79 | C21: 4 | D21: par | E21: 316
A22: Mancuernas 5 libras | B22: 100 | C22: 4 | D22: par | E22: 400
A23: Mancuernas 8 libras | B23: 120 | C23: 4 | D23: par | E23: 480
A24: Multigimnasio crossover | B24: 2989 | C24: 1 | D24: Unidad | E24: 2989
A25: Banca XRS | B25: 400 | C25: 1 | D25: Unidad | E25: 400
A26: Multigimnasio profesional | B26: 1000 | C26: 2 | D26: Unidad | E26: 2000
A27: Leg extension y femoral | B27: 1800 | C27: 2 | D27: Unidad | E27: 3600
A28: piscina estructural | B28: 2000 | C28: 1 | D28: Unidad | E28: 2000
A29: Goniómetro electrónico digital | B29: 150 | C29: 1 | D29: Unidad | E29: 150
A30: Kit plataforma de fuerza | B30: 350 | C30: 2 | D30: Unidad | E30: 700
A31: Balanza digital de peso, masa y tallimetro | B31: 400 | C31: 1 | D31: Unidad | E31: 400
A32: Martillos de reflejos | B32: 100 | C32: 2 | D32: Unidad | E32: 200
A33: Caminador de estabilidad | B33: 250 | C33: 2 | D33: Unidad | E33: 500
A34: Silla de ruedas | B34: 830 | C34: 2 | D34: Unidad | E34: 1660
A35: Microlife - Tensiómetro Automático BPA100 | B35: 239 | C35: 2 | D35: Unidad | E35: 478
A36: MUEBLES Y ENSERES | E36: =SUM(E37:E44) -> 5962.46
A37: Escritorio | B37: 300 | C37: 4 | D37: Unidad | E37: =B37*C37 -> 1200
A38: Silla Ejecutiva | B38: 150 | C38: 4 | D38: Unidad | E38: 600
A39: Silla de espera en pasta | B39: 150 | C39: 3 | D39: Unidad | E39: 450
A40: Archivadores | B40: 170 | C40: 4 | D40: Unidad | E40: 680
A41: Juegos Plasticos | B41: 500 | C41: 1 | D41: Unidad | E41: 500
A42: instrumentos terapeuticos | B42: ='GASTOS INDIRECTOS'!D64 -> 2092.46 | C42: 1 | D42: Unidad | E42: 2092.46
A43: Muebles para PC | B43: 80 | C43: 3 | D43: Unidad | E43: =B43*C43 -> 240
A44: Utiles de Escritorio | B44: 200 | C44: 1 | E44: 200
A45: Otros | E45: =SUM(E46:E48) -> 865
A46: Extintor | B46: 120 | C46: 2 | D46: Unidad | E46: =B46*C46 -> 240
A47: camilla de primeros auxilios | B47: 300 | C47: 2 | D47: Unidad | E47: =B47*C47 -> 600
A48: Botiquin | B48: 25 | C48: 1 | D48: Unidad | E48: =B48*C48 -> 25
A49: TOTAL TANGIBLES | E49: =E33+E45+E7 -> 43409
A51: B. INTANGIBLES
A52: COMPROBANTES DE PAGO | B52: 100 | C52: 1 | D52: millar | E52: =B52*C52 -> 100
A53: LIC. DE FUNCIONAMIENTO | B53: 180 | C53: 1 | D53: documento | E53: =B53*C53 -> 180
A54: SUNAT (GRATUITO) | B54: 0 | C54: 1 | D54: documento | E54: =B54*C54 -> 0
A55: SEPARACION DE NOMBRE COMERCIAL | B55: 18 | C55: 1 | D55: documento | E55: 18
A56: ELABORACION DE ESTATUTO | B56: 300 | C56: 1 | D56: documento | E56: 300
A57: NOTARIA | B57: 300 | C57: 1 | D57: documento | E57: 300
A58: INSCRIPCION DE REGUSTROS PUBLICOS | B58: 300 | C58: 1 | D58: documento | E58: 300
A59: DEFENSA CIVIL | B59: 200 | C59: 1 | D59: documento | E59: 200
A60: TOTAL INTANGIBLES | E60: =SUM(E52:E59) -> 1398
A61: TOTAL ACTIVO FIJO | E61: =E60+E49 -> 44807
A63: II. CAPITAL DE TRABAJO
A64: Gastos Administrativos | E64: ='GASTOS INDIRECTOS'!E15 -> 3442.666667
A65: Salarios | E65: ='PLANILLA DE EMPLEADOS'!I30 -> 6685.39
A68: TOTAL CAPITAL DE TRABAJO | E68: =SUM(E64:E67) -> 10128.05667
A69: TOTAL COSTOS | E69: =E68+E61 -> 54935.05667

Sheet FINANCIAMIENTO
A1: FUENTES DE FINANCIAMIENTO
A3: FUENTE | B3: DESTINO
B4: INVERSION FIJA | C4: CAPITAL DE TRABAJO | D4: TOTAL | E4: %
A5: APORTE PROPIO | B5: 15000 | C5: 0 | D5: =SUM(B5:C5) -> 15000 | E5: =(D5*E6)/D6 -> 0.2730496865
A6: PRESTAMO | B6: =+B7-B5 -> 29807 | C6: =C7-C5 -> 10128.05667 | D6: =SUM(B6:C6) -> 39935.05667 | E6: =(D6*E7)/D7 -> 0.7269503135
A7: TOTAL | B7: ='INVERSION TOTAL '!E61 -> 44807 | C7: ='INVERSION TOTAL '!E68 -> 10128.05667 | D7: =SUM(B7:C7) -> 54935.05667 | E7: 1

Sheet AMORTIZACION DE CREDITO
B2: PRESTAMO
B3: MONTO | C3: =FINANCIAMIENTO!D6 -> 39935.05667
B4: TEA | C4: 0.12
B5: PLAZO | C5: 24
B6: SEG DESG | C6: 0.077 | L6: TM = | M6: ((1 + TEA/100)^(1/12)) - 1
B7: TEM | C7: =(((1+(C4))^(1/C5))-1)*100 -> 0.47331949
B8: TEM SEG DES | C8: =(((1+(C6/100))^(1/C5))-1)*100 -> 0.003207150187 | L8: TM = | M8: =((1+(C4/100))^(1/24))-1 -> 4.99712725e-05
B9: TEM TOTAL | C9: =(SUM(C7:C8))/100 -> 0.004765266402 | L9: TM = | M9: =M8*100 -> 0.00499712725
B10: CUOTA | C10: =C3*(((C9*((1+C9)^C5)))/(((1+C9)^C5)-1)) -> 1764.881725
B12: CRONOGRAMA DE PAGOS
B14: MES | C14: SALDO | D14: AMORT. | E14: INTERES | F14: CUOTA
B15: 0 | C15: =C3 -> 39935.05667 | D15: 0 | E15: 0 | F15: 0 | L15: R = P x | M15: i (1+i) n
B16: 1 | C16: =C15-D16 -> 38360.47613 | D16: =F16-(C15*$C$9) -> 1574.580541 | E16: =F16-D16 -> 190.3011838 | F16: =$C$10 -> 1764.881725 | H16: =SUM(D16:D18) -> 4746.287265
B17: =B16+1 -> 2 | C17: 36778.39229 | D17: 1582.083837 | E17: 182.7978881 | F17: 1764.881725 | M17: (1 + i) n ‑ 1
B18: 3 | C18: 35188.7694 | D18: 1589.622888 | E18: 175.2588371 | F18: 1764.881725
B19: 4 | C19: 33591.57154 | D19: 1597.197864 | E19: 167.6838606 | F19: 1764.881725
B20: 5 | C20: 31986.7626 | D20: 1604.808937 | E20: 160.0727872 | F20: 1764.881725 | L20: R= CUOTA FIJA
B21: 6 | C21: 30374.30632 | D21: 1612.45628 | E21: 152.4254451 | F21: 1764.881725 | L21: P= MONTO DEL PRESTAMO
B22: 7 | C22: 28754.16626 | D22: 1620.140063 | E22: 144.7416614 | F22: 1764.881725 | L22: i= TASA DE INTERES
B23: 8 | C23: 27126.30579 | D23: 1627.860462 | E23: 137.0212624 | F23: 1764.881725 | L23: n= TIEPO
B24: 9 | C24: 25490.68814 | D24: 1635.617651 | E24: 129.2640736 | F24: 1764.881725
B25: 10 | C25: 23847.27634 | D25: 1643.411805 | E25: 121.4699198 | F25: 1764.881725 | K25: R = | L25: 40300.54X | M25: =(M9)*(1+M9)^C5 -> 0.005632174435
B26: 11 | C26: 22196.03324 | D26: 1651.2431 | E26: 113.6386247 | F26: 1764.881725 | M26: =((1+M9)^24)-1 -> 0.1270824522
B27: 12 | C27: 20536.92153 | D27: 1659.111713 | E27: 105.7700115 | F27: 1764.881725
B28: 13 | C28: 18869.9037 | D28: 1667.017823 | E28: 97.86390215 | F28: 1764.881725 | K28: =K25 -> R = | L28: =L25 -> 40300.54X | M28: =M25/M26 -> 0.04431905693
B29: 14 | C29: 17194.9421 | D29: 1674.961607 | E29: 89.92011813 | F29: 1764.881725
B30: 15 | C30: 15511.99885 | D30: 1682.943245 | E30: 81.93847986 | F30: 1764.881725 | K30: =K25 -> R = | L30: =F16 -> 1764.881725
B31: 16 | C31: 13821.03593 | D31: 1690.962918 | E31: 73.91880696 | F31: 1764.881725
B32: 17 | C32: 12122.01513 | D32: 1699.020807 | E32: 65.86091818 | F32: 1764.881725
B33: 18 | C33: 10414.89803 | D33: 1707.117093 | E33: 57.76463141 | F33: 1764.881725
B34: 19 | C34: 8699.646073 | D34: 1715.251961 | E34: 49.62976368 | F34: 1764.881725
B35: 20 | C35: 6976.22048 | D35: 1723.425594 | E35: 41.45613114 | F35: 1764.881725
B36: 21 | C36: 5244.582304 | D36: 1731.638176 | E36: 33.24354907 | F36: 1764.881725
B37: 22 | C37: 3504.692411 | D37: 1739.889893 | E37: 24.99183185 | F37: 1764.881725
B38: 23 | C38: 1756.51148 | D38: 1748.180932 | E38: 16.700793 | F38: 1764.881725
B39: 24 | C39: -1.746229827e-10 | D39: 1756.51148 | E39: 8.370245139 | F39: 1764.881725

Sheet INGRESO POR VENTAS
A1: PROYECCION DE SERVICIOS REALIZADOS
A3: SERVICIO | B3: Mes 1 | C3: Mes 2 | D3: Mes 3 | E3: Mes 4 | F3: Mes 5 | G3: Mes 6 | H3: Mes 7 | I3: Mes 8 | J3: Mes 9 | K3: Mes 10 | L3: Mes 11 | M3: Mes 12 | N3: Mes 13 | O3: Mes 14 | P3: Mes 15 | Q3: Mes 16 | R3: Mes 17 | S3: Mes 18 | T3: Mes 19 | U3: Mes 20 | V3: Mes 21 | W3: Mes 22 | X3: Mes 23 | Y3: Mes 24 | Z3: TOTAL
A4: PROGRAMA DE REHABILITACION CARDIACA | B4: =MUESTRA!$T$37*ENTREVISTA!H31 -> 25.71097448 | C4: 20 | D4: 20 | E4: 20 | F4: 20 | G4: 20 | H4: 20 | I4: 20 | J4: 20 | K4: 20 | L4: 20 | M4: 20 | N4: =(B4*15%)+B4 -> 29.56762065 | O4: =(C4*15%)+C4 -> 23 | P4: 23 | Q4: 23 | R4: =(F4*15%)+F4 -> 23 | S4: =(G4*15%)+G4 -> 23 | T4: 23 | U4: =(I4*15%)+I4 -> 23 | V4: =(J4*15%)+J4 -> 23 | W4: 23 | X4: =(L4*15%)+L4 -> 23 | Y4: =(M4*15%)+M4 -> 23 | Z4: 34.00276375
A5: PROGRAMA DE PREVENCION CARDIOVASCULAR: PRIM. Y SEC. | B5: =MUESTRA!$T$37*ENTREVISTA!H32 -> 38.56646172 | C5: 40 | D5: 40 | E5: 40 | F5: 40 | G5: 40 | H5: 40 | I5: 40 | J5: 40 | K5: 40 | L5: 40 | M5: 40 | N5: =(B5*15%)+B5 -> 44.35143098 | O5: 46 | P5: 46 | Q5: 46 | R5: 46 | S5: 46 | T5: 46 | U5: 46 | V5: 46 | W5: 46 | X5: 46 | Y5: 46 | Z5: 51.00414562
A6: FISIOTERARIA EN SALUD OCUPACIONAL | B6: =MUESTRA!$T$37*ENTREVISTA!H33 -> 64.2774362 | C6: 50 | D6: 50 | E6: 50 | F6: 50 | G6: 50 | H6: 50 | I6: 50 | J6: 50 | K6: 50 | L6: 50 | M6: 50 | N6: 73.91905163 | O6: 57.5 | P6: 57.5 | Q6: 57.5 | R6: 57.5 | S6: 57.5 | T6: 57.5 | U6: 57.5 | V6: 57.5 | W6: 57.5 | X6: 57.5 | Y6: 57.5 | Z6: 85.00690937
A7: REHABILITACION DEPORTIVA. | B7: =MUESTRA!$T$37*ENTREVISTA!H34 -> 102.8438979 | C7: 50 | D7: 50 | E7: 50 | F7: 50 | G7: 50 | H7: 50 | I7: 50 | J7: 50 | K7: 50 | L7: 50 | M7: 50 | N7: 118.2704826 | O7: 57.5 | P7: 57.5 | Q7: 57.5 | R7: 57.5 | S7: 57.5 | T7: 57.5 | U7: 57.5 | V7: 57.5 | W7: 57.5 | X7: 57.5 | Y7: 57.5 | Z7: 136.011055
A8: PROGRAMA DE FISIOTERAPIA | B8: =MUESTRA!$T$37*ENTREVISTA!H35 -> 89.98841068 | C8: 50 | D8: 50 | E8: 50 | F8: 50 | G8: 50 | H8: 50 | I8: 50 | J8: 50 | K8: 50 | L8: 50 | M8: 50 | N8: 103.4866723 | O8: 57.5 | P8: 57.5 | Q8: 57.5 | R8: 57.5 | S8: 57.5 | T8: 57.5 | U8: 57.5 | V8: 57.5 | W8: 57.5 | X8: 57.5 | Y8: 57.5 | Z8: 119.0096731
A9: TRATAMIENTO DE FISIOTERAPIA INTEGRAL. | B9: =MUESTRA!$T$37*ENTREVISTA!H36 -> 77.13292344 | C9: 50 | D9: 50 | E9: 50 | F9: 50 | G9: 50 | H9: 50 | I9: 50 | J9: 50 | K9: 50 | L9: 50 | M9: 50 | N9: 88.70286195 | O9: 57.5 | P9: 57.5 | Q9: 57.5 | R9: 57.5 | S9: 57.5 | T9: 57.5 | U9: 57.5 | V9: 57.5 | W9: 57.5 | X9: 57.5 | Y9: 57.5 | Z9: 102.0082912
A10: REHABILITACIÓN CON HIDROTERAPIA | B10: =MUESTRA!$T$37*ENTREVISTA!H37 -> 51.42194896 | C10: 50 | D10: 50 | E10: 50 | F10: 50 | G10: 50 | H10: 50 | I10: 50 | J10: 50 | K10: 50 | L10: 50 | M10: 50 | N10: 59.1352413 | O10: 57.5 | P10: 57.5 | Q10: 57.5 | R10: 57.5 | S10: 57.5 | T10: 57.5 | U10: 57.5 | V10: 57.5 | W10: 57.5 | X10: 57.5 | Y10: 57.5 | Z10: 68.0055275
A11: REHABILITACIÓN PACIENTES QUEMADOS | B11: =MUESTRA!$T$37*ENTREVISTA!H38 -> 38.56646172 | C11: 20 | D11: 20 | E11: 20 | F11: 20 | G11: 20 | H11: 20 | I11: 20 | J11: 20 | K11: 20 | L11: 20 | M11: 20 | N11: 44.35143098 | O11: 23 | P11: 23 | Q11: 23 | R11: 23 | S11: 23 | T11: 23 | U11: 23 | V11: 23 | W11: 23 | X11: 23 | Y11: 23 | Z11: 51.00414562
A12: TERAPIA PSICOMOTRIZ PARA NIÑOS | B12: =MUESTRA!$T$37*ENTREVISTA!H39 -> 38.56646172 | C12: 30 | D12: 30 | E12: 30 | F12: 30 | G12: 30 | H12: 30 | I12: 30 | J12: 30 | K12: 30 | L12: 30 | M12: 30 | N12: 44.35143098 | O12: 34.5 | P12: 34.5 | Q12: 34.5 | R12: 34.5 | S12: 34.5 | T12: 34.5 | U12: 34.5 | V12: 34.5 | W12: 34.5 | X12: 34.5 | Y12: 34.5 | Z12: 51.00414562
B13: =SUM(B4:B12) -> 527.0749768
A18: PROYECCION DE VENTAS
A20: SERVICIO | B20: P. U. | C20: Mes 1 | D20: Mes 2 | E20: Mes 3 | F20: Mes 4 | G20: Mes 5 | H20: Mes 6 | I20: Mes 7 | J20: Mes 8 | K20: Mes 9 | L20: Mes 10 | M20: Mes 11 | N20: Mes 12 | O20: Mes 13 | P20: Mes 14 | Q20: Mes 15 | R20: Mes 16 | S20: Mes 17 | T20: Mes 18 | U20: Mes 19 | V20: Mes 20 | W20: Mes 21 | X20: Mes 22 | Y20: Mes 23 | Z20: Mes 24 | AA20: TOTAL
A21: PROGRAMA DE REHABILITACION CARDIACA | B21: 60 | C21: =B4*B21 -> 1542.658469 | D21: =C4*B21 -> 1200 | E21: =D4*B21 -> 1200 | F21: =E4*B21 -> 1200 | G21: =F4*B21 -> 1200 | H21: =G4*B21 -> 1200 | I21: =H4*B21 -> 1200 | J21: =I4*B21 -> 1200 | K21: =J4*B21 -> 1200 | L21: =K4*B21 -> 1200 | M21: =L4*B21 -> 1200 | N21: =M4*B21 -> 1200 | O21: =N4*B21 -> 1774.057239 | P21: =O4*B21 -> 1380 | Q21: =P4*B21 -> 1380 | R21: =Q4*B21 -> 1380 | S21: =R4*B21 -> 1380 | T21: =S4*B21 -> 1380 | U21: =T4*B21 -> 1380 | V21: =U4*B21 -> 1380 | W21: =V4*B21 -> 1380 | X21: =W4*B21 -> 1380 | Y21: =X4*B21 -> 1380 | Z21: =Y4*B21 -> 1380 | AA21: =SUM(C21:Z21) -> 31696.71571
A22: PROGRAMA DE PREVENCION CARDIOVASCULAR: PRIM. Y SEC. | B22: 60 | C22: 2313.987703 | D22: 2400 | E22: 2400 | F22: 2400 | G22: 2400 | H22: 2400 | I22: 2400 | J22: 2400 | K22: 2400 | L22: 2400 | M22: 2400 | N22: 2400 | O22: 2661.085859 | P22: 2760 | Q22: 2760 | R22: 2760 | S22: 2760 | T22: 2760 | U22: 2760 | V22: 2760 | W22: 2760 | X22: 2760 | Y22: 2760 | Z22: 2760 | AA22: =SUM(C22:Z22) -> 61735.07356
A23: FISIOTERARIA EN SALUD OCUPACIONAL | B23: 60 | C23: 3856.646172 | D23: 3000 | E23: 3000 | F23: 3000 | G23: 3000 | H23: 3000 | I23: 3000 | J23: 3000 | K23: 3000 | L23: 3000 | M23: 3000 | N23: 3000 | O23: 4435.143098 | P23: 3450 | Q23: 3450 | R23: 3450 | S23: 3450 | T23: 3450 | U23: 3450 | V23: 3450 | W23: 3450 | X23: 3450 | Y23: 3450 | Z23: 3450 | AA23: 79241.78927
A24: REHABILITACION DEPORTIVA. | B24: 60 | C24: 6170.633875 | D24: 3000 | E24: 3000 | F24: 3000 | G24: 3000 | H24: 3000 | I24: 3000 | J24: 3000 | K24: 3000 | L24: 3000 | M24: 3000 | N24: 3000 | O24: 7096.228956 | P24: 3450 | Q24: 3450 | R24: 3450 | S24: 3450 | T24: 3450 | U24: 3450 | V24: 3450 | W24: 3450 | X24: 3450 | Y24: 3450 | Z24: 3450 | AA24: 84216.86283
A25: PROGRAMA DE FISIOTERAPIA | B25: 70 | C25: 6299.188747 | D25: 3500 | E25: 3500 | F25: 3500 | G25: 3500 | H25: 3500 | I25: 3500 | J25: 3500 | K25: 3500 | L25: 3500 | M25: 3500 | N25: 3500 | O25: 7244.067059 | P25: 4025 | Q25: 4025 | R25: 4025 | S25: 4025 | T25: 4025 | U25: 4025 | V25: 4025 | W25: 4025 | X25: 4025 | Y25: 4025 | Z25: 4025 | AA25: 96318.25581
A26: TRATAMIENTO DE FISIOTERAPIA INTEGRAL. | B26: 70 | C26: 5399.304641 | D26: 3500 | E26: 3500 | F26: 3500 | G26: 3500 | H26: 3500 | I26: 3500 | J26: 3500 | K26: 3500 | L26: 3500 | M26: 3500 | N26: 3500 | O26: 6209.200337 | P26: 4025 | Q26: 4025 | R26: 4025 | S26: 4025 | T26: 4025 | U26: 4025 | V26: 4025 | W26: 4025 | X26: 4025 | Y26: 4025 | Z26: 4025 | AA26: 94383.50498
A27: REHABILITACIÓN CON HIDROTERAPIA | B27: 60 | C27: 3085.316937 | D27: 3000 | E27: 3000 | F27: 3000 | G27: 3000 | H27: 3000 | I27: 3000 | J27: 3000 | K27: 3000 | L27: 3000 | M27: 3000 | N27: 3000 | O27: 3548.114478 | P27: 3450 | Q27: 3450 | R27: 3450 | S27: 3450 | T27: 3450 | U27: 3450 | V27: 3450 | W27: 3450 | X27: 3450 | Y27: 3450 | Z27: 3450 | AA27: 77583.43142
A28: REHABILITACIÓN PACIENTES QUEMADOS | B28: 60 | C28: 2313.987703 | D28: 1200 | E28: 1200 | F28: 1200 | G28: 1200 | H28: 1200 | I28: 1200 | J28: 1200 | K28: 1200 | L28: 1200 | M28: 1200 | N28: 1200 | O28: 2661.085859 | P28: 1380 | Q28: 1380 | R28: 1380 | S28: 1380 | T28: 1380 | U28: 1380 | V28: 1380 | W28: 1380 | X28: 1380 | Y28: 1380 | Z28: 1380 | AA28: 33355.07356
A29: TERAPIA PSICOMOTRIZ | B29: 60 | C29: 2313.987703 | D29: 1800 | E29: 1800 | F29: 1800 | G29: 1800 | H29: 1800 | I29: 1800 | J29: 1800 | K29: 1800 | L29: 1800 | M29: 1800 | N29: 1800 | O29: 2661.085859 | P29: 2070 | Q29: 2070 | R29: 2070 | S29: 2070 | T29: 2070 | U29: 2070 | V29: 2070 | W29: 2070 | X29: 2070 | Y29: 2070 | Z29: 2070 | AA29: 47545.07356
A30: TOTAL VENTAS | C30: =SUM(C21:C29) -> 33295.71195 | D30: 22600 | E30: 22600 | F30: 22600 | G30: 22600 | H30: 22600 | I30: 22600 | J30: 22600 | K30: 22600 | L30: 22600 | M30: 22600 | N30: 22600 | O30: 38290.06874 | P30: 25990 | Q30: 25990 | R30: 25990 | S30: 25990 | T30: 25990 | U30: 25990 | V30: 25990 | W30: 25990 | X30: 25990 | Y30: 25990 | Z30: 25990 | AA30: 606075.7807
A32: N° PARTICIPACION X PROGRAMA SEGÚN ENTREVISTA
A33: PROGRAMA DE REHABILITACION CARDIACA | B33: =ENTREVISTA!H31 -> 0.0487804878
A34: PROGRAMA DE PREVENCION CARDIOVASCULAR: PRIM. Y SEC. | B34: =ENTREVISTA!H32 -> 0.07317073171
A35: FISIOTERARIA EN SALUD OCUPACIONAL | B35: =ENTREVISTA!H33 -> 0.1219512195
A36: REHABILITACION DEPORTIVA. | B36: =ENTREVISTA!H34 -> 0.1951219512
A37: PROGRAMA DE FISIOTERAPIA | B37: =ENTREVISTA!H35 -> 0.1707317073
A38: TRATAMIENTO DE FISIOTERAPIA INTEGRAL. | B38: =ENTREVISTA!H36 -> 0.1463414634
A39: REHABILITACIÓN CON HIDROTERAPIA | B39: =ENTREVISTA!H37 -> 0.09756097561
A40: REHABILITACIÓN PACIENTES QUEMADOS | B40: =ENTREVISTA!H38 -> 0.07317073171
A41: TERAPIA PSICOMOTRIZ | B41: =ENTREVISTA!H39 -> 0.07317073171
B42: =ENTREVISTA!H40 -> 1

Sheet PLANILLA DE EMPLEADOS
A3: MANO DE OBRA DIRECTA
D5: SNP | E5: Aporte Obligtorio | F5: Comision | G5: Comision Mixta | J5: ESSALUD
A6: DESCRIPCION | B6: CANTIDAD | C6: SUELDO MES | D6: 0.12 | E6: 0.1 | F6: 0.016 | G6: 0.0119 | H6: TOTAL DESCUENTO | I6: NETO A PAGAR | J6: 0.09 | K6: TOTAL GASTO | L6: GRATIFICACON | M6: CANTIDAD EN VACACIONES | N6: TOTAL DESCUENTO | O6: NETO A PAGAR | P6: TOTAL GASTO | Q6: GRATIFICACION
A7: MEDICO FISIATRA | B7: 1 | C7: 2000 | E7: =+C7*$E$6 -> 200 | F7: =+C7*$F$6 -> 32 | G7: =+C7*$G$6 -> 23.8 | H7: =SUM(D7:G7)*B7 -> 255.8 | I7: =(B7*C7)-H7 -> 1744.2 | J7: =+(C7*$J$6)*B7 -> 180 | K7: =+(C7*B7)+J7 -> 2180 | L7: =C7*B7 -> 2000 | M7: 1 | N7: =SUM(D7:G7) -> 255.8 | O7: =+C7-N7 -> 1744.2 | P7: =(C7*$J$6)+C7 -> 2180 | Q7: =C7*M7 -> 2000
A8: TECNOLOGOS MEDICOS | B8: 2 | C8: 1500 | E8: =+C8*$E$6 -> 150 | F8: =+C8*$F$6 -> 24 | G8: =+C8*$G$6 -> 17.85 | H8: =SUM(D8:G8)*B8 -> 383.7 | I8: =(B8*C8)-H8 -> 2616.3 | J8: =+(C8*$J$6)*B8 -> 270 | K8: =+(C8*B8)+J8 -> 3270 | L8: =C8*B8 -> 3000 | M8: 1 | N8: =SUM(D8:G8) -> 191.85 | O8: =+C8-N8 -> 1308.15 | P8: =(C8*$J$6)+C8 -> 1635 | Q8: =C8*M8 -> 1500
A9: RECEPCIONISTA | B9: 1 | C9: 900 | E9: =+C9*$E$6 -> 90 | F9: =+C9*$F$6 -> 14.4 | G9: =+C9*$G$6 -> 10.71 | H9: =SUM(D9:G9)*B9 -> 115.11 | I9: 784.89 | J9: =+(C9*$J$6)*B9 -> 81 | K9: =+(C9*B9)+J9 -> 981 | L9: =C9*B9 -> 900 | M9: 1 | N9: =SUM(D9:G9) -> 115.11 | O9: =+C9-N9 -> 784.89 | P9: =(C9*$J$6)+C9 -> 981 | Q9: =C9*M9 -> 900
A10: TECNICOS ENFERMERIA | B10: 1 | C10: 900 | D10: =+C10*$D$6 -> 108 | H10: =SUM(D10:G10)*B10 -> 108 | I10: 792 | J10: =+(C10*$J$6)*B10 -> 81 | K10: =+(C10*B10)+J10 -> 981 | L10: =C10*B10 -> 900 | M10: 1 | N10: =SUM(D10:G10) -> 108 | O10: =+C10-N10 -> 792 | P10: =(C10*$J$6)+C10 -> 981 | Q10: =C10*M10 -> 900
A11: TOTAL PLANILLA | B11: =SUM(B7:B10) -> 5 | C11: 5300 | D11: 108 | E11: 440 | F11: 70.4 | G11: 52.36 | H11: 862.61 | I11: 5937.39 | J11: 612 | K11: 7412 | L11: 6800 | M11: 4 | N11: 670.76 | O11: 4629.24 | P11: 5777 | Q11: 5300
A12: APORTES A PAGAR | B12: %
A13: AFP | B13: 0.125
A14: ESSALUD | B14: 0.085
A18: MANO DE OBRA INDIRECTA
D21: SNP | E21: Aporte Obligtorio | F21: Comision | G21: Comision Mixta | J21: ESSALUD
A22: DESCRIPCION | B22: CANTIDAD | C22: SUELDO MES | D22: 0.12 | E22: 0.1 | F22: 0.016 | G22: 0.0119 | H22: TOTAL DESCUENTO | I22: NETO A PAGAR | J22: 0.09 | K22: TOTAL GASTO | L22: GRATIFICACON
A23: ADMINISTRADOR | B23: 1 | C23: 1500 | E23: =+C23*$E$6 -> 150 | F23: =+C23*$F$6 -> 24 | G23: =+C23*$G$6 -> 17.85 | H23: =SUM(D23:G23)*B23 -> 191.85 | I23: =(B23*C23)-H23 -> 1308.15 | J23: =+(C23*$J$6)*B23 -> 135 | K23: =+(C23*B23)+J23 -> 1635 | L23: =C23*B23 -> 1500 | M23: 1 | N23: =SUM(D23:G23) -> 191.85 | O23: =+C23-N23 -> 1308.15 | P23: =(C23*$J$6)+C23 -> 1635 | Q23: =C23*M23 -> 1500
A24: Personal de Limpieza | B24: 1 | C24: 850 | D24: =+C24*$D$22 -> 102 | H24: =SUM(D24:G24) -> 102 | I24: =+C24-H24 -> 748 | J24: =+C24*$J$22 -> 76.5 | K24: =+C24+J24 -> 926.5 | L24: =C24*B24 -> 850
A25: TOTAL PLANILLA | B25: =SUM(B24:B24) -> 1 | C25: 850 | D25: 102 | E25: 0 | F25: 0 | G25: 0 | H25: 102 | I25: 748 | J25: 76.5 | K25: 926.5 | L25: 850
A26: APORTES A PAGAR | B26: %
A27: AFP | B27: 0.125
A28: ESSALUD | B28: 0.085
I30: =I11+I25 -> 6685.39
D32: |

Sheet GASTOS INDIRECTOS
A1: GASTOS INDIRECTOS
A3: RUBRO | B3: VALOR UNITARIO | C3: CANT. | D3: UNID. | E3: COSTO TOTAL
A5: Gastos Administrativos | E5: =SUM(E6:E12) -> 2642.666667
A6: Alquiler de local | B6: 1000 | C6: 1 | D6: Unidad | E6: =B6*C6 -> 1000
A7: Agua | B7: 100 | C7: 1 | D7: Unidad | E7: =B7*C7 -> 100
A8: Energia Electrica | B8: 300 | C8: 1 | D8: Unidad | E8: =B8*C8 -> 300
A9: Celulares Y TELEFONO FIJO | B9: 50 | C9: 2 | D9: Unidad | E9: =B9*C9 -> 100
A10: Insumos | B10: 0 | E10: 0
A11: Depreciacion | B11: ='DEPRECIACION '!H43 -> 942.6666667 | E11: =B11 -> 942.6666667
A12: Mantenimiento de Local | B12: 200 | C12: 1 | D12: Unidad | E12: =B12*C12 -> 200
A13: Gastos de venta | E13: =SUM(E14:E14) -> 800
A14: Publicidad | B14: 800 | C14: 1 | D14: Unidad | E14: =B14*C14 -> 800
A15: TOTAL COSTOS | E15: =E5+E13 -> 3442.666667
A48: INSTRUMENTOS TERAPEUTICOS
A49: Paquetes calientes | B49: 12 | C49: 25 | D49: =B49*C49 -> 300
A50: Paquetes friopack compresas | B50: 12 | C50: 7 | D50: 84
A51: Theratubos | B51: 10 | C51: 8 | D51: 80
A52: Sabanas | B52: 18 | C52: 6.99 | D52: 125.82
A53: Toallas | B53: 20 | C53: 14.99 | D53: 299.8
A54: Almohadas | B54: 12 | C54: 15 | D54: 180
A55: Bandas elásticas | B55: 10 | C55: 9 | D55: 90
A56: Cojines cilíndricos | B56: 8 | C56: 14.99 | D56: 119.92
A57: Cintas métricas | B57: 4 | C57: 2 | D57: 8
A58: Caneca roja | B58: 2 | C58: 45.82 | D58: 91.64
A59: Caneca verde | B59: 3 | C59: 45.82 | D59: 137.46
A60: Caneca gris | B60: 1 | C60: 45.82 | D60: 45.82
A61: Colchonetas | B61: 6 | C61: 15 | D61: 90
A62: Uniformes para empleados | B62: 4 | C62: 60 | D62: 240
A63: Dotación para empleados | B63: 4 | C63: 50 | D63: 200
D64: =SUM(D49:D63) -> 2092.46

Sheet COSTOS FIJOS
B4: COSTOS FIJOS
B6: RUBRO | C6: VALOR UNITARIO | D6: CANT. | E6: UNID. | F6: COSTO TOTAL
B8: Gastos Administrativos | F8: =SUM(F9:F10) -> 10128.05667
B9: SALARIOS | C9: ='INVERSION TOTAL '!E65 -> 6685.39 | D9: 1 | E9: MES | F9: =C9*D9 -> 6685.39
B10: GASTOS ADMINISTRATIVOS | C10: ='INVERSION TOTAL '!E64 -> 3442.666667 | D10: 1 | E10: MES | F10: =C10*D10 -> 3442.666667
B11: Gastos de venta | F11: =F12 -> 800
B12: =[1]INVERSION!B36 -> Publicidad | C12: ='GASTOS INDIRECTOS'!B14 -> 800 | D12: 1 | E12: MES | F12: =C12*D12 -> 800
B13: TOTAL FIJOS | F13: =F8+F11 -> 10928.05667

Sheet COSTOS VARIABLES
A2: COSTOS VARIABLES
A3: RUBRO | B3: VALOR UNITARIO | AA3: UNID. | AB3: UNID. | AC3: PROMEDIO INSUMOS MENSUAL
C4: ENERO | D4: FEBRERO | E4: MARZO | F4: ABRIL | G4: MAYO | H4: JUNIO | I4: JULIO | J4: AGOSTO | K4: SEPTIEMBRE | L4: OCTUBRE | M4: NOVIEMBRE | N4: DICIEMBRE | O4: ENERO | P4: FEBRERO | Q4: MARZO | R4: ABRIL | S4: MAYO | T4: JUNIO | U4: JULIO | V4: AGOSTO | W4: SEPTIEMBRE | X4: OCTUBRE | Y4: NOVIEMBRE | Z4: DICIEMBRE | AA4: 1°AÑO | AB4: 2°AÑO | AC4: =AVERAGE(C5:Z5) -> 120.59014
A5: MATERIALES | C5: =SUM(C6:C14) -> 158.122493 | D5: =SUM(D6:D14) -> 108 | E5: 108 | F5: 108 | G5: 108 | H5: 108 | I5: 108 | J5: 108 | K5: 108 | L5: 108 | M5: 108 | N5: 108 | O5: 181.840867 | P5: 124.2 | Q5: 124.2 | R5: 124.2 | S5: 124.2 | T5: 124.2 | U5: 124.2 | V5: 124.2 | W5: 124.2 | X5: 124.2 | Y5: 124.2 | Z5: 124.2 | AA5: =SUM(C5:N5) -> 1346.122493 | AB5: =SUM(O5:Z5) -> 1548.040867
A6: Tarro gel conductor x galón | B6: =E23 -> 0.3 | C6: =$B$6*'INGRESO POR VENTAS'!B4 -> 7.713292344 | D6: =$B$6*'INGRESO POR VENTAS'!C4 -> 6 | E6: =$B$6*'INGRESO POR VENTAS'!D4 -> 6 | F6: =$B$6*'INGRESO POR VENTAS'!E4 -> 6 | G6: =$B$6*'INGRESO POR VENTAS'!F4 -> 6 | H6: =$B$6*'INGRESO POR VENTAS'!G4 -> 6 | I6: =$B$6*'INGRESO POR VENTAS'!H4 -> 6 | J6: =$B$6*'INGRESO POR VENTAS'!I4 -> 6 | K6: =$B$6*'INGRESO POR VENTAS'!J4 -> 6 | L6: =$B$6*'INGRESO POR VENTAS'!K4 -> 6 | M6: =$B$6*'INGRESO POR VENTAS'!L4 -> 6 | N6: =$B$6*'INGRESO POR VENTAS'!M4 -> 6 | O6: =$B$6*'INGRESO POR VENTAS'!N4 -> 8.870286195 | P6: =$B$6*'INGRESO POR VENTAS'!O4 -> 6.9 | Q6: =$B$6*'INGRESO POR VENTAS'!P4 -> 6.9 | R6: =$B$6*'INGRESO POR VENTAS'!Q4 -> 6.9 | S6: =$B$6*'INGRESO POR VENTAS'!R4 -> 6.9 | T6: =$B$6*'INGRESO POR VENTAS'!S4 -> 6.9 | U6: =$B$6*'INGRESO POR VENTAS'!T4 -> 6.9 | V6: =$B$6*'INGRESO POR VENTAS'!U4 -> 6.9 | W6: =$B$6*'INGRESO POR VENTAS'!V4 -> 6.9 | X6: =$B$6*'INGRESO POR VENTAS'!W4 -> 6.9 | Y6: =$B$6*'INGRESO POR VENTAS'!X4 -> 6.9 | Z6: =$B$6*'INGRESO POR VENTAS'!Y4 -> 6.9 | AA6: =SUM(C6:N6) -> 73.71329234 | AB6: =SUM(O6:Z6) -> 84.7702862
A7: Toallas Secantes 100mt x 6 und | B7: =E24 -> 0.3 | C7: =$B$6*'INGRESO POR VENTAS'!B5 -> 11.56993852 | D7: =$B$6*'INGRESO POR VENTAS'!C5 -> 12 | E7: =$B$6*'INGRESO POR VENTAS'!D5 -> 12 | F7: =$B$6*'INGRESO POR VENTAS'!E5 -> 12 | G7: =$B$6*'INGRESO POR VENTAS'!F5 -> 12 | H7: =$B$6*'INGRESO POR VENTAS'!G5 -> 12 | I7: =$B$6*'INGRESO POR VENTAS'!H5 -> 12 | J7: =$B$6*'INGRESO POR VENTAS'!I5 -> 12 | K7: =$B$6*'INGRESO POR VENTAS'!J5 -> 12 | L7: =$B$6*'INGRESO POR VENTAS'!K5 -> 12 | M7: =$B$6*'INGRESO POR VENTAS'!L5 -> 12 | N7: =$B$6*'INGRESO POR VENTAS'!M5 -> 12 | O7: =$B$6*'INGRESO POR VENTAS'!N5 -> 13.30542929 | P7: =$B$6*'INGRESO POR VENTAS'!O5 -> 13.8 | Q7: =$B$6*'INGRESO POR VENTAS'!P5 -> 13.8 | R7: =$B$6*'INGRESO POR VENTAS'!Q5 -> 13.8 | S7: =$B$6*'INGRESO POR VENTAS'!R5 -> 13.8 | T7: =$B$6*'INGRESO POR VENTAS'!S5 -> 13.8 | U7: =$B$6*'INGRESO POR VENTAS'!T5 -> 13.8 | V7: =$B$6*'INGRESO POR VENTAS'!U5 -> 13.8 | W7: =$B$6*'INGRESO POR VENTAS'!V5 -> 13.8 | X7: =$B$6*'INGRESO POR VENTAS'!W5 -> 13.8 | Y7: =$B$6*'INGRESO POR VENTAS'!X5 -> 13.8 | Z7: =$B$6*'INGRESO POR VENTAS'!Y5 -> 13.8 | AA7: =SUM(C7:N7) -> 143.5699385 | AB7: =SUM(O7:Z7) -> 165.1054293
A8: Baja lenguas paquete x100 | B8: 0.66 | C8: =$B$6*'INGRESO POR VENTAS'!B6 -> 19.28323086 | D8: =$B$6*'INGRESO POR VENTAS'!C6 -> 15 | E8: =$B$6*'INGRESO POR VENTAS'!D6 -> 15 | F8: =$B$6*'INGRESO POR VENTAS'!E6 -> 15 | G8: =$B$6*'INGRESO POR VENTAS'!F6 -> 15 | H8: =$B$6*'INGRESO POR VENTAS'!G6 -> 15 | I8: =$B$6*'INGRESO POR VENTAS'!H6 -> 15 | J8: =$B$6*'INGRESO POR VENTAS'!I6 -> 15 | K8: =$B$6*'INGRESO POR VENTAS'!J6 -> 15 | L8: =$B$6*'INGRESO POR VENTAS'!K6 -> 15 | M8: =$B$6*'INGRESO POR VENTAS'!L6 -> 15 | N8: =$B$6*'INGRESO POR VENTAS'!M6 -> 15 | O8: =$B$6*'INGRESO POR VENTAS'!N6 -> 22.17571549 | P8: =$B$6*'INGRESO POR VENTAS'!O6 -> 17.25 | Q8: =$B$6*'INGRESO POR VENTAS'!P6 -> 17.25 | R8: =$B$6*'INGRESO POR VENTAS'!Q6 -> 17.25 | S8: =$B$6*'INGRESO POR VENTAS'!R6 -> 17.25 | T8: =$B$6*'INGRESO POR VENTAS'!S6 -> 17.25 | U8: =$B$6*'INGRESO POR VENTAS'!T6 -> 17.25 | V8: =$B$6*'INGRESO POR VENTAS'!U6 -> 17.25 | W8: =$B$6*'INGRESO POR VENTAS'!V6 -> 17.25 | X8: =$B$6*'INGRESO POR VENTAS'!W6 -> 17.25 | Y8: =$B$6*'INGRESO POR VENTAS'!X6 -> 17.25 | Z8: =$B$6*'INGRESO POR VENTAS'!Y6 -> 17.25 | AA8: 184.2832309 | AB8: 211.9257155
A9: Papel higiénico 170 mts x 4 und | B9: 0.484375 | C9: =$B$6*'INGRESO POR VENTAS'!B7 -> 30.85316937 | D9: =$B$6*'INGRESO POR VENTAS'!C7 -> 15 | E9: =$B$6*'INGRESO POR VENTAS'!D7 -> 15 | F9: =$B$6*'INGRESO POR VENTAS'!E7 -> 15 | G9: =$B$6*'INGRESO POR VENTAS'!F7 -> 15 | H9: =$B$6*'INGRESO POR VENTAS'!G7 -> 15 | I9: =$B$6*'INGRESO POR VENTAS'!H7 -> 15 | J9: =$B$6*'INGRESO POR VENTAS'!I7 -> 15 | K9: =$B$6*'INGRESO POR VENTAS'!J7 -> 15 | L9: =$B$6*'INGRESO POR VENTAS'!K7 -> 15 | M9: =$B$6*'INGRESO POR VENTAS'!L7 -> 15 | N9: =$B$6*'INGRESO POR VENTAS'!M7 -> 15 | O9: =$B$6*'INGRESO POR VENTAS'!N7 -> 35.48114478 | P9: =$B$6*'INGRESO POR VENTAS'!O7 -> 17.25 | Q9: =$B$6*'INGRESO POR VENTAS'!P7 -> 17.25 | R9: =$B$6*'INGRESO POR VENTAS'!Q7 -> 17.25 | S9: =$B$6*'INGRESO POR VENTAS'!R7 -> 17.25 | T9: =$B$6*'INGRESO POR VENTAS'!S7 -> 17.25 | U9: =$B$6*'INGRESO POR VENTAS'!T7 -> 17.25 | V9: =$B$6*'INGRESO POR VENTAS'!U7 -> 17.25 | W9: =$B$6*'INGRESO POR VENTAS'!V7 -> 17.25 | X9: =$B$6*'INGRESO POR VENTAS'!W7 -> 17.25 | Y9: =$B$6*'INGRESO POR VENTAS'!X7 -> 17.25 | Z9: =$B$6*'INGRESO POR VENTAS'!Y7 -> 17.25 | AA9: 195.8531694 | AB9: 225.2311448
A10: Guantes caja | B10: 0.5 | C10: =$B$6*'INGRESO POR VENTAS'!B8 -> 26.9965232 | D10: =$B$6*'INGRESO POR VENTAS'!C8 -> 15 | E10: =$B$6*'INGRESO POR VENTAS'!D8 -> 15 | F10: =$B$6*'INGRESO POR VENTAS'!E8 -> 15 | G10: =$B$6*'INGRESO POR VENTAS'!F8 -> 15 | H10: =$B$6*'INGRESO POR VENTAS'!G8 -> 15 | I10: =$B$6*'INGRESO POR VENTAS'!H8 -> 15 | J10: =$B$6*'INGRESO POR VENTAS'!I8 -> 15 | K10: =$B$6*'INGRESO POR VENTAS'!J8 -> 15 | L10: =$B$6*'INGRESO POR VENTAS'!K8 -> 15 | M10: =$B$6*'INGRESO POR VENTAS'!L8 -> 15 | N10: =$B$6*'INGRESO POR VENTAS'!M8 -> 15 | O10: =$B$6*'INGRESO POR VENTAS'!N8 -> 31.04600168 | P10: =$B$6*'INGRESO POR VENTAS'!O8 -> 17.25 | Q10: =$B$6*'INGRESO POR VENTAS'!P8 -> 17.25 | R10: =$B$6*'INGRESO POR VENTAS'!Q8 -> 17.25 | S10: =$B$6*'INGRESO POR VENTAS'!R8 -> 17.25 | T10: =$B$6*'INGRESO POR VENTAS'!S8 -> 17.25 | U10: =$B$6*'INGRESO POR VENTAS'!T8 -> 17.25 | V10: =$B$6*'INGRESO POR VENTAS'!U8 -> 17.25 | W10: =$B$6*'INGRESO POR VENTAS'!V8 -> 17.25 | X10: =$B$6*'INGRESO POR VENTAS'!W8 -> 17.25 | Y10: =$B$6*'INGRESO POR VENTAS'!X8 -> 17.25 | Z10: =$B$6*'INGRESO POR VENTAS'!Y8 -> 17.25 | AA10: 191.9965232 | AB10: 220.7960017
A11: Tapabocas caja x 50 und | B11: 0.4466666667 | C11: =$B$6*'INGRESO POR VENTAS'!B9 -> 23.13987703 | D11: =$B$6*'INGRESO POR VENTAS'!C9 -> 15 | E11: =$B$6*'INGRESO POR VENTAS'!D9 -> 15 | F11: =$B$6*'INGRESO POR VENTAS'!E9 -> 15 | G11: =$B$6*'INGRESO POR VENTAS'!F9 -> 15 | H11: =$B$6*'INGRESO POR VENTAS'!G9 -> 15 | I11: =$B$6*'INGRESO POR VENTAS'!H9 -> 15 | J11: =$B$6*'INGRESO POR VENTAS'!I9 -> 15 | K11: =$B$6*'INGRESO POR VENTAS'!J9 -> 15 | L11: =$B$6*'INGRESO POR VENTAS'!K9 -> 15 | M11: =$B$6*'INGRESO POR VENTAS'!L9 -> 15 | N11: =$B$6*'INGRESO POR VENTAS'!M9 -> 15 | O11: =$B$6*'INGRESO POR VENTAS'!N9 -> 26.61085859 | P11: =$B$6*'INGRESO POR VENTAS'!O9 -> 17.25 | Q11: =$B$6*'INGRESO POR VENTAS'!P9 -> 17.25 | R11: =$B$6*'INGRESO POR VENTAS'!Q9 -> 17.25 | S11: =$B$6*'INGRESO POR VENTAS'!R9 -> 17.25 | T11: =$B$6*'INGRESO POR VENTAS'!S9 -> 17.25 | U11: =$B$6*'INGRESO POR VENTAS'!T9 -> 17.25 | V11: =$B$6*'INGRESO POR VENTAS'!U9 -> 17.25 | W11: =$B$6*'INGRESO POR VENTAS'!V9 -> 17.25 | X11: =$B$6*'INGRESO POR VENTAS'!W9 -> 17.25 | Y11: =$B$6*'INGRESO POR VENTAS'!X9 -> 17.25 | Z11: =$B$6*'INGRESO POR VENTAS'!Y9 -> 17.25 | AA11: 188.139877 | AB11: 216.3608586
A12: Parafina | B12: 22 | C12: =$B$6*'INGRESO POR VENTAS'!B10 -> 15.42658469 | D12: =$B$6*'INGRESO POR VENTAS'!C10 -> 15 | E12: =$B$6*'INGRESO POR VENTAS'!D10 -> 15 | F12: =$B$6*'INGRESO POR VENTAS'!E10 -> 15 | G12: =$B$6*'INGRESO POR VENTAS'!F10 -> 15 | H12: =$B$6*'INGRESO POR VENTAS'!G10 -> 15 | I12: =$B$6*'INGRESO POR VENTAS'!H10 -> 15 | J12: =$B$6*'INGRESO POR VENTAS'!I10 -> 15 | K12: =$B$6*'INGRESO POR VENTAS'!J10 -> 15 | L12: =$B$6*'INGRESO POR VENTAS'!K10 -> 15 | M12: =$B$6*'INGRESO POR VENTAS'!L10 -> 15 | N12: =$B$6*'INGRESO POR VENTAS'!M10 -> 15 | O12: =$B$6*'INGRESO POR VENTAS'!N10 -> 17.74057239 | P12: =$B$6*'INGRESO POR VENTAS'!O10 -> 17.25 | Q12: =$B$6*'INGRESO POR VENTAS'!P10 -> 17.25 | R12: =$B$6*'INGRESO POR VENTAS'!Q10 -> 17.25 | S12: =$B$6*'INGRESO POR VENTAS'!R10 -> 17.25 | T12: =$B$6*'INGRESO POR VENTAS'!S10 -> 17.25 | U12: =$B$6*'INGRESO POR VENTAS'!T10 -> 17.25 | V12: =$B$6*'INGRESO POR VENTAS'!U10 -> 17.25 | W12: =$B$6*'INGRESO POR VENTAS'!V10 -> 17.25 | X12: =$B$6*'INGRESO POR VENTAS'!W10 -> 17.25 | Y12: =$B$6*'INGRESO POR VENTAS'!X10 -> 17.25 | Z12: =$B$6*'INGRESO POR VENTAS'!Y10 -> 17.25 | AA12: 180.4265847 | AB12: 207.4905724
A13: Jabón antibacterial | B13: 0.4 | C13: =$B$6*'INGRESO POR VENTAS'!B11 -> 11.56993852 | D13: =$B$6*'INGRESO POR VENTAS'!C11 -> 6 | E13: =$B$6*'INGRESO POR VENTAS'!D11 -> 6 | F13: =$B$6*'INGRESO POR VENTAS'!E11 -> 6 | G13: =$B$6*'INGRESO POR VENTAS'!F11 -> 6 | H13: =$B$6*'INGRESO POR VENTAS'!G11 -> 6 | I13: =$B$6*'INGRESO POR VENTAS'!H11 -> 6 | J13: =$B$6*'INGRESO POR VENTAS'!I11 -> 6 | K13: =$B$6*'INGRESO POR VENTAS'!J11 -> 6 | L13: =$B$6*'INGRESO POR VENTAS'!K11 -> 6 | M13: =$B$6*'INGRESO POR VENTAS'!L11 -> 6 | N13: =$B$6*'INGRESO POR VENTAS'!M11 -> 6 | O13: =$B$6*'INGRESO POR VENTAS'!N11 -> 13.30542929 | P13: =$B$6*'INGRESO POR VENTAS'!O11 -> 6.9 | Q13: =$B$6*'INGRESO POR VENTAS'!P11 -> 6.9 | R13: =$B$6*'INGRESO POR VENTAS'!Q11 -> 6.9 | S13: =$B$6*'INGRESO POR VENTAS'!R11 -> 6.9 | T13: =$B$6*'INGRESO POR VENTAS'!S11 -> 6.9 | U13: =$B$6*'INGRESO POR VENTAS'!T11 -> 6.9 | V13: =$B$6*'INGRESO POR VENTAS'!U11 -> 6.9 | W13: =$B$6*'INGRESO POR VENTAS'!V11 -> 6.9 | X13: =$B$6*'INGRESO POR VENTAS'!W11 -> 6.9 | Y13: =$B$6*'INGRESO POR VENTAS'!X11 -> 6.9 | Z13: =$B$6*'INGRESO POR VENTAS'!Y11 -> 6.9 | AA13: 77.56993852 | AB13: 89.20542929
A14: Talco | B14: 0.24 | C14: =$B$6*'INGRESO POR VENTAS'!B12 -> 11.56993852 | D14: =$B$6*'INGRESO POR VENTAS'!C12 -> 9 | E14: =$B$6*'INGRESO POR VENTAS'!D12 -> 9 | F14: =$B$6*'INGRESO POR VENTAS'!E12 -> 9 | G14: =$B$6*'INGRESO POR VENTAS'!F12 -> 9 | H14: =$B$6*'INGRESO POR VENTAS'!G12 -> 9 | I14: =$B$6*'INGRESO POR VENTAS'!H12 -> 9 | J14: =$B$6*'INGRESO POR VENTAS'!I12 -> 9 | K14: =$B$6*'INGRESO POR VENTAS'!J12 -> 9 | L14: =$B$6*'INGRESO POR VENTAS'!K12 -> 9 | M14: =$B$6*'INGRESO POR VENTAS'!L12 -> 9 | N14: =$B$6*'INGRESO POR VENTAS'!M12 -> 9 | O14: =$B$6*'INGRESO POR VENTAS'!N12 -> 13.30542929 | P14: =$B$6*'INGRESO POR VENTAS'!O12 -> 10.35 | Q14: =$B$6*'INGRESO POR VENTAS'!P12 -> 10.35 | R14: =$B$6*'INGRESO POR VENTAS'!Q12 -> 10.35 | S14: =$B$6*'INGRESO POR VENTAS'!R12 -> 10.35 | T14: =$B$6*'INGRESO POR VENTAS'!S12 -> 10.35 | U14: =$B$6*'INGRESO POR VENTAS'!T12 -> 10.35 | V14: =$B$6*'INGRESO POR VENTAS'!U12 -> 10.35 | W14: =$B$6*'INGRESO POR VENTAS'!V12 -> 10.35 | X14: =$B$6*'INGRESO POR VENTAS'!W12 -> 10.35 | Y14: =$B$6*'INGRESO POR VENTAS'!X12 -> 10.35 | Z14: =$B$6*'INGRESO POR VENTAS'!Y12 -> 10.35 | AA14: 110.5699385 | AB14: 127.1554293
AA15: TOTAL | AB15: =SUM(AA6:AA14,AB6:AB14) -> 2894.16336
A22: INSUMOS | C22: VALOR | D22: SESIONES | E22: VALOR UNITARIO
A23: Tarro gel conductor x galón | B23: 1 | C23: 24 | D23: 80 | E23: =C23/D23 -> 0.3
A24: Toallas Secantes 100mt x 6 und | B24: 1 | C24: 45 | D24: 150 | E24: =C24/D24 -> 0.3
A25: Baja lenguas paquete x100 | B25: 1 | C25: 33 | D25: 50 | E25: 0.66
A26: Papel higiénico 170 mts x 4 und | B26: 1 | C26: 38.75 | D26: 80 | E26: 0.484375
A27: Guantes caja | B27: 1 | C27: 25 | D27: 50 | E27: 0.5
A28: Tapabocas caja x 50 und | B28: 1 | C28: 13.4 | D28: 30 | E28: 0.4466666667
A29: Parafina | B29: 1 | C29: 22 | D29: 1 | E29: 22
A30: Jabón antibacterial | B30: 1 | C30: 8 | D30: 20 | E30: 0.4
A31: Talco | B31: 1 | C31: 12 | D31: 50 | E31: 0.24

Sheet DEPRECIACION
A1: DEPRECIACION DE MAQUINARIA MUEBLES Y ENSERES
A3: CANT. | B3: UNID. | C3: DESCRIPCION | D3: VALOR UNITARIO | E3: TOTAL | F3: TASA DE DEPRECIACION | G3: VIDA UTIL (MESES) | H3: DEPRECIACION MES
C4: Maquinaria y Equipos | H4: =SUM(H5:H33) -> 909.25
A5: 3 | B5: Unidad | C5: COMPUTADORAS | D5: 1500 | E5: =D5*A5 -> 4500 | F5: 0.25 | G5: 48 | H5: =E5/G5 -> 93.75
A6: 4 | B6: Unidad | C6: VIDEOCAMARAS | D6: 400 | E6: =D6*A6 -> 1600 | F6: 0.25 | G6: 48 | H6: =E6/G6 -> 33.33333333
A7: 6 | B7: Unidad | C7: Glomed - Camilla para Masajes | D7: 559 | E7: =D7*A7 -> 3354 | F7: 0.25 | G7: 48 | H7: =E7/G7 -> 69.875
A8: 6 | B8: Unidad | C8: Masajeador Tens 4 Electrodos | D8: 139 | E8: 834 | F8: 0.25 | G8: 48 | H8: 17.375
A9: 6 | B9: Unidad | C9: Ems electroestimulador | D9: 659 | E9: 3954 | F9: 0.25 | G9: 48 | H9: 82.375
A10: 2 | B10: Unidad | C10: Ultrasonido GB 818 | D10: 399 | E10: 798 | F10: 0.25 | G10: 48 | H10: 16.625
A11: 1 | B11: Unidad | C11: Nevera pequeña | D11: 699 | E11: 699 | F11: 0.25 | G11: 48 | H11: 14.5625
A12: 1 | B12: Unidad | C12: Hidrocolector | D12: 750 | E12: 750 | F12: 0.25 | G12: 48 | H12: 15.625
A13: 2 | B13: Unidad | C13: Tanque de Parafina | D13: 379 | E13: 758 | F13: 0.25 | G13: 48 | H13: 15.79166667
A14: 2 | B14: Unidad | C14: Bicicleta de Spinning Best Fitness SP2 | D14: 949 | E14: 1898 | F14: 0.25 | G14: 48 | H14: 39.54166667
A15: 2 | B15: Unidad | C15: Elíptica E820P | D15: 899 | E15: 1798 | F15: 0.25 | G15: 48 | H15: 37.45833333
A16: 2 | B16: Unidad | C16: Trotadoras performance 400 | D16: 3000 | E16: 6000 | F16: 0.25 | G16: 48 | H16: 125
A17: 1 | B17: Unidad | C17: Soporte de 6 pares de mancuerna | D17: 200 | E17: 200 | F17: 0.25 | G17: 48 | H17: 4.166666667
A18: 4 | B18: Par | C18: Mancuernas 2 libras | D18: 57 | E18: 228 | F18: 0.25 | G18: 48 | H18: 4.75
A19: 4 | B19: Par | C19: Mancuernas 3 libras | D19: 79 | E19: 316 | F19: 0.25 | G19: 48 | H19: 6.583333333
A20: 4 | B20: Par | C20: Mancuernas 5 libras | D20: 100 | E20: 400 | F20: 0.25 | G20: 48 | H20: 8.333333333
A21: 4 | B21: Par | C21: Mancuernas 8 libras | D21: 120 | E21: 480 | F21: 0.25 | G21: 48 | H21: 10
A22: 1 | B22: Unidad | C22: Multigimnasio crossover | D22: 2989 | E22: 2989 | F22: 0.25 | G22: 48 | H22: 62.27083333
A23: 1 | B23: Unidad | C23: Banca XRS | D23: 400 | E23: 400 | F23: 0.25 | G23: 48 | H23: 8.333333333
A24: 2 | B24: Unidad | C24: Multigimnasio profesional | D24: 1000 | E24: 2000 | F24: 0.25 | G24: 48 | H24: 41.66666667
A25: 2 | B25: Unidad | C25: Leg extension y femoral | D25: 1800 | E25: 3600 | F25: 0.25 | G25: 48 | H25: 75
A26: 1 | B26: Unidad | C26: piscina estructural | D26: 2000 | E26: 2000 | F26: 0.25 | G26: 48 | H26: 41.66666667
A27: 1 | B27: Unidad | C27: Goniómetro electrónico digital | D27: 150 | E27: 150 | F27: 0.25 | G27: 48 | H27: 3.125
A28: 2 | B28: Unidad | C28: Kit plataforma de fuerza | D28: 350 | E28: 700 | F28: 0.25 | G28: 48 | H28: 14.58333333
A29: 1 | B29: Unidad | C29: Balanza digital de peso, masa y tallimetro | D29: 400 | E29: 400 | F29: 0.25 | G29: 48 | H29: 8.333333333
A30: 2 | B30: Unidad | C30: Martillos de reflejos | D30: 100 | E30: 200 | F30: 0.25 | G30: 48 | H30: 4.166666667
A31: 2 | B31: Unidad | C31: Caminador de estabilidad | D31: 250 | E31: 500 | F31: 0.25 | G31: 48 | H31: 10.41666667
A32: 2 | B32: Unidad | C32: Silla de ruedas | D32: 830 | E32: 1660 | F32: 0.25 | G32: 48 | H32: 34.58333333
A33: 2 | B33: Unidad | C33: Microlife - Tensiómetro Automático BPA100 | D33: 239 | E33: 478 | F33: 0.25 | G33: 48 | H33: 9.958333333
C34: Muebles y enseres | H34: =SUM(H35:H39) -> 26.41666667
A35: 4 | B35: Unidad | C35: Escritorio | D35: 300 | E35: =D35*A35 -> 1200 | F35: 0.1 | G35: 120 | H35: =E35/G35 -> 10
A36: 4 | B36: Unidad | C36: Silla Ejecutiva | D36: 150 | E36: 600 | F36: 0.1 | G36: 120 | H36: =E36/G36 -> 5
A37: 3 | B37: Unidad | C37: Silla de espera en pasta | D37: 150 | E37: 450 | F37: 0.1 | G37: 120 | H37: 3.75
A38: 4 | B38: Unidad | C38: Archivadores | D38: 170 | E38: 680 | F38: 0.1 | G38: 120 | H38: 5.666666667
A39: 3 | B39: Unidad | C39: Muebles para PC | D39: 80 | E39: 240 | F39: 0.1 | G39: 120 | H39: 2
C40: Otros | H40: =SUM(H41:H42) -> 7
A41: 2 | B41: Unidad | C41: Extintor | D41: 120 | E41: =D41*A41 -> 240 | F41: 0.1 | G41: 120 | H41: 2
A42: 2 | C42: camilla de primeros auxilios | D42: 300 | E42: =D42*A42 -> 600 | F42: 0.1 | G42: 120 | H42: 5
C43: DEPRECIACION MENSUAL | H43: =+H4+H34+H40 -> 942.6666667
J53: Anexo Nº 13
J54: EVOLUCIÓN DE LOS PORCENTAJES ANUALES DE DEPRECIACIÓN DE BIENES QUE GENERAN RENTAS GRAVADAS DE TERCERA CATEGORÍA: 1990-2014 1/
L57: Porcentaje Anual de Depreciación 2/
K58: Vida | L58: 1990 | M58: 1991 | N58: 1992-1993 | O58: 1994-1995 | P58: 1996-1998 | Q58: 1999 | R58: 2000 - 2009 | S58: 2010 - 2014
J59: Bienes | K59: útil
K60: (años)
J61: - Viviendas para alquiler 3/ | M61: 0.1 | N61: 0.1 | O61: 0.1
J62: - Establecimiento de hospedaje 4/ | O62: 0.1 | P62: 0.1 | Q62: 0.1 | R62: 0.1 | S62: 0.1
J63: - Titulares de inversión turística 5/ | P63: 0.1 | Q63: 0.1
J64: - Edificios y construcciones | L64: 0.03 | M64: 0.03 | N64: 0.03 | O64: 0.03 | P64: 0.03 | Q64: 0.03 | R64: 0.03 | S64: 0.05
J65: - Ganado de trabajo y reproducción; redes de pesca 6/ | K65: 4 | L65: 0.25 | M65: 0.25 | N65: 0.25 | O65: 0.25 | P65: 0.25 | Q65: 0.25 | R65: 0.25 | S65: 0.25
J66: - Aves reproductoras (gallinas) 7/ | R66: 0.75
J67: - Vehículos de transporte terrestre (excepto ferrocarriles); hornos en general | K67: 5 | L67: 0.2 | M67: 0.2 | N67: 0.2 | O67: 0.2 | P67: 0.2 | Q67: 0.2 | R67: 0.2 | S67: 0.2
J68: - Maquinarias y equipos utilizados por las actividades minera, petrolera y de
J69: construcción; excepto muebles, enseres y equipos de oficina 8/ | K69: 5 | L69: 0.2 | M69: 0.2 | N69: 0.2 | O69: 0.2 | P69: 0.2 | Q69: 0.2 | R69: 0.2 | S69: 0.2
J70: - Equipos de procesamiento de datos 9/ | K70: 4 | N70: 0.2 | O70: 0.2 | P70: 0.2 | Q70: 0.25 | R70: 0.25 | S70: 0.25
J71: - Maquinaria y equipo adquirido a partir del 01/01/91 10/ | K71: 10 | M71: 0.2 | N71: 0.2 | O71: 0.2 | P71: 0.2 | Q71: 0.1 | R71: 0.1 | S71: 0.1
J72: - Otros bienes del activo fijo | K72: 10 | L72: 0.1 | M72: 0.1 | N72: 0.1 | O72: 0.1 | P72: 0.1 | Q72: 0.1 | R72: 0.1 | S72: 0.1

Sheet PRESUPUESTO DE GASTOS
A1: PRESUPUESTO DE GASTOS
A3: CONCEPTO | B3: 1 | C3: 2 | D3: 3 | E3: 4 | F3: 5 | G3: 6 | H3: 7 | I3: 8 | J3: 9 | K3: 10 | L3: 11 | M3: 12 | N3: 13 | O3: 14 | P3: 15 | Q3: 16 | R3: 17 | S3: 18 | T3: 19 | U3: 20 | V3: 21 | W3: 22 | X3: 23 | Y3: 24
A4: GASTOS OPERATIVOS | B4: =B13+B5 -> 7363.862493 | C4: 5837.24 | D4: 5837.24 | E4: 5837.24 | F4: 5837.24 | G4: 5837.24 | H4: 11137.24 | I4: 5837.24 | J4: 5837.24 | K4: 5837.24 | L4: 5837.24 | M4: 11137.24 | N4: 5861.080867 | O4: 5803.44 | P4: 5853.44 | Q4: 5853.44 | R4: 5853.44 | S4: 5853.44 | T4: 11153.44 | U4: 5853.44 | V4: 5853.44 | W4: 5853.44 | X4: 5853.44 | Y4: 11153.44
A5: A.- COSTOS DIRECTOS | B5: =B6+B9 -> 4787.362493 | C5: 4737.24 | D5: 4737.24 | E5: 4737.24 | F5: 4737.24 | G5: 4737.24 | H5: 10037.24 | I5: 4737.24 | J5: 4737.24 | K5: 4737.24 | L5: 4737.24 | M5: 10037.24 | N5: 4811.080867 | O5: 4753.44 | P5: 4753.44 | Q5: 4753.44 | R5: 4753.44 | S5: 4753.44 | T5: 10053.44 | U5: 4753.44 | V5: 4753.44 | W5: 4753.44 | X5: 4753.44 | Y5: 10053.44
A6: I. MATERIALES USADOS | B6: =B7 -> 158.122493 | C6: =C7 -> 108 | D6: =D7 -> 108 | E6: 108 | F6: 108 | G6: 108 | H6: 108 | I6: 108 | J6: 108 | K6: 108 | L6: 108 | M6: 108 | N6: 181.840867 | O6: 124.2 | P6: 124.2 | Q6: 124.2 | R6: 124.2 | S6: 124.2 | T6: 124.2 | U6: 124.2 | V6: 124.2 | W6: 124.2 | X6: 124.2 | Y6: 124.2
A7: Insumos | B7: ='COSTOS VARIABLES'!C5 -> 158.122493 | C7: ='COSTOS VARIABLES'!D5 -> 108 | D7: ='COSTOS VARIABLES'!E5 -> 108 | E7: ='COSTOS VARIABLES'!F5 -> 108 | F7: ='COSTOS VARIABLES'!G5 -> 108 | G7: ='COSTOS VARIABLES'!H5 -> 108 | H7: ='COSTOS VARIABLES'!I5 -> 108 | I7: ='COSTOS VARIABLES'!J5 -> 108 | J7: ='COSTOS VARIABLES'!K5 -> 108 | K7: ='COSTOS VARIABLES'!L5 -> 108 | L7: ='COSTOS VARIABLES'!M5 -> 108 | M7: ='COSTOS VARIABLES'!N5 -> 108 | N7: ='COSTOS VARIABLES'!O5 -> 181.840867 | O7: ='COSTOS VARIABLES'!P5 -> 124.2 | P7: ='COSTOS VARIABLES'!Q5 -> 124.2 | Q7: ='COSTOS VARIABLES'!R5 -> 124.2 | R7: ='COSTOS VARIABLES'!S5 -> 124.2 | S7: ='COSTOS VARIABLES'!T5 -> 124.2 | T7: ='COSTOS VARIABLES'!U5 -> 124.2 | U7: ='COSTOS VARIABLES'!V5 -> 124.2 | V7: ='COSTOS VARIABLES'!W5 -> 124.2 | W7: ='COSTOS VARIABLES'!X5 -> 124.2 | X7: ='COSTOS VARIABLES'!Y5 -> 124.2 | Y7: ='COSTOS VARIABLES'!Z5 -> 124.2
A9: II. MANO DE OBRA DIRECTA | B9: =B10+B11 -> 4629.24 | C9: =C10+C11 -> 4629.24 | D9: 4629.24 | E9: 4629.24 | F9: 4629.24 | G9: 4629.24 | H9: 9929.24 | I9: 4629.24 | J9: 4629.24 | K9: 4629.24 | L9: 4629.24 | M9: 9929.24 | N9: 4629.24 | O9: 4629.24 | P9: 4629.24 | Q9: 4629.24 | R9: 4629.24 | S9: 4629.24 | T9: 9929.24 | U9: 4629.24 | V9: 4629.24 | W9: 4629.24 | X9: 4629.24 | Y9: 9929.24
A10: Sueldos | B10: ='PLANILLA DE EMPLEADOS'!$O$11 -> 4629.24 | C10: ='PLANILLA DE EMPLEADOS'!$O$11 -> 4629.24 | D10: ='PLANILLA DE EMPLEADOS'!$O$11 -> 4629.24 | E10: ='PLANILLA DE EMPLEADOS'!$O$11 -> 4629.24 | F10: ='PLANILLA DE EMPLEADOS'!$O$11 -> 4629.24 | G10: ='PLANILLA DE EMPLEADOS'!$O$11 -> 4629.24 | H10: ='PLANILLA DE EMPLEADOS'!$O$11 -> 4629.24 | I10: ='PLANILLA DE EMPLEADOS'!$O$11 -> 4629.24 | J10: ='PLANILLA DE EMPLEADOS'!$O$11 -> 4629.24 | K10: ='PLANILLA DE EMPLEADOS'!$O$11 -> 4629.24 | L10: ='PLANILLA DE EMPLEADOS'!$O$11 -> 4629.24 | M10: ='PLANILLA DE EMPLEADOS'!$O$11 -> 4629.24 | N10: ='PLANILLA DE EMPLEADOS'!$O$11 -> 4629.24 | O10: ='PLANILLA DE EMPLEADOS'!$O$11 -> 4629.24 | P10: ='PLANILLA DE EMPLEADOS'!$O$11 -> 4629.24 | Q10: ='PLANILLA DE EMPLEADOS'!$O$11 -> 4629.24 | R10: ='PLANILLA DE EMPLEADOS'!$O$11 -> 4629.24 | S10: ='PLANILLA DE EMPLEADOS'!$O$11 -> 4629.24 | T10: ='PLANILLA DE EMPLEADOS'!$O$11 -> 4629.24 | U10: ='PLANILLA DE EMPLEADOS'!$O$11 -> 4629.24 | V10: ='PLANILLA DE EMPLEADOS'!$O$11 -> 4629.24 | W10: ='PLANILLA DE EMPLEADOS'!$O$11 -> 4629.24 | X10: ='PLANILLA DE EMPLEADOS'!$O$11 -> 4629.24 | Y10: ='PLANILLA DE EMPLEADOS'!$O$11 -> 4629.24
A11: Gratificaciones | H11: ='PLANILLA DE EMPLEADOS'!Q11 -> 5300 | M11: ='PLANILLA DE EMPLEADOS'!Q11 -> 5300 | T11: ='PLANILLA DE EMPLEADOS'!Q11 -> 5300 | Y11: ='PLANILLA DE EMPLEADOS'!Q11 -> 5300
A13: B.- COSTOS INDIRECTOS | B13: =B14+B20 -> 2576.5 | C13: =C15+C16 -> 1100 | D13: 1100 | E13: 1100 | F13: 1100 | G13: 1100 | H13: 1100 | I13: 1100 | J13: 1100 | K13: 1100 | L13: 1100 | M13: 1100 | N13: 1050 | O13: 1050 | P13: 1100 | Q13: 1100 | R13: 1100 | S13: 1100 | T13: 1100 | U13: 1100 | V13: 1100 | W13: 1100 | X13: 1100 | Y13: 1100
A14: I. INSUMOS | B14: =SUM(B15:B19) -> 1650 | C14: =SUM(C15:C19) -> 1650 | D14: 1750 | E14: 1750 | F14: 1750 | G14: 1750 | H14: 1750 | I14: 1750 | J14: 1750 | K14: 1750 | L14: 1750 | M14: 1750 | N14: 1600 | O14: 1600 | P14: 1750 | Q14: 1750 | R14: 1750 | S14: 1750 | T14: 1750 | U14: 1750 | V14: 1750 | W14: 1750 | X14: 1750 | Y14: 1750
A15: Alquiler | B15: ='GASTOS INDIRECTOS'!B6 -> 1000 | C15: =B15 -> 1000 | D15: =C15 -> 1000 | E15: 1000 | F15: 1000 | G15: 1000 | H15: 1000 | I15: 1000 | J15: 1000 | K15: 1000 | L15: 1000 | M15: 1000 | N15: 1000 | O15: 1000 | P15: 1000 | Q15: 1000 | R15: 1000 | S15: 1000 | T15: 1000 | U15: 1000 | V15: 1000 | W15: 1000 | X15: 1000 | Y15: 1000
A16: Agua | B16: ='GASTOS INDIRECTOS'!B7 -> 100 | C16: =B16 -> 100 | D16: 100 | E16: 100 | F16: 100 | G16: 100 | H16: 100 | I16: 100 | J16: 100 | K16: 100 | L16: 100 | M16: 100 | N16: 50 | O16: 50 | P16: 100 | Q16: 100 | R16: 100 | S16: 100 | T16: 100 | U16: 100 | V16: 100 | W16: 100 | X16: 100 | Y16: 100
A17: Energia Electrica | B17: ='GASTOS INDIRECTOS'!B8 -> 300 | C17: 200 | D17: 300 | E17: 300 | F17: 300 | G17: 300 | H17: 300 | I17: 300 | J17: 300 | K17: 300 | L17: 300 | M17: 300 | N17: 200 | O17: 200 | P17: 300 | Q17: 300 | R17: 300 | S17: 300 | T17: 300 | U17: 300 | V17: 300 | W17: 300 | X17: 300 | Y17: 300
A18: Celulares | B18: ='GASTOS INDIRECTOS'!B9 -> 50 | C18: 150 | D18: 150 | E18: 150 | F18: 150 | G18: 150 | H18: 150 | I18: 150 | J18: 150 | K18: 150 | L18: 150 | M18: 150 | N18: 150 | O18: 150 | P18: 150 | Q18: 150 | R18: 150 | S18: 150 | T18: 150 | U18: 150 | V18: 150 | W18: 150 | X18: 150 | Y18: 150
A19: Mantenimiento de Local | B19: 200 | C19: 200 | D19: 200 | E19: 200 | F19: 200 | G19: 200 | H19: 200 | I19: 200 | J19: 200 | K19: 200 | L19: 200 | M19: 200 | N19: 200 | O19: 200 | P19: 200 | Q19: 200 | R19: 200 | S19: 200 | T19: 200 | U19: 200 | V19: 200 | W19: 200 | X19: 200 | Y19: 200
A20: II. MANO DE OBRA INDIRECTA | B20: =SUM(B21:B22) -> 926.5 | C20: 926.5 | D20: 926.5 | E20: 926.5 | F20: 926.5 | G20: 926.5 | H20: 7726.5 | I20: 926.5 | J20: 926.5 | K20: 926.5 | L20: 926.5 | M20: 7726.5 | N20: 926.5 | O20: 926.5 | P20: 926.5 | Q20: 926.5 | R20: 926.5 | S20: 926.5 | T20: 7726.5 | U20: 926.5 | V20: 926.5 | W20: 926.5 | X20: 926.5 | Y20: 7726.5
A21: Sueldos | B21: ='PLANILLA DE EMPLEADOS'!K25 -> 926.5 | C21: =B21 -> 926.5 | D21: =C21 -> 926.5 | E21: 926.5 | F21: 926.5 | G21: 926.5 | H21: 926.5 | I21: 926.5 | J21: 926.5 | K21: 926.5 | L21: 926.5 | M21: 926.5 | N21: 926.5 | O21: 926.5 | P21: 926.5 | Q21: 926.5 | R21: 926.5 | S21: 926.5 | T21: 926.5 | U21: 926.5 | V21: 926.5 | W21: 926.5 | X21: 926.5 | Y21: 926.5
A22: Gratificaciones | H22: ='PLANILLA DE EMPLEADOS'!L11 -> 6800 | M22: =H22 -> 6800 | T22: =M22 -> 6800 | Y22: =T22 -> 6800
A24: GASTOS DE OPERACIÓN
A25: A.- GASTOS DE VENTAS | B25: =SUM(B26:B26) -> 800 | C25: 800 | D25: 800 | E25: 800 | F25: 800 | G25: 800 | H25: 800 | I25: 800 | J25: 800 | K25: 800 | L25: 800 | M25: 800 | N25: 800 | O25: 800 | P25: 800 | Q25: 800 | R25: 800 | S25: 800 | T25: 800 | U25: 800 | V25: 800 | W25: 800 | X25: 800 | Y25: 800
A26: =+'[2]GASTOS INDIRECTOS'!A13 -> Publicidad | B26: =+'GASTOS INDIRECTOS'!$B$14 -> 800 | C26: =+'GASTOS INDIRECTOS'!$B$14 -> 800 | D26: =+'GASTOS INDIRECTOS'!$B$14 -> 800 | E26: =+'GASTOS INDIRECTOS'!$B$14 -> 800 | F26: =+'GASTOS INDIRECTOS'!$B$14 -> 800 | G26: =+'GASTOS INDIRECTOS'!$B$14 -> 800 | H26: =+'GASTOS INDIRECTOS'!$B$14 -> 800 | I26: =+'GASTOS INDIRECTOS'!$B$14 -> 800 | J26: =+'GASTOS INDIRECTOS'!$B$14 -> 800 | K26: =+'GASTOS INDIRECTOS'!$B$14 -> 800 | L26: =+'GASTOS INDIRECTOS'!$B$14 -> 800 | M26: =+'GASTOS INDIRECTOS'!$B$14 -> 800 | N26: =+'GASTOS INDIRECTOS'!$B$14 -> 800 | O26: =+'GASTOS INDIRECTOS'!$B$14 -> 800 | P26: =+'GASTOS INDIRECTOS'!$B$14 -> 800 | Q26: =+'GASTOS INDIRECTOS'!$B$14 -> 800 | R26: =+'GASTOS INDIRECTOS'!$B$14 -> 800 | S26: =+'GASTOS INDIRECTOS'!$B$14 -> 800 | T26: =+'GASTOS INDIRECTOS'!$B$14 -> 800 | U26: =+'GASTOS INDIRECTOS'!$B$14 -> 800 | V26: =+'GASTOS INDIRECTOS'!$B$14 -> 800 | W26: =+'GASTOS INDIRECTOS'!$B$14 -> 800 | X26: =+'GASTOS INDIRECTOS'!$B$14 -> 800 | Y26: =+'GASTOS INDIRECTOS'!$B$14 -> 800
A28: B.- GASTOS ADMINISTRACION | B28: =B29+B30+B31 -> 1869.166667 | C28: =C29+C30+C31 -> 1869.166667 | D28: 1869.166667 | E28: 1869.166667 | F28: 1869.166667 | G28: 1869.166667 | H28: 2719.166667 | I28: 1869.166667 | J28: 1869.166667 | K28: 1869.166667 | L28: 1869.166667 | M28: 2719.166667 | N28: 1869.166667 | O28: 1869.166667 | P28: 1869.166667 | Q28: 1869.166667 | R28: 1869.166667 | S28: 1869.166667 | T28: 2719.166667 | U28: 1869.166667 | V28: 1869.166667 | W28: 1869.166667 | X28: 1869.166667 | Y28: 2719.166667
A29: Planilla de Empleados | B29: ='PLANILLA DE EMPLEADOS'!$K$25 -> 926.5 | C29: ='PLANILLA DE EMPLEADOS'!$K$25 -> 926.5 | D29: ='PLANILLA DE EMPLEADOS'!$K$25 -> 926.5 | E29: ='PLANILLA DE EMPLEADOS'!$K$25 -> 926.5 | F29: ='PLANILLA DE EMPLEADOS'!$K$25 -> 926.5 | G29: ='PLANILLA DE EMPLEADOS'!$K$25 -> 926.5 | H29: ='PLANILLA DE EMPLEADOS'!$K$25 -> 926.5 | I29: ='PLANILLA DE EMPLEADOS'!$K$25 -> 926.5 | J29: ='PLANILLA DE EMPLEADOS'!$K$25 -> 926.5 | K29: ='PLANILLA DE EMPLEADOS'!$K$25 -> 926.5 | L29: ='PLANILLA DE EMPLEADOS'!$K$25 -> 926.5 | M29: ='PLANILLA DE EMPLEADOS'!$K$25 -> 926.5 | N29: ='PLANILLA DE EMPLEADOS'!$K$25 -> 926.5 | O29: ='PLANILLA DE EMPLEADOS'!$K$25 -> 926.5 | P29: ='PLANILLA DE EMPLEADOS'!$K$25 -> 926.5 | Q29: ='PLANILLA DE EMPLEADOS'!$K$25 -> 926.5 | R29: ='PLANILLA DE EMPLEADOS'!$K$25 -> 926.5 | S29: ='PLANILLA DE EMPLEADOS'!$K$25 -> 926.5 | T29: ='PLANILLA DE EMPLEADOS'!$K$25 -> 926.5 | U29: ='PLANILLA DE EMPLEADOS'!$K$25 -> 926.5 | V29: ='PLANILLA DE EMPLEADOS'!$K$25 -> 926.5 | W29: ='PLANILLA DE EMPLEADOS'!$K$25 -> 926.5 | X29: ='PLANILLA DE EMPLEADOS'!$K$25 -> 926.5 | Y29: ='PLANILLA DE EMPLEADOS'!$K$25 -> 926.5
A30: Gratificaciones | H30: ='PLANILLA DE EMPLEADOS'!L25 -> 850 | M30: ='PLANILLA DE EMPLEADOS'!L25 -> 850 | T30: =M30 -> 850 | Y30: =T30 -> 850
A31: Depreciación | B31: ='DEPRECIACION '!H43 -> 942.6666667 | C31: =B31 -> 942.6666667 | D31: =C31 -> 942.6666667 | E31: 942.6666667 | F31: 942.6666667 | G31: 942.6666667 | H31: 942.6666667 | I31: 942.6666667 | J31: 942.6666667 | K31: 942.6666667 | L31: 942.6666667 | M31: 942.6666667 | N31: 942.6666667 | O31: 942.6666667 | P31: 942.6666667 | Q31: 942.6666667 | R31: 942.6666667 | S31: 942.6666667 | T31: 942.6666667 | U31: 942.6666667 | V31: 942.6666667 | W31: 942.6666667 | X31: 942.6666667 | Y31: 942.6666667

Sheet BALANCE GENERAL
A1: BALANCE GENERAL
A3: Estado de Situación Financiera Balance General | D3: 1ER TRIMESTRE | E3: 2DO TRIMESTRE | F3: 3ER TRIMESTRE | G3: 4TO TRIMESTRE | H3: 5TO TRIMESTRE | I3: 6TO TRIMESTRE | J3: 7MO TRIMESTRE | K3: 8VO TRIMESTRE
A4: 1 | B4: ACTIVO/
A5: 1.1 | B5: Activo Corriente/
A6: 1.1.1 | B6: CyB | C6: Caja y Bancos/ | D6: =SUM('FLUJO DE CAJA ECON FINANCI'!C17:E17) -> 46155.22428 | E6: =SUM('FLUJO DE CAJA ECON FINANCI'!F17:H17) -> 36986.13483 | F6: =SUM('FLUJO DE CAJA ECON FINANCI'!I17:K17) -> 30836.13483 | G6: =SUM('FLUJO DE CAJA ECON FINANCI'!L17:N17) -> 30836.13483 | H6: =SUM('FLUJO DE CAJA ECON FINANCI'!O17:Q17) -> 59449.9627 | I6: =SUM('FLUJO DE CAJA ECON FINANCI'!R17:T17) -> 47107.53483 | J6: =SUM('FLUJO DE CAJA ECON FINANCI'!U17:W17) -> 40957.53483 | K6: =SUM('FLUJO DE CAJA ECON FINANCI'!X17:Z17) -> 40957.53483
B7: CxCC | C7: Cuentas por Cobrar Comerciales | D7: =+('INGRESO POR VENTAS'!C30+'INGRESO POR VENTAS'!D30+'INGRESO POR VENTAS'!E30)*0.05 -> 3924.785597 | E7: =+('INGRESO POR VENTAS'!F30+'INGRESO POR VENTAS'!G30+'INGRESO POR VENTAS'!H30)*0.05 -> 3390 | F7: =+('INGRESO POR VENTAS'!I30+'INGRESO POR VENTAS'!J30+'INGRESO POR VENTAS'!K30)*0.05 -> 3390 | G7: =+('INGRESO POR VENTAS'!L30+'INGRESO POR VENTAS'!M30+'INGRESO POR VENTAS'!N30)*0.05 -> 3390 | H7: =+('INGRESO POR VENTAS'!O30+'INGRESO POR VENTAS'!P30+'INGRESO POR VENTAS'!Q30)*0.05 -> 4513.503437 | I7: =+('INGRESO POR VENTAS'!R30+'INGRESO POR VENTAS'!S30+'INGRESO POR VENTAS'!T30)*0.05 -> 3898.5 | J7: =+('INGRESO POR VENTAS'!U30+'INGRESO POR VENTAS'!V30+'INGRESO POR VENTAS'!W30)*0.05 -> 3898.5 | K7: =+('INGRESO POR VENTAS'!X30+'INGRESO POR VENTAS'!Y30+'INGRESO POR VENTAS'!Z30)*0.05 -> 3898.5
A8: 1.1.2 | B8: Exit | C8: Existencias/ | D8: ='PRESUPUESTO DE GASTOS'!B6 -> 158.122493 | E8: =D8 -> 158.122493 | F8: =E8 -> 158.122493 | G8: 158.122493 | H8: ='COSTOS VARIABLES'!O5 -> 181.840867 | I8: =H8 -> 181.840867 | J8: =I8 -> 181.840867 | K8: 181.840867
A9: 1.1 | B9: TOTAL ACTIVO CORRIENTE/ | D9: =SUM(D6:D8) -> 50238.13237 | E9: 40534.25732 | F9: 34384.25732 | G9: 34384.25732 | H9: 64145.30701 | I9: 51187.87569 | J9: 45037.87569 | K9: 45037.87569
A10: 1.2. | B10: Activo No Corriente/
A11: 1.2.1 | B11: IME | C11: Inmueble Maquinaria y Eq | D11: ='INVERSION TOTAL '!E49 -> 43409 | E11: =D11 -> 43409 | F11: 43409 | G11: 43409 | H11: 43409 | I11: 43409 | J11: 43409 | K11: 43409
A12: 1.2.2 | B12: AIN | C12: Activos Intangibles (neto)/ | D12: ='INVERSION TOTAL '!E60 -> 1398 | E12: 1398 | F12: 1398 | G12: 1398 | H12: 1398 | I12: 1398 | J12: 1398 | K12: 1398
A13: 1.2.3 | B13: DEPR | C13: Depreciacion Acumulada / | D13: ='DEPRECIACION '!H43 -> 942.6666667 | E13: 942.6666667 | F13: 942.6666667 | G13: 942.6666667 | H13: 942.6666667 | I13: 942.6666667 | J13: 942.6666667 | K13: 942.6666667
A14: 1.2 | B14: TOTAL ACTIVO NO CORRIENTE/ | D14: =(SUM(D11:D12))-D13 -> 43864.33333 | E14: 43864.33333 | F14: 43864.33333 | G14: 43864.33333 | H14: 43864.33333 | I14: 43864.33333 | J14: 43864.33333 | K14: 43864.33333
A15: 1 | B15: TOTAL ACTIVO/ | D15: =D14+D9 -> 94102.46571 | E15: 84398.59065 | F15: 78248.59065 | G15: 78248.59065 | H15: 108009.6403 | I15: 95052.20903 | J15: 88902.20903 | K15: 88902.20903
A16: 2 | B16: PASIVO Y PATRIMONIO
A17: 2.1 | B17: Pasivo Corriente/
A18: 2.1.1 | B18: TribxP | C18: Tributos por Pagar | D18: =SUM('ESTADO DE GANACIAS Y PERDIDAS'!B16:D16) -> 15270.45346 | E18: =SUM('ESTADO DE GANACIAS Y PERDIDAS'!E16:G16) -> 12540.17937 | F18: =SUM('ESTADO DE GANACIAS Y PERDIDAS'!H16:J16) -> 10970.9259 | G18: =SUM('ESTADO DE GANACIAS Y PERDIDAS'!K16:M16) -> 10991.97043 | H18: =SUM('ESTADO DE GANACIAS Y PERDIDAS'!N16:P16) -> 19342.46561 | I18: =SUM('ESTADO DE GANACIAS Y PERDIDAS'!Q16:S16) -> 15661.39069 | J18: =SUM('ESTADO DE GANACIAS Y PERDIDAS'!T16:V16) -> 14093.35517 | K18: =SUM('ESTADO DE GANACIAS Y PERDIDAS'!W16:Y16) -> 14115.63514
A19: 2.1.2 | B19: CPPC | C19: Cuentas por Pagar Comerciales/ | D19: 0 | E19: 0 | F19: 0 | G19: 0 | H19: 0 | I19: 0 | J19: 0 | K19: 0
A20: 2.1.3 | B20: CPPER | C20: Cuentas por Pagar a Entidades Financieras/ | D20: ='AMORTIZACION DE CREDITO'!D16+'AMORTIZACION DE CREDITO'!D17+'AMORTIZACION DE CREDITO'!D18 -> 4746.287265 | E20: ='AMORTIZACION DE CREDITO'!D19+'AMORTIZACION DE CREDITO'!D20+'AMORTIZACION DE CREDITO'!D21 -> 4814.463081 | F20: ='AMORTIZACION DE CREDITO'!D22+'AMORTIZACION DE CREDITO'!D23+'AMORTIZACION DE CREDITO'!D24 -> 4883.618177 | G20: ='AMORTIZACION DE CREDITO'!D25+'AMORTIZACION DE CREDITO'!D26+'AMORTIZACION DE CREDITO'!D27 -> 4953.766618 | H20: ='AMORTIZACION DE CREDITO'!D28+'AMORTIZACION DE CREDITO'!D29+'AMORTIZACION DE CREDITO'!D30 -> 5024.922674 | I20: ='AMORTIZACION DE CREDITO'!D31+'AMORTIZACION DE CREDITO'!D32+'AMORTIZACION DE CREDITO'!D33 -> 5097.100818 | J20: ='AMORTIZACION DE CREDITO'!D34+'AMORTIZACION DE CREDITO'!D35+'AMORTIZACION DE CREDITO'!D36 -> 5170.31573 | K20: ='AMORTIZACION DE CREDITO'!D37+'AMORTIZACION DE CREDITO'!D38+'AMORTIZACION DE CREDITO'!D39 -> 5244.582304
A21: 2.1 | B21: TOTAL PASIVO CORRIENTE/ | D21: =SUM(D18:D20) -> 20016.74073 | E21: 17354.64245 | F21: 15854.54408 | G21: 15945.73705 | H21: 24367.38829 | I21: 20758.49151 | J21: 19263.6709 | K21: 19360.21744
A22: 2.2 | B22: Pasivo No Corriente/
A23: 2.2.1 | B23: CPPER | C23: Cuentas por Pagar a Entidades Financieras/ | D23: ='AMORTIZACION DE CREDITO'!C18 -> 35188.7694 | E23: ='AMORTIZACION DE CREDITO'!C21 -> 30374.30632 | F23: ='AMORTIZACION DE CREDITO'!C24 -> 25490.68814 | G23: ='AMORTIZACION DE CREDITO'!C27 -> 20536.92153 | H23: ='AMORTIZACION DE CREDITO'!C30 -> 15511.99885 | I23: ='AMORTIZACION DE CREDITO'!C33 -> 10414.89803 | J23: ='AMORTIZACION DE CREDITO'!C36 -> 5244.582304 | K23: ='[2]AMORTIZACION DE CREDITO'!C39 -> -3.433342499e-10
A24: 2.2 | B24: TOTAL PASIVO NO CORRIENTE/ | D24: =D23 -> 35188.7694 | E24: 30374.30632 | F24: 25490.68814 | G24: 20536.92153 | H24: 15511.99885 | I24: 10414.89803 | J24: 5244.582304 | K24: -3.433342499e-10
A25: 2 | B25: TOTAL PASIVO/ | D25: =+D21+D24 -> 55205.51013 | E25: 47728.94877 | F25: 41345.23222 | G25: 36482.65858 | H25: 39879.38714 | I25: 31173.38954 | J25: 24508.2532 | K25: 19360.21744
A26: 2.3 | B26: PATRIMONIO NETO/
A27: 2.4.1 | B27: Capi | C27: Capital/ | D27: =FINANCIAMIENTO!D5 -> 15000 | E27: =D27 -> 15000 | F27: 15000 | G27: 15000 | H27: 15000 | I27: 15000 | J27: 15000 | K27: 15000
A28: 2.4.6 | B28: Util | C28: Utilidad del Ejercicio | D28: ='ESTADO DE GANACIAS Y PERDIDAS'!B17+'ESTADO DE GANACIAS Y PERDIDAS'!C17+'ESTADO DE GANACIAS Y PERDIDAS'!D17 -> 35631.05808 | E28: ='ESTADO DE GANACIAS Y PERDIDAS'!E17+'ESTADO DE GANACIAS Y PERDIDAS'!F17+'ESTADO DE GANACIAS Y PERDIDAS'!G17 -> 29260.41853 | F28: ='ESTADO DE GANACIAS Y PERDIDAS'!H17+'ESTADO DE GANACIAS Y PERDIDAS'!I17+'ESTADO DE GANACIAS Y PERDIDAS'!J17 -> 25598.8271 | G28: ='ESTADO DE GANACIAS Y PERDIDAS'!K17+'ESTADO DE GANACIAS Y PERDIDAS'!L17+'ESTADO DE GANACIAS Y PERDIDAS'!M17 -> 25647.93101 | H28: ='ESTADO DE GANACIAS Y PERDIDAS'!N17+'ESTADO DE GANACIAS Y PERDIDAS'!O17+'ESTADO DE GANACIAS Y PERDIDAS'!P17 -> 45132.41976 | I28: ='ESTADO DE GANACIAS Y PERDIDAS'!Q17+'ESTADO DE GANACIAS Y PERDIDAS'!R17+'ESTADO DE GANACIAS Y PERDIDAS'!S17 -> 36543.24495 | J28: ='ESTADO DE GANACIAS Y PERDIDAS'!T17+'ESTADO DE GANACIAS Y PERDIDAS'!U17+'ESTADO DE GANACIAS Y PERDIDAS'!V17 -> 32884.49539 | K28: ='ESTADO DE GANACIAS Y PERDIDAS'!W17+'ESTADO DE GANACIAS Y PERDIDAS'!X17+'ESTADO DE GANACIAS Y PERDIDAS'!Y17 -> 32936.48199
A29: 2.4.7 | B29: ORC | C29: Utilidad de Trimestres pasados | D29: 0 | E29: =D28+D29 -> 35631.05808 | F29: 64891.47662 | G29: 90490.30372 | H29: 116138.2347 | I29: 161270.6545 | J29: 197813.8994 | K29: 230698.3948
A30: 2.4 | B30: TOTAL PATRIMONIO NETO/ | D30: =SUM(D27:D29) -> 50631.05808 | E30: 79891.47662 | F30: 105490.3037 | G30: 131138.2347 | H30: 176270.6545 | I30: 212813.8994 | J30: 245698.3948 | K30: 278634.8768
A31: 2.5 | B31: TOTAL PASIVO Y PATRIMONIO NETO/ | D31: =D30+D25 -> 105836.5682 | E31: 127620.4254 | F31: 146835.5359 | G31: 167620.8933 | H31: 216150.0416 | I31: 243987.289 | J31: 270206.648 | K31: 297995.0943

Sheet COSTO BENEFICIO
A1: EVALUACION COSTO - BENEFICIO
A3: MESES | B3: INGRESOS | C3: COSTOS | D3: =6/100 -> 0.06 | E3: INGRESOS ACTUALIZADOS | F3: COSTOS ACTUALIZADOS
A4: 0 | C4: ='FLUJO DE CAJA ECON FINANCI'!B6 -> 54935.05667 | D4: =1/(1+$D$3)^A4 -> 1 | E4: =B4*D4 -> 0 | F4: =C4*D4 -> 54935.05667
A5: 1 | B5: ='FLUJO DE CAJA ECON FINANCI'!C4 -> 33295.71195 | C5: ='FLUJO DE CAJA ECON FINANCI'!C6 -> 10033.02916 | D5: 0.9433962264 | E5: 31411.04901 | F5: 9465.121849
A6: 2 | B6: ='FLUJO DE CAJA ECON FINANCI'!D4 -> 22600 | C6: ='FLUJO DE CAJA ECON FINANCI'!D6 -> 8506.406667 | D6: 0.88999644 | E6: 20113.91954 | F6: 7570.671651
A7: 3 | B7: ='FLUJO DE CAJA ECON FINANCI'!E4 -> 22600 | C7: ='FLUJO DE CAJA ECON FINANCI'!E6 -> 8506.406667 | D7: 0.839619283 | E7: 18975.3958 | F7: 7142.143067
A8: 4 | B8: ='FLUJO DE CAJA ECON FINANCI'!F4 -> 22600 | C8: ='FLUJO DE CAJA ECON FINANCI'!F6 -> 8506.406667 | D8: 0.7920936632 | E8: 17901.31679 | F8: 6737.870818
A9: 5 | B9: ='FLUJO DE CAJA ECON FINANCI'!G4 -> 22600 | C9: ='FLUJO DE CAJA ECON FINANCI'!G6 -> 8506.406667 | D9: 0.7472581729 | E9: 16888.03471 | F9: 6356.481903
A10: 6 | B10: ='FLUJO DE CAJA ECON FINANCI'!H4 -> 22600 | C10: ='FLUJO DE CAJA ECON FINANCI'!H6 -> 8506.406667 | D10: 0.7049605404 | E10: 15932.10821 | F10: 5996.681041
A11: 7 | B11: ='FLUJO DE CAJA ECON FINANCI'!I4 -> 22600 | C11: ='FLUJO DE CAJA ECON FINANCI'!I6 -> 14656.40667 | D11: 0.6650571136 | E11: 15030.29077 | F11: 9747.347514
A12: 8 | B12: ='FLUJO DE CAJA ECON FINANCI'!J4 -> 22600 | C12: ='FLUJO DE CAJA ECON FINANCI'!J6 -> 8506.406667 | D12: 0.6274123713 | E12: 14179.51959 | F12: 5337.024778
A13: 9 | B13: ='FLUJO DE CAJA ECON FINANCI'!K4 -> 22600 | C13: ='FLUJO DE CAJA ECON FINANCI'!K6 -> 8506.406667 | D13: 0.5918984635 | E13: 13376.90528 | F13: 5034.929036
A14: 10 | B14: ='FLUJO DE CAJA ECON FINANCI'!L4 -> 22600 | C14: ='FLUJO DE CAJA ECON FINANCI'!L6 -> 8506.406667 | D14: 0.5583947769 | E14: 12619.72196 | F14: 4749.933053
A15: 11 | B15: ='FLUJO DE CAJA ECON FINANCI'!M4 -> 22600 | C15: ='FLUJO DE CAJA ECON FINANCI'!M6 -> 8506.406667 | D15: 0.5267875254 | E15: 11905.39807 | F15: 4481.068918
A16: 12 | B16: ='FLUJO DE CAJA ECON FINANCI'!N4 -> 22600 | C16: ='FLUJO DE CAJA ECON FINANCI'!N6 -> 14656.40667 | D16: 0.4969693636 | E16: 11231.50762 | F16: 7283.785093
A17: 13 | B17: ='FLUJO DE CAJA ECON FINANCI'!O4 -> 38290.06874 | C17: ='FLUJO DE CAJA ECON FINANCI'!O6 -> 8530.247534 | D17: 0.4688390222 | E17: 17951.87839 | F17: 3999.312913
A18: 14 | B18: ='FLUJO DE CAJA ECON FINANCI'!P4 -> 25990 | C18: ='FLUJO DE CAJA ECON FINANCI'!P6 -> 8472.606667 | D18: 0.4423009644 | E18: 11495.40206 | F18: 3747.442099
A19: 15 | B19: ='FLUJO DE CAJA ECON FINANCI'!Q4 -> 25990 | C19: ='FLUJO DE CAJA ECON FINANCI'!Q6 -> 8522.606667 | D19: 0.4172650607 | E19: 10844.71893 | F19: 3556.185988
A20: 16 | B20: ='FLUJO DE CAJA ECON FINANCI'!R4 -> 25990 | C20: ='FLUJO DE CAJA ECON FINANCI'!R6 -> 8522.606667 | D20: 0.3936462837 | E20: 10230.86691 | F20: 3354.892442
A21: 17 | B21: ='FLUJO DE CAJA ECON FINANCI'!S4 -> 25990 | C21: ='FLUJO DE CAJA ECON FINANCI'!S6 -> 8522.606667 | D21: 0.3713644186 | E21: 9651.761239 | F21: 3164.99287
A22: 18 | B22: ='FLUJO DE CAJA ECON FINANCI'!T4 -> 25990 | C22: ='FLUJO DE CAJA ECON FINANCI'!T6 -> 8522.606667 | D22: 0.3503437911 | E22: 9105.435131 | F22: 2985.84233
A23: 19 | B23: ='FLUJO DE CAJA ECON FINANCI'!U4 -> 25990 | C23: ='FLUJO DE CAJA ECON FINANCI'!U6 -> 14672.60667 | D23: 0.3305130105 | E23: 8590.033143 | F23: 4849.487401
A24: 20 | B24: ='FLUJO DE CAJA ECON FINANCI'!V4 -> 25990 | C24: ='FLUJO DE CAJA ECON FINANCI'!V6 -> 8522.606667 | D24: 0.3118047269 | E24: 8103.804852 | F24: 2657.389044
A25: 21 | B25: ='FLUJO DE CAJA ECON FINANCI'!W4 -> 25990 | C25: ='FLUJO DE CAJA ECON FINANCI'!W6 -> 8522.606667 | D25: 0.2941554027 | E25: 7645.098917 | F25: 2506.970796
A26: 22 | B26: ='FLUJO DE CAJA ECON FINANCI'!X4 -> 25990 | C26: ='FLUJO DE CAJA ECON FINANCI'!X6 -> 8522.606667 | D26: 0.2775050969 | E26: 7212.357469 | F26: 2365.066789
A27: 23 | B27: ='FLUJO DE CAJA ECON FINANCI'!Y4 -> 25990 | C27: ='FLUJO DE CAJA ECON FINANCI'!Y6 -> 8522.606667 | D27: 0.2617972612 | E27: 6804.110819 | F27: 2231.195084
A28: 24 | B28: ='FLUJO DE CAJA ECON FINANCI'!Z4 -> 25990 | C28: ='FLUJO DE CAJA ECON FINANCI'!Z6 -> 14672.60667 | D28: 0.2469785483 | E28: 6418.972471 | F28: 3623.819095
E29: =SUM(E4:E28) -> 313619.6077 | F29: =SUM(F4:F28) -> 173880.7122
E30: B/C | F30: =E29/F29 -> 1.803648051 | G30: Es la division de las actualizaciones de los ingresos y costos del proyecto
G31: si el resultado es mayor a 1 el proyecto es viable.

Sheet FLUJO DE CAJA ECON FINANCI
A1: FLUJO ECONÓMICO ‑ FINANCIERO
Y2: COK | Z2: 0.06
A3: CONCEPTO | C3: 1 | D3: 2 | E3: 3 | F3: 4 | G3: 5 | H3: 6 | I3: 7 | J3: 8 | K3: 9 | L3: 10 | M3: 11 | N3: 12 | O3: 13 | P3: 14 | Q3: 15 | R3: 16 | S3: 17 | T3: 18 | U3: 19 | V3: 20 | W3: 21 | X3: 22 | Y3: 23 | Z3: 24
A4: INGRESOS | C4: ='ESTADO DE GANACIAS Y PERDIDAS'!B4 -> 33295.71195 | D4: ='ESTADO DE GANACIAS Y PERDIDAS'!C4 -> 22600 | E4: ='ESTADO DE GANACIAS Y PERDIDAS'!D4 -> 22600 | F4: ='ESTADO DE GANACIAS Y PERDIDAS'!E4 -> 22600 | G4: ='ESTADO DE GANACIAS Y PERDIDAS'!F4 -> 22600 | H4: ='ESTADO DE GANACIAS Y PERDIDAS'!G4 -> 22600 | I4: ='ESTADO DE GANACIAS Y PERDIDAS'!H4 -> 22600 | J4: ='ESTADO DE GANACIAS Y PERDIDAS'!I4 -> 22600 | K4: ='ESTADO DE GANACIAS Y PERDIDAS'!J4 -> 22600 | L4: ='ESTADO DE GANACIAS Y PERDIDAS'!K4 -> 22600 | M4: ='ESTADO DE GANACIAS Y PERDIDAS'!L4 -> 22600 | N4: ='ESTADO DE GANACIAS Y PERDIDAS'!M4 -> 22600 | O4: ='ESTADO DE GANACIAS Y PERDIDAS'!N4 -> 38290.06874 | P4: ='ESTADO DE GANACIAS Y PERDIDAS'!O4 -> 25990 | Q4: ='ESTADO DE GANACIAS Y PERDIDAS'!P4 -> 25990 | R4: ='ESTADO DE GANACIAS Y PERDIDAS'!Q4 -> 25990 | S4: ='ESTADO DE GANACIAS Y PERDIDAS'!R4 -> 25990 | T4: ='ESTADO DE GANACIAS Y PERDIDAS'!S4 -> 25990 | U4: ='ESTADO DE GANACIAS Y PERDIDAS'!T4 -> 25990 | V4: ='ESTADO DE GANACIAS Y PERDIDAS'!U4 -> 25990 | W4: ='ESTADO DE GANACIAS Y PERDIDAS'!V4 -> 25990 | X4: ='ESTADO DE GANACIAS Y PERDIDAS'!W4 -> 25990 | Y4: ='ESTADO DE GANACIAS Y PERDIDAS'!X4 -> 25990 | Z4: ='ESTADO DE GANACIAS Y PERDIDAS'!Y4 -> 25990
A6: COSTOS | B6: =B7+B8+B9+B10 -> 54935.05667 | C6: =SUM(C8:C10) -> 10033.02916 | D6: 8506.406667 | E6: 8506.406667 | F6: 8506.406667 | G6: 8506.406667 | H6: 8506.406667 | I6: 14656.40667 | J6: 8506.406667 | K6: 8506.406667 | L6: 8506.406667 | M6: 8506.406667 | N6: 14656.40667 | O6: 8530.247534 | P6: 8472.606667 | Q6: 8522.606667 | R6: 8522.606667 | S6: 8522.606667 | T6: 8522.606667 | U6: 14672.60667 | V6: 8522.606667 | W6: 8522.606667 | X6: 8522.606667 | Y6: 8522.606667 | Z6: 14672.60667
A7: Inversión | B7: ='INVERSION TOTAL '!E69 -> 54935.05667
A8: Costos de Producción (1) | C8: ='PRESUPUESTO DE GASTOS'!B4 -> 7363.862493 | D8: ='PRESUPUESTO DE GASTOS'!C4 -> 5837.24 | E8: ='PRESUPUESTO DE GASTOS'!D4 -> 5837.24 | F8: ='PRESUPUESTO DE GASTOS'!E4 -> 5837.24 | G8: ='PRESUPUESTO DE GASTOS'!F4 -> 5837.24 | H8: ='PRESUPUESTO DE GASTOS'!G4 -> 5837.24 | I8: ='PRESUPUESTO DE GASTOS'!H4 -> 11137.24 | J8: ='PRESUPUESTO DE GASTOS'!I4 -> 5837.24 | K8: ='PRESUPUESTO DE GASTOS'!J4 -> 5837.24 | L8: ='PRESUPUESTO DE GASTOS'!K4 -> 5837.24 | M8: ='PRESUPUESTO DE GASTOS'!L4 -> 5837.24 | N8: ='PRESUPUESTO DE GASTOS'!M4 -> 11137.24 | O8: ='PRESUPUESTO DE GASTOS'!N4 -> 5861.080867 | P8: ='PRESUPUESTO DE GASTOS'!O4 -> 5803.44 | Q8: ='PRESUPUESTO DE GASTOS'!P4 -> 5853.44 | R8: ='PRESUPUESTO DE GASTOS'!Q4 -> 5853.44 | S8: ='PRESUPUESTO DE GASTOS'!R4 -> 5853.44 | T8: ='PRESUPUESTO DE GASTOS'!S4 -> 5853.44 | U8: ='PRESUPUESTO DE GASTOS'!T4 -> 11153.44 | V8: ='PRESUPUESTO DE GASTOS'!U4 -> 5853.44 | W8: ='PRESUPUESTO DE GASTOS'!V4 -> 5853.44 | X8: ='PRESUPUESTO DE GASTOS'!W4 -> 5853.44 | Y8: ='PRESUPUESTO DE GASTOS'!X4 -> 5853.44 | Z8: ='PRESUPUESTO DE GASTOS'!Y4 -> 11153.44
A9: Gastos de Ventas | C9: ='PRESUPUESTO DE GASTOS'!B25 -> 800 | D9: ='PRESUPUESTO DE GASTOS'!C25 -> 800 | E9: ='PRESUPUESTO DE GASTOS'!D25 -> 800 | F9: ='PRESUPUESTO DE GASTOS'!E25 -> 800 | G9: ='PRESUPUESTO DE GASTOS'!F25 -> 800 | H9: ='PRESUPUESTO DE GASTOS'!G25 -> 800 | I9: ='PRESUPUESTO DE GASTOS'!H25 -> 800 | J9: ='PRESUPUESTO DE GASTOS'!I25 -> 800 | K9: ='PRESUPUESTO DE GASTOS'!J25 -> 800 | L9: ='PRESUPUESTO DE GASTOS'!K25 -> 800 | M9: ='PRESUPUESTO DE GASTOS'!L25 -> 800 | N9: ='PRESUPUESTO DE GASTOS'!M25 -> 800 | O9: ='PRESUPUESTO DE GASTOS'!N25 -> 800 | P9: ='PRESUPUESTO DE GASTOS'!O25 -> 800 | Q9: ='PRESUPUESTO DE GASTOS'!P25 -> 800 | R9: ='PRESUPUESTO DE GASTOS'!Q25 -> 800 | S9: ='PRESUPUESTO DE GASTOS'!R25 -> 800 | T9: ='PRESUPUESTO DE GASTOS'!S25 -> 800 | U9: ='PRESUPUESTO DE GASTOS'!T25 -> 800 | V9: ='PRESUPUESTO DE GASTOS'!U25 -> 800 | W9: ='PRESUPUESTO DE GASTOS'!V25 -> 800 | X9: ='PRESUPUESTO DE GASTOS'!W25 -> 800 | Y9: ='PRESUPUESTO DE GASTOS'!X25 -> 800 | Z9: ='PRESUPUESTO DE GASTOS'!Y25 -> 800
A10: Gastos Administrativos (2) | C10: ='PRESUPUESTO DE GASTOS'!B28 -> 1869.166667 | D10: ='PRESUPUESTO DE GASTOS'!C28 -> 1869.166667 | E10: ='PRESUPUESTO DE GASTOS'!D28 -> 1869.166667 | F10: ='PRESUPUESTO DE GASTOS'!E28 -> 1869.166667 | G10: ='PRESUPUESTO DE GASTOS'!F28 -> 1869.166667 | H10: ='PRESUPUESTO DE GASTOS'!G28 -> 1869.166667 | I10: ='PRESUPUESTO DE GASTOS'!H28 -> 2719.166667 | J10: ='PRESUPUESTO DE GASTOS'!I28 -> 1869.166667 | K10: ='PRESUPUESTO DE GASTOS'!J28 -> 1869.166667 | L10: ='PRESUPUESTO DE GASTOS'!K28 -> 1869.166667 | M10: ='PRESUPUESTO DE GASTOS'!L28 -> 1869.166667 | N10: ='PRESUPUESTO DE GASTOS'!M28 -> 2719.166667 | O10: ='PRESUPUESTO DE GASTOS'!N28 -> 1869.166667 | P10: ='PRESUPUESTO DE GASTOS'!O28 -> 1869.166667 | Q10: ='PRESUPUESTO DE GASTOS'!P28 -> 1869.166667 | R10: ='PRESUPUESTO DE GASTOS'!Q28 -> 1869.166667 | S10: ='PRESUPUESTO DE GASTOS'!R28 -> 1869.166667 | T10: ='PRESUPUESTO DE GASTOS'!S28 -> 1869.166667 | U10: ='PRESUPUESTO DE GASTOS'!T28 -> 2719.166667 | V10: ='PRESUPUESTO DE GASTOS'!U28 -> 1869.166667 | W10: ='PRESUPUESTO DE GASTOS'!V28 -> 1869.166667 | X10: ='PRESUPUESTO DE GASTOS'!W28 -> 1869.166667 | Y10: ='PRESUPUESTO DE GASTOS'!X28 -> 1869.166667 | Z10: ='PRESUPUESTO DE GASTOS'!Y28 -> 2719.166667
A12: FLUJO ECONÓMICO | B12: =B4-B6 -> -54935.05667 | C12: 23262.68279 | D12: 14093.59333 | E12: 14093.59333 | F12: 14093.59333 | G12: 14093.59333 | H12: 14093.59333 | I12: 7943.593333 | J12: 14093.59333 | K12: 14093.59333 | L12: 14093.59333 | M12: 14093.59333 | N12: 7943.593333 | O12: 29759.82121 | P12: 17517.39333 | Q12: 17467.39333 | R12: 17467.39333 | S12: 17467.39333 | T12: 17467.39333 | U12: 11317.39333 | V12: 17467.39333 | W12: 17467.39333 | X12: 17467.39333 | Y12: 17467.39333 | Z12: 11317.39333
A13: Préstamo | B13: ='AMORTIZACION DE CREDITO'!C3 -> 39935.05667
A14: Amortización | C14: ='AMORTIZACION DE CREDITO'!D16 -> 1574.580541 | D14: ='AMORTIZACION DE CREDITO'!D17 -> 1582.083837 | E14: ='AMORTIZACION DE CREDITO'!D18 -> 1589.622888 | F14: ='AMORTIZACION DE CREDITO'!D19 -> 1597.197864 | G14: ='AMORTIZACION DE CREDITO'!D20 -> 1604.808937 | H14: ='AMORTIZACION DE CREDITO'!D21 -> 1612.45628 | I14: ='AMORTIZACION DE CREDITO'!D22 -> 1620.140063 | J14: ='AMORTIZACION DE CREDITO'!D23 -> 1627.860462 | K14: ='AMORTIZACION DE CREDITO'!D24 -> 1635.617651 | L14: ='AMORTIZACION DE CREDITO'!D25 -> 1643.411805 | M14: ='AMORTIZACION DE CREDITO'!D26 -> 1651.2431 | N14: ='AMORTIZACION DE CREDITO'!D27 -> 1659.111713 | O14: ='AMORTIZACION DE CREDITO'!D28 -> 1667.017823 | P14: ='AMORTIZACION DE CREDITO'!D29 -> 1674.961607 | Q14: ='AMORTIZACION DE CREDITO'!D30 -> 1682.943245 | R14: ='AMORTIZACION DE CREDITO'!D31 -> 1690.962918 | S14: ='AMORTIZACION DE CREDITO'!D32 -> 1699.020807 | T14: ='AMORTIZACION DE CREDITO'!D33 -> 1707.117093 | U14: ='AMORTIZACION DE CREDITO'!D34 -> 1715.251961 | V14: ='AMORTIZACION DE CREDITO'!D35 -> 1723.425594 | W14: ='AMORTIZACION DE CREDITO'!D36 -> 1731.638176 | X14: ='AMORTIZACION DE CREDITO'!D37 -> 1739.889893 | Y14: ='AMORTIZACION DE CREDITO'!D38 -> 1748.180932 | Z14: ='AMORTIZACION DE CREDITO'!D39 -> 1756.51148
A15: Intereses | C15: =+'ESTADO DE GANACIAS Y PERDIDAS'!B13 -> 190.3011838 | D15: =+'ESTADO DE GANACIAS Y PERDIDAS'!C13 -> 182.7978881 | E15: =+'ESTADO DE GANACIAS Y PERDIDAS'!D13 -> 175.2588371 | F15: =+'ESTADO DE GANACIAS Y PERDIDAS'!E13 -> 167.6838606 | G15: =+'ESTADO DE GANACIAS Y PERDIDAS'!F13 -> 160.0727872 | H15: =+'ESTADO DE GANACIAS Y PERDIDAS'!G13 -> 152.4254451 | I15: =+'ESTADO DE GANACIAS Y PERDIDAS'!H13 -> 144.7416614 | J15: =+'ESTADO DE GANACIAS Y PERDIDAS'!I13 -> 137.0212624 | K15: =+'ESTADO DE GANACIAS Y PERDIDAS'!J13 -> 129.2640736 | L15: =+'ESTADO DE GANACIAS Y PERDIDAS'!K13 -> 121.4699198 | M15: =+'ESTADO DE GANACIAS Y PERDIDAS'!L13 -> 113.6386247 | N15: =+'ESTADO DE GANACIAS Y PERDIDAS'!M13 -> 105.7700115 | O15: =+'ESTADO DE GANACIAS Y PERDIDAS'!N13 -> 97.86390215 | P15: =+'ESTADO DE GANACIAS Y PERDIDAS'!O13 -> 89.92011813 | Q15: =+'ESTADO DE GANACIAS Y PERDIDAS'!P13 -> 81.93847986 | R15: =+'ESTADO DE GANACIAS Y PERDIDAS'!Q13 -> 73.91880696 | S15: =+'ESTADO DE GANACIAS Y PERDIDAS'!R13 -> 65.86091818 | T15: =+'ESTADO DE GANACIAS Y PERDIDAS'!S13 -> 57.76463141 | U15: =+'ESTADO DE GANACIAS Y PERDIDAS'!T13 -> 49.62976368 | V15: =+'ESTADO DE GANACIAS Y PERDIDAS'!U13 -> 41.45613114 | W15: =+'ESTADO DE GANACIAS Y PERDIDAS'!V13 -> 33.24354907 | X15: =+'ESTADO DE GANACIAS Y PERDIDAS'!W13 -> 24.99183185 | Y15: =+'ESTADO DE GANACIAS Y PERDIDAS'!X13 -> 16.700793 | Z15: =+'ESTADO DE GANACIAS Y PERDIDAS'!Y13 -> 8.370245139
A17: FLUJO FINANCIERO | B17: =B12+B13 -> -15000 | C17: =C12-C14-C15 -> 21497.80107 | D17: 12328.71161 | E17: 12328.71161 | F17: 12328.71161 | G17: 12328.71161 | H17: 12328.71161 | I17: 6178.711609 | J17: 12328.71161 | K17: 12328.71161 | L17: 12328.71161 | M17: 12328.71161 | N17: 6178.711609 | O17: 27994.93948 | P17: 15752.51161 | Q17: 15702.51161 | R17: 15702.51161 | S17: 15702.51161 | T17: 15702.51161 | U17: 9552.511609 | V17: 15702.51161 | W17: 15702.51161 | X17: 15702.51161 | Y17: 15702.51161 | Z17: 9552.511609
A18: Aporte propio | B18: =FINANCIAMIENTO!D5 -> 15000
A19: Saldo acumulado | B19: 0 | C19: =C17 -> 21497.80107 | D19: =C19+D17 -> 33826.51267 | E19: 46155.22428 | F19: 58483.93589 | G19: 70812.6475 | H19: 83141.35911 | I19: 89320.07072 | J19: 101648.7823 | K19: 113977.4939 | L19: 126306.2055 | M19: 138634.9172 | N19: 144813.6288 | O19: 172808.5682 | P19: 188561.0799 | Q19: 204263.5915 | R19: 219966.1031 | S19: 235668.6147 | T19: 251371.1263 | U19: 260923.6379 | V19: 276626.1495 | W19: 292328.6611 | X19: 308031.1727 | Y19: 323733.6843 | Z19: 333286.1959
A20: TIRF | B20: =IRR(B17:Z17) -> 1.146141947
A21: VANF | B21: =NPV(Z2,B17:Z17) -> 148607.5995
A22: TIR | B22: =IRR(B12:Z12) -> 0.2914530742
A23: VAN | B23: =NPV(Z2,B12:Z12) -> 131829.1466

Sheet PUNTO DE EQUILIBRIO
A4: Linea de Comercializacion | B4: SERVICIOS AL MES (pacientes) | C4: % Participacion | D4: Precio Venta | E4: Costo variable unitario | F4: Margen | G4: Margen Ponderado | I4: PUNTO DE EQUILIBRIO en Unidades | K4: PUNTO DE EQUILIBRIO en soles
A5: PROGRAMA DE REHABILITACION CARDIACA | B5: ='INGRESO POR VENTAS'!B4 -> 25.71097448 | C5: =+B5/$B$14 -> 0.0487804878 | D5: 60 | E5: =C26 -> 3.331041667 | F5: =D5-E5 -> 56.66895833 | G5: =C5*F5 -> 2.764339431 | I5: =($B$18/$G$14)*C5 -> 9.411335621 | K5: =I5*D5 -> 564.6801373
A6: PROGRAMA DE PREVENCION CARDIOVASCULAR: PRIMARIA Y SECUNDARIA. | B6: ='INGRESO POR VENTAS'!B5 -> 38.56646172 | C6: 0.07317073171 | D6: 60 | E6: =D26 -> 2.846666667 | F6: =D6-E6 -> 57.15333333 | G6: =C6*F6 -> 4.18195122 | I6: 14.11700343 | K6: =I6*D6 -> 847.0202059
A7: FISIOTERARIA EN SALUD OCUPACIONAL | B7: ='INGRESO POR VENTAS'!B6 -> 64.2774362 | C7: 0.1219512195 | D7: 60 | E7: =E26 -> 2.846666667 | F7: 57.15333333 | G7: 6.969918699 | I7: 23.52833905 | K7: 1411.700343
A8: REHABILITACION DEPORTIVA. | B8: ='INGRESO POR VENTAS'!B7 -> 102.8438979 | C8: 0.1951219512 | D8: 60 | E8: =F26 -> 2.846666667 | F8: 57.15333333 | G8: 11.15186992 | I8: 37.64534249 | K8: 2258.720549
A9: PROGRAMA DE FISIOTERAPIA | B9: ='INGRESO POR VENTAS'!B8 -> 89.98841068 | C9: 0.1707317073 | D9: 60 | E9: =G26 -> 2.846666667 | F9: 57.15333333 | G9: 9.757886179 | I9: 32.93967467 | K9: 1976.38048
A10: TRATAMIENTO DE FISIOTERAPIA INTEGRAL. | B10: ='INGRESO POR VENTAS'!B9 -> 77.13292344 | C10: 0.1463414634 | D10: 80 | E10: =H26 -> 24.84666667 | F10: 55.15333333 | G10: 8.071219512 | I10: 28.23400686 | K10: 2258.720549
A11: REHABILITACIÓN CON HIDROTERAPIA | B11: ='INGRESO POR VENTAS'!B10 -> 51.42194896 | C11: 0.09756097561 | D11: 80 | E11: =I26 -> 24.84666667 | F11: 55.15333333 | G11: 5.380813008 | I11: 18.82267124 | K11: 1505.813699
A12: REHABILITACIÓN PACIENTES QUEMADOS | B12: ='INGRESO POR VENTAS'!B11 -> 38.56646172 | C12: 0.07317073171 | D12: 60 | E12: =J26 -> 2.846666667 | F12: 57.15333333 | G12: 4.18195122 | I12: 14.11700343 | K12: 847.0202059
A13: TERAPIA PSICOMOTRIZ EN NIÑOS | B13: ='INGRESO POR VENTAS'!B12 -> 38.56646172 | C13: 0.07317073171 | D13: 60 | E13: =K26 -> 2.846666667 | F13: 57.15333333 | G13: 4.18195122 | I13: 14.11700343 | K13: 847.0202059
B14: =SUM(B5:B13) -> 527.0749768 | C14: 1 | G14: =SUM(G5:G13) -> 56.64190041 | I14: =SUM(I5:I13) -> 192.9323802 | K14: =SUM(K5:K13) -> 12517.07638
A17: Nuevos Soles | B17: MES
A18: COSTOS FIJOS TOTALES | B18: ='COSTOS FIJOS'!F13 -> 10928.05667
A19: MARGEN PONDERADO | B19: =G14 -> 56.64190041
A22: PUNTO DE EQUILIBRIO | B22: =B18/G14 -> 192.9323802
C25: PROGRAMA DE REHABILITACION CARDIACA | D25: PROGRAMA DE PREVENCION CARDIOVASCULAR: PRIMARIA Y SECUNDARIA. | E25: FISIOTERARIA EN SALUD OCUPACIONAL | F25: REHABILITACION DEPORTIVA. | G25: PROGRAMA DE FISIOTERAPIA | H25: TRATAMIENTO DE FISIOTERAPIA INTEGRAL. | I25: REHABILITACIÓN CON HIDROTERAPIA | J25: REHABILITACIÓN PACIENTES QUEMADOS | K25: Terapia psicomotriz para niños
A26: costo variable unitario | C26: =SUM(C27:C35) -> 3.331041667 | D26: 2.846666667 | E26: 2.846666667 | F26: 2.846666667 | G26: 2.846666667 | H26: 24.84666667 | I26: 24.84666667 | J26: 2.846666667 | K26: 2.846666667
A27: Tarro gel conductor x galón | C27: ='COSTOS VARIABLES'!$E$23 -> 0.3 | D27: ='COSTOS VARIABLES'!$E$23 -> 0.3 | E27: ='COSTOS VARIABLES'!$E$23 -> 0.3 | F27: ='COSTOS VARIABLES'!$E$23 -> 0.3 | G27: ='COSTOS VARIABLES'!$E$23 -> 0.3 | H27: ='COSTOS VARIABLES'!$E$23 -> 0.3 | I27: ='COSTOS VARIABLES'!$E$23 -> 0.3 | J27: ='COSTOS VARIABLES'!$E$23 -> 0.3 | K27: ='COSTOS VARIABLES'!$E$23 -> 0.3
A28: Toallas Secantes 100mt x 6 und | C28: ='COSTOS VARIABLES'!$E$24 -> 0.3 | D28: ='COSTOS VARIABLES'!$E$24 -> 0.3 | E28: ='COSTOS VARIABLES'!$E$24 -> 0.3 | F28: ='COSTOS VARIABLES'!$E$24 -> 0.3 | G28: ='COSTOS VARIABLES'!$E$24 -> 0.3 | H28: ='COSTOS VARIABLES'!$E$24 -> 0.3 | I28: ='COSTOS VARIABLES'!$E$24 -> 0.3 | J28: ='COSTOS VARIABLES'!$E$24 -> 0.3 | K28: ='COSTOS VARIABLES'!$E$24 -> 0.3
A29: Baja lenguas paquete x100 | C29: ='COSTOS VARIABLES'!$E$25 -> 0.66 | D29: ='COSTOS VARIABLES'!$E$25 -> 0.66 | E29: ='COSTOS VARIABLES'!$E$25 -> 0.66 | F29: ='COSTOS VARIABLES'!$E$25 -> 0.66 | G29: ='COSTOS VARIABLES'!$E$25 -> 0.66 | H29: ='COSTOS VARIABLES'!$E$25 -> 0.66 | I29: ='COSTOS VARIABLES'!$E$25 -> 0.66 | J29: ='COSTOS VARIABLES'!$E$25 -> 0.66 | K29: ='COSTOS VARIABLES'!$E$25 -> 0.66
A30: Papel higiénico 170 mts x 4 und | C30: ='COSTOS VARIABLES'!E26 -> 0.484375 | D30: ='COSTOS VARIABLES'!F26 -> 0 | E30: ='COSTOS VARIABLES'!G26 -> 0 | F30: ='COSTOS VARIABLES'!H26 -> 0 | G30: ='COSTOS VARIABLES'!I26 -> 0 | H30: ='COSTOS VARIABLES'!J26 -> 0 | I30: ='COSTOS VARIABLES'!K26 -> 0 | J30: ='COSTOS VARIABLES'!L26 -> 0 | K30: ='COSTOS VARIABLES'!M26 -> 0
A31: Guantes caja | C31: ='COSTOS VARIABLES'!$E$27 -> 0.5 | D31: ='COSTOS VARIABLES'!$E$27 -> 0.5 | E31: ='COSTOS VARIABLES'!$E$27 -> 0.5 | F31: ='COSTOS VARIABLES'!$E$27 -> 0.5 | G31: ='COSTOS VARIABLES'!$E$27 -> 0.5 | H31: ='COSTOS VARIABLES'!$E$27 -> 0.5 | I31: ='COSTOS VARIABLES'!$E$27 -> 0.5 | J31: ='COSTOS VARIABLES'!$E$27 -> 0.5 | K31: ='COSTOS VARIABLES'!$E$27 -> 0.5
A32: Tapabocas caja x 50 und | C32: ='COSTOS VARIABLES'!$E$28 -> 0.4466666667 | D32: ='COSTOS VARIABLES'!$E$28 -> 0.4466666667 | E32: ='COSTOS VARIABLES'!$E$28 -> 0.4466666667 | F32: ='COSTOS VARIABLES'!$E$28 -> 0.4466666667 | G32: ='COSTOS VARIABLES'!$E$28 -> 0.4466666667 | H32: ='COSTOS VARIABLES'!$E$28 -> 0.4466666667 | I32: ='COSTOS VARIABLES'!$E$28 -> 0.4466666667 | J32: ='COSTOS VARIABLES'!$E$28 -> 0.4466666667 | K32: ='COSTOS VARIABLES'!$E$28 -> 0.4466666667
A33: Parafina | C33: 0 | D33: 0 | E33: 0 | F33: 0 | G33: 0 | H33: ='COSTOS VARIABLES'!$E$29 -> 22 | I33: ='COSTOS VARIABLES'!$E$29 -> 22 | J33: 0 | K33: 0
A34: Jabón antibacterial | C34: ='COSTOS VARIABLES'!$E$30 -> 0.4 | D34: ='COSTOS VARIABLES'!$E$30 -> 0.4 | E34: ='COSTOS VARIABLES'!$E$30 -> 0.4 | F34: ='COSTOS VARIABLES'!$E$30 -> 0.4 | G34: ='COSTOS VARIABLES'!$E$30 -> 0.4 | H34: ='COSTOS VARIABLES'!$E$30 -> 0.4 | I34: ='COSTOS VARIABLES'!$E$30 -> 0.4 | J34: ='COSTOS VARIABLES'!$E$30 -> 0.4 | K34: ='COSTOS VARIABLES'!$E$30 -> 0.4
A35: Talco | C35: ='COSTOS VARIABLES'!$E$31 -> 0.24 | D35: ='COSTOS VARIABLES'!$E$31 -> 0.24 | E35: ='COSTOS VARIABLES'!$E$31 -> 0.24 | F35: ='COSTOS VARIABLES'!$E$31 -> 0.24 | G35: ='COSTOS VARIABLES'!$E$31 -> 0.24 | H35: ='COSTOS VARIABLES'!$E$31 -> 0.24 | I35: ='COSTOS VARIABLES'!$E$31 -> 0.24 | J35: ='COSTOS VARIABLES'!$E$31 -> 0.24 | K35: ='COSTOS VARIABLES'!$E$31 -> 0.24

Sheet PRECIO DE EQUILIBRIO
C2: ='PUNTO DE EQUILIBRIO'!A5 -> PROGRAMA DE REHABILITACION CARDIACA
C4: Costos fijos: | D4: =+('PUNTO DE EQUILIBRIO'!G5/'PUNTO DE EQUILIBRIO'!G14)*'PUNTO DE EQUILIBRIO'!B18 -> 533.3305862
C5: Precio: | D5: ='PUNTO DE EQUILIBRIO'!D5 -> 60
C6: Costos variables: | D6: ='PUNTO DE EQUILIBRIO'!E5 -> 3.331041667
C7: P.E.: | D7: =D4/(D5-D6) -> 9.411335621
C8: Utilidades: | D8: =D5*D7 - (D6*D7) - D4 -> 0
C9: INGRESOS | D9: =D7*D5 -> 564.6801373
C11: UNIDADES | D11: COSTES FIJOS | E11: COSTES VARIABLES | F11: COSTES TOTALES | G11: COSTES MEDIOS | H11: INGRESOS | I11: BENEFICIOS
C12: 0 | D12: =$D$4 -> 533.3305862 | E12: =C12*$D$6 -> 0 | F12: =D12+E12 -> 533.3305862 | H12: =C12*$D$31 -> 0 | I12: =H12-F12 -> -533.3305862
C13: =$C$22/10+C12 -> 0.9411335621 | D13: =$D$4 -> 533.3305862 | E13: =C13*$D$6 -> 3.134955109 | F13: =D13+E13 -> 536.4655413 | G13: =F13/C13 -> 570.020625 | H13: =C13*$D$5 -> 56.46801373 | I13: =H13-F13 -> -479.9975276
C14: =$C$22/10+C13 -> 1.882267124 | D14: 533.3305862 | E14: 6.269910219 | F14: =D14+E14 -> 539.6004964 | G14: =F14/C14 -> 286.6758333 | H14: =C14*$D$5 -> 112.9360275 | I14: -426.664469
C15: 2.823400686 | D15: 533.3305862 | E15: 9.404865328 | F15: 542.7354515 | G15: =F15/C15 -> 192.2275694 | H15: 169.4040412 | I15: -373.3314103
C16: 3.764534249 | D16: 533.3305862 | E16: 12.53982044 | F16: =D16+E16 -> 545.8704066 | G16: 145.0034375 | H16: 225.8720549 | I16: -319.9983517
C17: 4.705667811 | D17: 533.3305862 | E17: 15.67477555 | F17: 549.0053617 | G17: 116.6689583 | H17: 282.3400686 | I17: -266.6652931
C18: 5.646801373 | D18: 533.3305862 | E18: 18.80973066 | F18: 552.1403168 | G18: 97.77930556 | H18: 338.8080824 | I18: -213.3322345
C19: 6.587934935 | D19: 533.3305862 | E19: 21.94468577 | F19: 555.275272 | G19: =F19/C19 -> 84.28669643 | H19: 395.2760961 | I19: -159.9991759
C20: 7.529068497 | D20: 533.3305862 | E20: 25.07964088 | F20: =D20+E20 -> 558.4102271 | G20: 74.16723958 | H20: 451.7441098 | I20: -106.6661172
C21: 8.470202059 | D21: 533.3305862 | E21: 28.21459598 | F21: =D21+E21 -> 561.5451822 | G21: 66.29655093 | H21: 508.2121236 | I21: =H21-F21 -> -53.33305862
C22: =D7 -> 9.411335621 | D22: 533.3305862 | E22: 31.34955109 | F22: =D22+E22 -> 564.6801373 | G22: =F22/C22 -> 60 | H22: 564.6801373 | I22: =H22-F22 -> 0
C23: =C22/10+C22 -> 10.35246918 | D23: 533.3305862 | E23: 34.4845062 | F23: =D23+E23 -> 567.8150924 | G23: =F23/C23 -> 54.84827652 | H23: 621.148151 | I23: =H23-F23 -> 53.33305862
C24: =C23/10+C23 -> 11.3877161 | D24: 533.3305862 | E24: 37.93295682 | F24: =D24+E24 -> 571.263543 | G24: 50.16489153 | H24: 683.2629661 | I24: =H24-F24 -> 111.9994231
C25: 12.52648771 | D25: 533.3305862 | E25: 41.72625251 | F25: =D25+E25 -> 575.0568387 | G25: 45.90726881 | H25: 751.5892627 | I25: =H25-F25 -> 176.532424
C26: 13.77913648 | D26: 533.3305862 | E26: 45.89887776 | F26: =D26+E26 -> 579.2294639 | G26: 42.03670271 | H26: 826.748189 | I26: =H26-F26 -> 247.5187251
C28: ='PUNTO DE EQUILIBRIO'!A6 -> PROGRAMA DE PREVENCION CARDIOVASCULAR: PRIMARIA Y SECUNDARIA.
C30: Costos fijos: | D30: =+('PUNTO DE EQUILIBRIO'!G6/'PUNTO DE EQUILIBRIO'!G14)*'PUNTO DE EQUILIBRIO'!B18 -> 806.8338028
C31: Precio: | D31: ='PUNTO DE EQUILIBRIO'!D6 -> 60
C32: Costos variables: | D32: ='PUNTO DE EQUILIBRIO'!E6 -> 2.846666667
C33: P.E.: | D33: =D30/(D31-D32) -> 14.11700343
C34: Utilidades: | D34: 0
C35: INGRESOS | D35: =D33*D31 -> 847.0202059
C38: UNIDADES | D38: COSTES FIJOS | E38: COSTES VARIABLES | F38: COSTES TOTALES | G38: COSTES MEDIOS | H38: INGRESOS | I38: BENEFICIOS
C39: 0 | D39: =$D$30 -> 806.8338028 | E39: =C39*$D$32 -> 0 | F39: =D39+E39 -> 806.8338028 | H39: =C39*$D$31 -> 0 | I39: =H39-F39 -> -806.8338028
C40: =$D$33/10+C39 -> 1.411700343 | D40: =$D$30 -> 806.8338028 | E40: 4.01864031 | F40: =D40+E40 -> 810.8524431 | G40: =F40/C40 -> 574.38 | H40: 84.70202059 | I40: =H40-F40 -> -726.1504225
C41: 2.823400686 | D41: =$D$30 -> 806.8338028 | E41: 8.037280621 | F41: 814.8710834 | G41: =F41/C41 -> 288.6133333 | H41: 169.4040412 | I41: -645.4670423
C42: 4.23510103 | D42: 806.8338028 | E42: 12.05592093 | F42: 818.8897238 | G42: 193.3577778 | H42: 254.1060618 | I42: -564.783662
C43: 5.646801373 | D43: 806.8338028 | E43: 16.07456124 | F43: 822.9083641 | G43: 145.73 | H43: 338.8080824 | I43: -484.1002817
C44: 7.058501716 | D44: 806.8338028 | E44: 20.09320155 | F44: 826.9270044 | G44: 117.1533333 | H44: 423.510103 | I44: -403.4169014
C45: 8.470202059 | D45: 806.8338028 | E45: 24.11184186 | F45: 830.9456447 | G45: 98.10222222 | H45: 508.2121236 | I45: -322.7335211
C46: 9.881902402 | D46: 806.8338028 | E46: 28.13048217 | F46: 834.964285 | G46: 84.49428571 | H46: 592.9141441 | I46: -242.0501408
C47: 11.29360275 | D47: 806.8338028 | E47: 32.14912248 | F47: 838.9829253 | G47: 74.28833333 | H47: 677.6161647 | I47: -161.3667606
C48: 12.70530309 | D48: 806.8338028 | E48: 36.16776279 | F48: =D48+E48 -> 843.0015656 | G48: 66.35037037 | H48: 762.3181853 | I48: =H48-F48 -> -80.68338028
C49: =D33 -> 14.11700343 | D49: 806.8338028 | E49: 40.1864031 | F49: =D49+E49 -> 847.0202059 | G49: =F49/C49 -> 60 | H49: 847.0202059 | I49: =H49-F49 -> 0
C50: =$C$49/10+C49 -> 15.52870378 | D50: 806.8338028 | E50: 44.20504341 | F50: =D50+E50 -> 851.0388462 | G50: 54.80424242 | H50: 931.7222265 | I50: =H50-F50 -> 80.68338028
C51: =$C$49/10+C50 -> 16.94040412 | D51: 806.8338028 | E51: 48.22368372 | F51: =D51+E51 -> 855.0574865 | G51: 50.47444444 | H51: 1016.424247 | I51: =H51-F51 -> 161.3667606
C52: =$C$49/10+C51 -> 18.35210446 | D52: 806.8338028 | E52: 52.24232403 | F52: =D52+E52 -> 859.0761269 | G52: 46.81076923 | H52: 1101.126268 | I52: =H52-F52 -> 242.0501408
C53: =$C$49/10+C52 -> 19.7638048 | D53: 806.8338028 | E53: 56.26096434 | F53: 863.0947672 | G53: 43.67047619 | H53: 1185.828288 | I53: 322.7335211
C55: ='PUNTO DE EQUILIBRIO'!A7 -> FISIOTERARIA EN SALUD OCUPACIONAL
C59: Costos fijos: | D59: =+('PUNTO DE EQUILIBRIO'!G7/'PUNTO DE EQUILIBRIO'!G14)*'PUNTO DE EQUILIBRIO'!B18 -> 1344.723005
C60: Precio: | D60: ='PUNTO DE EQUILIBRIO'!D7 -> 60
C61: Costos variables: | D61: ='PUNTO DE EQUILIBRIO'!E7 -> 2.846666667
C62: P.E.: | D62: =D59/(D60-D61) -> 23.52833905
C63: Utilidades: | D63: 0
C64: INGRESOS | D64: =D62*D60 -> 1411.700343
C67: UNIDADES | D67: COSTES FIJOS | E67: COSTES VARIABLES | F67: COSTES TOTALES | G67: COSTES MEDIOS | H67: INGRESOS | I67: BENEFICIOS
C68: 0 | D68: =$D$59 -> 1344.723005 | E68: =C68*$D$61 -> 0 | F68: =D68+E68 -> 1344.723005 | H68: =C68*$D$60 -> 0 | I68: =H68-F68 -> -1344.723005
C69: =$D$62/10+C68 -> 2.352833905 | D69: =$D$59 -> 1344.723005 | E69: =C69*$D$61 -> 6.697733851 | F69: =D69+E69 -> 1351.420739 | G69: =F69/C69 -> 574.38 | H69: =C69*$D$60 -> 141.1700343 | I69: =H69-F69 -> -1210.250704
C70: =$D$62/10+C69 -> 4.705667811 | D70: 1344.723005 | E70: 13.3954677 | F70: 1358.118472 | G70: =F70/C70 -> 288.6133333 | H70: =C70*$D$60 -> 282.3400686 | I70: -1075.778404
C71: 7.058501716 | D71: 1344.723005 | E71: 20.09320155 | F71: 1364.816206 | G71: =F71/C71 -> 193.3577778 | H71: 423.510103 | I71: -941.3061033
C72: 9.411335621 | D72: 1344.723005 | E72: =C72*$D$61 -> 26.7909354 | F72: 1371.51394 | G72: 145.73 | H72: 564.6801373 | I72: -806.8338028
C73: 11.76416953 | D73: 1344.723005 | E73: 33.48866925 | F73: 1378.211674 | G73: 117.1533333 | H73: 705.8501716 | I73: -672.3615024
C74: 14.11700343 | D74: 1344.723005 | E74: 40.1864031 | F74: 1384.909408 | G74: 98.10222222 | H74: 847.0202059 | I74: -537.8892019
C75: 16.46983734 | D75: 1344.723005 | E75: 46.88413695 | F75: 1391.607142 | G75: 84.49428571 | H75: 988.1902402 | I75: -403.4169014
C76: 18.82267124 | D76: 1344.723005 | E76: 53.5818708 | F76: 1398.304876 | G76: 74.28833333 | H76: 1129.360275 | I76: -268.9446009
C77: 21.17550515 | D77: 1344.723005 | E77: 60.27960466 | F77: 1405.002609 | G77: =F77/C77 -> 66.35037037 | H77: 1270.530309 | I77: =H77-F77 -> -134.4723005
C78: =$D$62/10+C77 -> 23.52833905 | D78: 1344.723005 | E78: 66.97733851 | F78: 1411.700343 | G78: =F78/C78 -> 60 | H78: 1411.700343 | I78: =H78-F78 -> 0
C79: =$C$78/10+C78 -> 25.88117296 | D79: 1344.723005 | E79: 73.67507236 | F79: 1418.398077 | G79: =F79/C79 -> 54.80424242 | H79: 1552.870378 | I79: =H79-F79 -> 134.4723005
C80: =$C$78/10+C79 -> 28.23400686 | D80: 1344.723005 | E80: 80.37280621 | F80: 1425.095811 | G80: 50.47444444 | H80: 1694.040412 | I80: =H80-F80 -> 268.9446009
C81: 30.58684077 | D81: 1344.723005 | E81: 87.07054006 | F81: 1431.793545 | G81: 46.81076923 | H81: 1835.210446 | I81: =H81-F81 -> 403.4169014
C82: 32.93967467 | D82: 1344.723005 | E82: 93.76827391 | F82: 1438.491279 | G82: 43.67047619 | H82: 1976.38048 | I82: =H82-F82 -> 537.8892019
C84: ='PUNTO DE EQUILIBRIO'!A8 -> REHABILITACION DEPORTIVA.
C86: Costos fijos: | D86: =+('PUNTO DE EQUILIBRIO'!G8/'PUNTO DE EQUILIBRIO'!G14)*'PUNTO DE EQUILIBRIO'!B18 -> 2151.556808
C87: Precio: | D87: ='PUNTO DE EQUILIBRIO'!D8 -> 60
C88: Costos variables: | D88: ='PUNTO DE EQUILIBRIO'!E8 -> 2.846666667
C89: P.E.: | D89: =D86/(D87-D88) -> 37.64534249
C90: Utilidades: | D90: 0
C91: INGRESOS | D91: =D89*D87 -> 2258.720549
C94: UNIDADES | D94: COSTES FIJOS | E94: COSTES VARIABLES | F94: COSTES TOTALES | G94: COSTES MEDIOS | H94: INGRESOS | I94: BENEFICIOS
C95: 0 | D95: =$D$86 -> 2151.556808 | E95: =C95*$D$61 -> 0 | F95: =D95+E95 -> 2151.556808 | H95: =C95*$D$87 -> 0 | I95: =H95-F95 -> -2151.556808
C96: =$D$89/10+C95 -> 3.764534249 | D96: =$D$86 -> 2151.556808 | E96: =C96*$D$88 -> 10.71637416 | F96: =D96+E96 -> 2162.273182 | G96: =F96/C96 -> 574.38 | H96: 225.8720549 | I96: =H96-F96 -> -1936.401127
C97: =$D$89/10+C96 -> 7.529068497 | D97: 2151.556808 | E97: =C97*$D$88 -> 21.43274832 | F97: =D97+E97 -> 2172.989556 | G97: =F97/C97 -> 288.6133333 | H97: 451.7441098 | I97: -1721.245446
C98: =$D$89/10+C97 -> 11.29360275 | D98: 2151.556808 | E98: =C98*$D$88 -> 32.14912248 | F98: 2183.70593 | G98: =F98/C98 -> 193.3577778 | H98: 677.6161647 | I98: -1506.089765
C99: 15.05813699 | D99: 2151.556808 | E99: 42.86549664 | F99: 2194.422304 | G99: =F99/C99 -> 145.73 | H99: 903.4882197 | I99: -1290.934085
C100: =$D$89/10+C99 -> 18.82267124 | D100: 2151.556808 | E100: =C100*$D$88 -> 53.5818708 | F100: 2205.138678 | G100: 117.1533333 | H100: 1129.360275 | I100: -1075.778404
C101: 22.58720549 | D101: 2151.556808 | E101: 64.29824497 | F101: 2215.855052 | G101: 98.10222222 | H101: 1355.232329 | I101: -860.622723
C102: 26.35173974 | D102: 2151.556808 | E102: 75.01461913 | F102: 2226.571427 | G102: 84.49428571 | H102: =C102*$D$87 -> 1581.104384 | I102: -645.4670423
C103: 30.11627399 | D103: 2151.556808 | E103: 85.73099329 | F103: 2237.287801 | G103: 74.28833333 | H103: =C103*$D$87 -> 1806.976439 | I103: -430.3113615
C104: =$D$89/10+C103 -> 33.88080824 | D104: 2151.556808 | E104: 96.44736745 | F104: 2248.004175 | G104: =F104/C104 -> 66.35037037 | H104: 2032.848494 | I104: =H104-F104 -> -215.1556808
C105: =$D$89/10+C104 -> 37.64534249 | D105: 2151.556808 | E105: 107.1637416 | F105: 2258.720549 | G105: =F105/C105 -> 60 | H105: 2258.720549 | I105: =H105-F105 -> 0
C106: 41.40987673 | D106: 2151.556808 | E106: 117.8801158 | F106: 2269.436923 | G106: =F106/C106 -> 54.80424242 | H106: 2484.592604 | I106: =H106-F106 -> 215.1556808
C107: 45.17441098 | D107: 2151.556808 | E107: 128.5964899 | F107: 2280.153297 | G107: 50.47444444 | H107: 2710.464659 | I107: =H107-F107 -> 430.3113615
C108: 48.93894523 | D108: 2151.556808 | E108: 139.3128641 | F108: 2290.869672 | G108: 46.81076923 | H108: 2936.336714 | I108: =H108-F108 -> 645.4670423
C109: 52.70347948 | D109: 2151.556808 | E109: 150.0292383 | F109: 2301.586046 | G109: 43.67047619 | H109: 3162.208769 | I109: =H109-F109 -> 860.622723
C112: ='PUNTO DE EQUILIBRIO'!A9 -> PROGRAMA DE FISIOTERAPIA
C114: Costos fijos: | D114: =+('PUNTO DE EQUILIBRIO'!G9/'PUNTO DE EQUILIBRIO'!G14)*'PUNTO DE EQUILIBRIO'!B18 -> 1882.612207
C115: Precio: | D115: ='PUNTO DE EQUILIBRIO'!D9 -> 60
C116: Costos variables: | D116: ='PUNTO DE EQUILIBRIO'!E9 -> 2.846666667
C117: P.E.: | D117: =D114/(D115-D116) -> 32.93967467
C118: Utilidades: | D118: 0
C119: INGRESOS | D119: =D117*D115 -> 1976.38048
C122: UNIDADES | D122: COSTES FIJOS | E122: COSTES VARIABLES | F122: COSTES TOTALES | G122: COSTES MEDIOS | H122: INGRESOS | I122: BENEFICIOS
C123: 0 | D123: =$D$114 -> 1882.612207 | E123: =C123*$D$115 -> 0 | F123: =D123+E123 -> 1882.612207 | H123: =C123*$D$115 -> 0 | I123: =H123-F123 -> -1882.612207
C124: =$D$117/10+C123 -> 3.293967467 | D124: =$D$114 -> 1882.612207 | E124: =C124*$D$116 -> 9.376827391 | F124: =D124+E124 -> 1891.989034 | G124: =F124/C124 -> 574.38 | H124: =C124*$D$115 -> 197.638048 | I124: =H124-F124 -> -1694.350986
C125: =$D$117/10+C124 -> 6.587934935 | D125: 1882.612207 | E125: =C125*$D$116 -> 18.75365478 | F125: =D125+E125 -> 1901.365861 | G125: =F125/C125 -> 288.6133333 | H125: =C125*$D$115 -> 395.2760961 | I125: =H125-F125 -> -1506.089765
C126: =$D$117/10+C125 -> 9.881902402 | D126: 1882.612207 | E126: 28.13048217 | F126: 1910.742689 | G126: =F126/C126 -> 193.3577778 | H126: =C126*$D$115 -> 592.9141441 | I126: -1317.828545
C127: 13.17586987 | D127: 1882.612207 | E127: 37.50730956 | F127: 1920.119516 | G127: =F127/C127 -> 145.73 | H127: 790.5521922 | I127: -1129.567324
C128: 16.46983734 | D128: 1882.612207 | E128: 46.88413695 | F128: 1929.496344 | G128: 117.1533333 | H128: =C128*$D$115 -> 988.1902402 | I128: -941.3061033
C129: 19.7638048 | D129: 1882.612207 | E129: 56.26096434 | F129: 1938.873171 | G129: 98.10222222 | H129: 1185.828288 | I129: -753.0448826
C130: 23.05777227 | D130: 1882.612207 | E130: 65.63779174 | F130: 1948.249998 | G130: 84.49428571 | H130: 1383.466336 | I130: -564.783662
C131: 26.35173974 | D131: 1882.612207 | E131: 75.01461913 | F131: 1957.626826 | G131: 74.28833333 | H131: 1581.104384 | I131: -376.5224413
C132: =$D$117/10+C131 -> 29.64570721 | D132: 1882.612207 | E132: 84.39144652 | F132: 1967.003653 | G132: =F132/C132 -> 66.35037037 | H132: 1778.742432 | I132: =H132-F132 -> -188.2612207
C133: 32.93967467 | D133: 1882.612207 | E133: 93.76827391 | F133: 1976.38048 | G133: =F133/C133 -> 60 | H133: 1976.38048 | I133: =H133-F133 -> 0
C134: 36.23364214 | D134: 1882.612207 | E134: 103.1451013 | F134: 1985.757308 | G134: =F134/C134 -> 54.80424242 | H134: 2174.018529 | I134: =H134-F134 -> 188.2612207
C135: 39.52760961 | D135: 1882.612207 | E135: 112.5219287 | F135: 1995.134135 | G135: 50.47444444 | H135: 2371.656577 | I135: =H135-F135 -> 376.5224413
C136: 42.82157708 | D136: 1882.612207 | E136: 121.8987561 | F136: 2004.510963 | G136: 46.81076923 | H136: 2569.294625 | I136: =H136-F136 -> 564.783662
C137: 46.11554454 | D137: 1882.612207 | E137: 131.2755835 | F137: 2013.88779 | G137: 43.67047619 | H137: 2766.932673 | I137: =H137-F137 -> 753.0448826
C140: ='PUNTO DE EQUILIBRIO'!A10 -> TRATAMIENTO DE FISIOTERAPIA INTEGRAL.
C142: Costos fijos: | D142: =+('PUNTO DE EQUILIBRIO'!G10/'PUNTO DE EQUILIBRIO'!G14)*'PUNTO DE EQUILIBRIO'!B18 -> 1557.199592
C143: Precio: | D143: ='PUNTO DE EQUILIBRIO'!D10 -> 80
C144: Costos variables: | D144: ='PUNTO DE EQUILIBRIO'!E10 -> 24.84666667
C145: P.E.: | D145: =D142/(D143-D144) -> 28.23400686
C146: Utilidades: | D146: 0
C147: INGRESOS | D147: =D145*D143 -> 2258.720549
C150: UNIDADES | D150: COSTES FIJOS | E150: COSTES VARIABLES | F150: COSTES TOTALES | G150: COSTES MEDIOS | H150: INGRESOS | I150: BENEFICIOS
C151: 0 | D151: =$D$142 -> 1557.199592 | E151: =C151*$D$144 -> 0 | F151: =D151+E151 -> 1557.199592 | H151: =C151*$D$143 -> 0 | I151: =H151-F151 -> -1557.199592
C152: =$D$145/10+C151 -> 2.823400686 | D152: =$D$142 -> 1557.199592 | E152: =C152*$D$144 -> 70.15209572 | F152: =D152+E152 -> 1627.351688 | G152: =F152/C152 -> 576.38 | H152: =C152*$D$143 -> 225.8720549 | I152: =H152-F152 -> -1401.479633
C153: =$D$145/10+C152 -> 5.646801373 | D153: 1557.199592 | E153: 140.3041914 | F153: =D153+E153 -> 1697.503783 | G153: =F153/C153 -> 300.6133333 | H153: 451.7441098 | I153: =H153-F153 -> -1245.759674
C154: 8.470202059 | D154: 1557.199592 | E154: 210.4562872 | F154: 1767.655879 | G154: =F154/C154 -> 208.6911111 | H154: 677.6161647 | I154: =H154-F154 -> -1090.039714
C155: 11.29360275 | D155: 1557.199592 | E155: 280.6083829 | F155: 1837.807975 | G155: =F155/C155 -> 162.73 | H155: 903.4882197 | I155: -934.3197551
C156: 14.11700343 | D156: 1557.199592 | E156: 350.7604786 | F156: 1907.960071 | G156: 135.1533333 | H156: 1129.360275 | I156: -778.599796
C157: 16.94040412 | D157: 1557.199592 | E157: 420.9125743 | F157: 1978.112166 | G157: 116.7688889 | H157: 1355.232329 | I157: -622.8798368
C158: 19.7638048 | D158: 1557.199592 | E158: 491.0646701 | F158: 2048.264262 | G158: 103.6371429 | H158: 1581.104384 | I158: -467.1598776
C159: 22.58720549 | D159: 1557.199592 | E159: 561.2167658 | F159: 2118.416358 | G159: 93.78833333 | H159: 1806.976439 | I159: -311.4399184
C160: 25.41060618 | D160: 1557.199592 | E160: 631.3688615 | F160: 2188.568453 | G160: =F160/C160 -> 86.12814815 | H160: 2032.848494 | I160: =H160-F160 -> -155.7199592
C161: 28.23400686 | D161: 1557.199592 | E161: 701.5209572 | F161: 2258.720549 | G161: =F161/C161 -> 80 | H161: 2258.720549 | I161: =H161-F161 -> 0
C162: 31.05740755 | D162: 1557.199592 | E162: 771.6730529 | F162: 2328.872645 | G162: =F162/C162 -> 74.98606061 | H162: 2484.592604 | I162: =H162-F162 -> 155.7199592
C163: 33.88080824 | D163: 1557.199592 | E163: 841.8251487 | F163: 2399.024741 | G163: 70.80777778 | H163: 2710.464659 | I163: =H163-F163 -> 311.4399184
C164: 36.70420892 | D164: 1557.199592 | E164: 911.9772444 | F164: 2469.176836 | G164: 67.27230769 | H164: 2936.336714 | I164: =H164-F164 -> 467.1598776
C165: 39.52760961 | D165: 1557.199592 | E165: 982.1293401 | F165: 2539.328932 | G165: 64.24190476 | H165: 3162.208769 | I165: =H165-F165 -> 622.8798368
C167: ='PUNTO DE EQUILIBRIO'!A11 -> REHABILITACIÓN CON HIDROTERAPIA
C169: Costos fijos: | D169: =+('PUNTO DE EQUILIBRIO'!G11/'PUNTO DE EQUILIBRIO'!G14)*'PUNTO DE EQUILIBRIO'!B18 -> 1038.133061
C170: Precio: | D170: ='PUNTO DE EQUILIBRIO'!D12 -> 60
C171: Costos variables: | D171: ='PUNTO DE EQUILIBRIO'!E12 -> 2.846666667
C172: P.E.: | D172: =D169/(D170-D171) -> 18.16399851
C173: Utilidades: | D173: 0
C174: INGRESOS | D174: =D172*D170 -> 1089.83991
C177: UNIDADES | D177: COSTES FIJOS | E177: COSTES VARIABLES | F177: COSTES TOTALES | G177: COSTES MEDIOS | H177: INGRESOS | I177: BENEFICIOS
C178: 0 | D178: =$D$169 -> 1038.133061 | E178: =C178*$D$171 -> 0 | F178: =D178+E178 -> 1038.133061 | H178: =C178*$D$170 -> 0 | I178: =H178-F178 -> -1038.133061
C179: =$D$172/10+C178 -> 1.816399851 | D179: =$D$169 -> 1038.133061 | E179: =C179*$D$171 -> 5.170684908 | F179: =D179+E179 -> 1043.303746 | G179: =F179/C179 -> 574.38 | H179: =C179*$D$170 -> 108.983991 | I179: =H179-F179 -> -934.3197551
C180: =$D$172/10+C179 -> 3.632799701 | D180: 1038.133061 | E180: 10.34136982 | F180: =D180+E180 -> 1048.474431 | G180: =F180/C180 -> 288.6133333 | H180: 217.9679821 | I180: =H180-F180 -> -830.506449
C181: 5.449199552 | D181: 1038.133061 | E181: 15.51205472 | F181: 1053.645116 | G181: =F181/C181 -> 193.3577778 | H181: 326.9519731 | I181: =H181-F181 -> -726.6931429
C182: 7.265599402 | D182: 1038.133061 | E182: 20.68273963 | F182: 1058.815801 | G182: =F182/C182 -> 145.73 | H182: 435.9359641 | I182: -622.8798368
C183: 9.081999253 | D183: 1038.133061 | E183: 25.85342454 | F183: 1063.986486 | G183: 117.1533333 | H183: 544.9199552 | I183: -519.0665306
C184: 10.8983991 | D184: 1038.133061 | E184: 31.02410945 | F184: 1069.157171 | G184: 98.10222222 | H184: 653.9039462 | I184: -415.2532245
C185: 12.71479895 | D185: 1038.133061 | E185: 36.19479436 | F185: 1074.327856 | G185: 84.49428571 | H185: 762.8879373 | I185: -311.4399184
C186: 14.5311988 | D186: 1038.133061 | E186: 41.36547926 | F186: 1079.498541 | G186: 74.28833333 | H186: 871.8719283 | I186: -207.6266123
C187: 16.34759866 | D187: 1038.133061 | E187: 46.53616417 | F187: 1084.669225 | G187: =F187/C187 -> 66.35037037 | H187: 980.8559193 | I187: =H187-F187 -> -103.8133061
C188: 18.16399851 | D188: 1038.133061 | E188: 51.70684908 | F188: 1089.83991 | G188: =F188/C188 -> 60 | H188: 1089.83991 | I188: =H188-F188 -> 0
C189: 19.98039836 | D189: 1038.133061 | E189: 56.87753399 | F189: 1095.010595 | G189: =F189/C189 -> 54.80424242 | H189: 1198.823901 | I189: =H189-F189 -> 103.8133061
C190: 21.79679821 | D190: 1038.133061 | E190: 62.0482189 | F190: 1100.18128 | G190: 50.47444444 | H190: 1307.807892 | I190: =H190-F190 -> 207.6266123
C191: 23.61319806 | D191: 1038.133061 | E191: 67.2189038 | F191: 1105.351965 | G191: 46.81076923 | H191: 1416.791883 | I191: =H191-F191 -> 311.4399184
C192: 25.42959791 | D192: 1038.133061 | E192: 72.38958871 | F192: 1110.52265 | G192: 43.67047619 | H192: 1525.775875 | I192: =H192-F192 -> 415.2532245
C194: ='PUNTO DE EQUILIBRIO'!A12 -> REHABILITACIÓN PACIENTES QUEMADOS
C196: Costos fijos: | D196: =+('PUNTO DE EQUILIBRIO'!G12/'PUNTO DE EQUILIBRIO'!G14)*'PUNTO DE EQUILIBRIO'!B18 -> 806.8338028
C197: Precio: | D197: ='PUNTO DE EQUILIBRIO'!D12 -> 60
C198: Costos variables: | D198: ='PUNTO DE EQUILIBRIO'!E12 -> 2.846666667
C199: P.E.: | D199: =D196/(D197-D198) -> 14.11700343
C200: Utilidades: | D200: 0
C201: INGRESOS | D201: =D199*D197 -> 847.0202059
C204: UNIDADES | D204: COSTES FIJOS | E204: COSTES VARIABLES | F204: COSTES TOTALES | G204: COSTES MEDIOS | H204: INGRESOS | I204: BENEFICIOS
C205: 0 | D205: =$D$196 -> 806.8338028 | E205: =C205*$D$198 -> 0 | F205: =D205+E205 -> 806.8338028 | H205: =C205*$D$197 -> 0 | I205: =H205-F205 -> -806.8338028
C206: =$D$199/10+C205 -> 1.411700343 | D206: =$D$196 -> 806.8338028 | E206: =C206*$D$198 -> 4.01864031 | F206: =D206+E206 -> 810.8524431 | G206: =F206/C206 -> 574.38 | H206: =C206*$D$197 -> 84.70202059 | I206: =H206-F206 -> -726.1504225
C207: =$D$199/10+C206 -> 2.823400686 | D207: 806.8338028 | E207: 8.037280621 | F207: =D207+E207 -> 814.8710834 | G207: =F207/C207 -> 288.6133333 | H207: 169.4040412 | I207: =H207-F207 -> -645.4670423
C208: 4.23510103 | D208: 806.8338028 | E208: 12.05592093 | F208: 818.8897238 | G208: =F208/C208 -> 193.3577778 | H208: 254.1060618 | I208: =H208-F208 -> -564.783662
C209: 5.646801373 | D209: 806.8338028 | E209: 16.07456124 | F209: 822.9083641 | G209: =F209/C209 -> 145.73 | H209: 338.8080824 | I209: -484.1002817
C210: 7.058501716 | D210: 806.8338028 | E210: 20.09320155 | F210: 826.9270044 | G210: 117.1533333 | H210: 423.510103 | I210: -403.4169014
C211: 8.470202059 | D211: 806.8338028 | E211: 24.11184186 | F211: 830.9456447 | G211: 98.10222222 | H211: 508.2121236 | I211: -322.7335211
C212: 9.881902402 | D212: 806.8338028 | E212: 28.13048217 | F212: 834.964285 | G212: 84.49428571 | H212: 592.9141441 | I212: -242.0501408
C213: 11.29360275 | D213: 806.8338028 | E213: 32.14912248 | F213: 838.9829253 | G213: 74.28833333 | H213: 677.6161647 | I213: -161.3667606
C214: 12.70530309 | D214: 806.8338028 | E214: 36.16776279 | F214: 843.0015656 | G214: =F214/C214 -> 66.35037037 | H214: 762.3181853 | I214: =H214-F214 -> -80.68338028
C215: 14.11700343 | D215: 806.8338028 | E215: 40.1864031 | F215: 847.0202059 | G215: =F215/C215 -> 60 | H215: 847.0202059 | I215: =H215-F215 -> 0
C216: 15.52870378 | D216: 806.8338028 | E216: 44.20504341 | F216: 851.0388462 | G216: =F216/C216 -> 54.80424242 | H216: 931.7222265 | I216: =H216-F216 -> 80.68338028
C217: 16.94040412 | D217: 806.8338028 | E217: 48.22368372 | F217: 855.0574865 | G217: 50.47444444 | H217: 1016.424247 | I217: =H217-F217 -> 161.3667606
C218: 18.35210446 | D218: 806.8338028 | E218: 52.24232403 | F218: 859.0761269 | G218: 46.81076923 | H218: 1101.126268 | I218: =H218-F218 -> 242.0501408
C219: 19.7638048 | D219: 806.8338028 | E219: 56.26096434 | F219: 863.0947672 | G219: 43.67047619 | H219: 1185.828288 | I219: =H219-F219 -> 322.7335211
C226: ='PUNTO DE EQUILIBRIO'!A13 -> TERAPIA PSICOMOTRIZ EN NIÑOS
C228: Costos fijos: | D228: =+('PUNTO DE EQUILIBRIO'!G13/'PUNTO DE EQUILIBRIO'!G14)*'PUNTO DE EQUILIBRIO'!B18 -> 806.8338028
C229: Precio: | D229: ='PUNTO DE EQUILIBRIO'!D13 -> 60
C230: Costos variables: | D230: ='PUNTO DE EQUILIBRIO'!E13 -> 2.846666667
C231: P.E.: | D231: =D228/(D229-D230) -> 14.11700343
C232: Utilidades: | D232: 0
C233: INGRESOS | D233: =D231*D229 -> 847.0202059
C236: UNIDADES | D236: COSTES FIJOS | E236: COSTES VARIABLES | F236: COSTES TOTALES | G236: COSTES MEDIOS | H236: INGRESOS | I236: BENEFICIOS
C237: 0 | D237: =$D$196 -> 806.8338028 | E237: =C237*$D$198 -> 0 | F237: =D237+E237 -> 806.8338028 | H237: =C237*$D$197 -> 0 | I237: =H237-F237 -> -806.8338028
C238: =$D$199/10+C237 -> 1.411700343 | D238: =$D$196 -> 806.8338028 | E238: =C238*$D$198 -> 4.01864031 | F238: =D238+E238 -> 810.8524431 | G238: =F238/C238 -> 574.38 | H238: =C238*$D$197 -> 84.70202059 | I238: =H238-F238 -> -726.1504225
C239: =$D$199/10+C238 -> 2.823400686 | D239: 806.8338028 | E239: 8.037280621 | F239: =D239+E239 -> 814.8710834 | G239: =F239/C239 -> 288.6133333 | H239: 169.4040412 | I239: =H239-F239 -> -645.4670423
C240: 4.23510103 | D240: 806.8338028 | E240: 12.05592093 | F240: 818.8897238 | G240: =F240/C240 -> 193.3577778 | H240: 254.1060618 | I240: =H240-F240 -> -564.783662
C241: 5.646801373 | D241: 806.8338028 | E241: 16.07456124 | F241: 822.9083641 | G241: =F241/C241 -> 145.73 | H241: 338.8080824 | I241: -484.1002817
C242: 7.058501716 | D242: 806.8338028 | E242: 20.09320155 | F242: 826.9270044 | G242: 117.1533333 | H242: 423.510103 | I242: -403.4169014
C243: 8.470202059 | D243: 806.8338028 | E243: 24.11184186 | F243: 830.9456447 | G243: 98.10222222 | H243: 508.2121236 | I243: -322.7335211
C244: 9.881902402 | D244: 806.8338028 | E244: 28.13048217 | F244: 834.964285 | G244: 84.49428571 | H244: 592.9141441 | I244: -242.0501408
... 7 more rows

Sheet ESTADO DE GANACIAS Y PERDIDAS
A1: ESTADO DE PÉRDIDAS Y GANANCIAS
A3: CONCEPTO | B3: 1 | C3: 2 | D3: 3 | E3: 4 | F3: 5 | G3: 6 | H3: 7 | I3: 8 | J3: 9 | K3: 10 | L3: 11 | M3: 12 | N3: 13 | O3: 14 | P3: 15 | Q3: 16 | R3: 17 | S3: 18 | T3: 19 | U3: 20 | V3: 21 | W3: 22 | X3: 23 | Y3: 24
A4: A. INGRESOS | B4: ='INGRESO POR VENTAS'!C30 -> 33295.71195 | C4: ='INGRESO POR VENTAS'!D30 -> 22600 | D4: ='INGRESO POR VENTAS'!E30 -> 22600 | E4: ='INGRESO POR VENTAS'!F30 -> 22600 | F4: ='INGRESO POR VENTAS'!G30 -> 22600 | G4: ='INGRESO POR VENTAS'!H30 -> 22600 | H4: ='INGRESO POR VENTAS'!I30 -> 22600 | I4: ='INGRESO POR VENTAS'!J30 -> 22600 | J4: ='INGRESO POR VENTAS'!K30 -> 22600 | K4: ='INGRESO POR VENTAS'!L30 -> 22600 | L4: ='INGRESO POR VENTAS'!M30 -> 22600 | M4: ='INGRESO POR VENTAS'!N30 -> 22600 | N4: ='INGRESO POR VENTAS'!O30 -> 38290.06874 | O4: ='INGRESO POR VENTAS'!P30 -> 25990 | P4: ='INGRESO POR VENTAS'!Q30 -> 25990 | Q4: ='INGRESO POR VENTAS'!R30 -> 25990 | R4: ='INGRESO POR VENTAS'!S30 -> 25990 | S4: ='INGRESO POR VENTAS'!T30 -> 25990 | T4: ='INGRESO POR VENTAS'!U30 -> 25990 | U4: ='INGRESO POR VENTAS'!V30 -> 25990 | V4: ='INGRESO POR VENTAS'!W30 -> 25990 | W4: ='INGRESO POR VENTAS'!X30 -> 25990 | X4: ='INGRESO POR VENTAS'!Y30 -> 25990 | Y4: ='INGRESO POR VENTAS'!Z30 -> 25990
A5: B. COSTOS | B5: =B6+B7+B8 -> 7363.862493 | C5: 5837.24 | D5: 5837.24 | E5: 5837.24 | F5: 5837.24 | G5: 5837.24 | H5: 11137.24 | I5: 5837.24 | J5: 5837.24 | K5: 5837.24 | L5: 5837.24 | M5: 11137.24 | N5: 5861.080867 | O5: 5803.44 | P5: 5853.44 | Q5: 5853.44 | R5: 5853.44 | S5: 5853.44 | T5: 11153.44 | U5: 5853.44 | V5: 5853.44 | W5: 5853.44 | X5: 5853.44 | Y5: 11153.44
A6: Mano de obra directa | B6: ='PRESUPUESTO DE GASTOS'!B9 -> 4629.24 | C6: ='PRESUPUESTO DE GASTOS'!C9 -> 4629.24 | D6: ='PRESUPUESTO DE GASTOS'!D9 -> 4629.24 | E6: ='PRESUPUESTO DE GASTOS'!E9 -> 4629.24 | F6: ='PRESUPUESTO DE GASTOS'!F9 -> 4629.24 | G6: ='PRESUPUESTO DE GASTOS'!G9 -> 4629.24 | H6: ='PRESUPUESTO DE GASTOS'!H9 -> 9929.24 | I6: ='PRESUPUESTO DE GASTOS'!I9 -> 4629.24 | J6: ='PRESUPUESTO DE GASTOS'!J9 -> 4629.24 | K6: ='PRESUPUESTO DE GASTOS'!K9 -> 4629.24 | L6: ='PRESUPUESTO DE GASTOS'!L9 -> 4629.24 | M6: ='PRESUPUESTO DE GASTOS'!M9 -> 9929.24 | N6: ='PRESUPUESTO DE GASTOS'!N9 -> 4629.24 | O6: ='PRESUPUESTO DE GASTOS'!O9 -> 4629.24 | P6: ='PRESUPUESTO DE GASTOS'!P9 -> 4629.24 | Q6: ='PRESUPUESTO DE GASTOS'!Q9 -> 4629.24 | R6: ='PRESUPUESTO DE GASTOS'!R9 -> 4629.24 | S6: ='PRESUPUESTO DE GASTOS'!S9 -> 4629.24 | T6: ='PRESUPUESTO DE GASTOS'!T9 -> 9929.24 | U6: ='PRESUPUESTO DE GASTOS'!U9 -> 4629.24 | V6: ='PRESUPUESTO DE GASTOS'!V9 -> 4629.24 | W6: ='PRESUPUESTO DE GASTOS'!W9 -> 4629.24 | X6: ='PRESUPUESTO DE GASTOS'!X9 -> 4629.24 | Y6: ='PRESUPUESTO DE GASTOS'!Y9 -> 9929.24
A7: Reposicion de implementos | B7: ='PRESUPUESTO DE GASTOS'!B7 -> 158.122493 | C7: ='PRESUPUESTO DE GASTOS'!C7 -> 108 | D7: ='PRESUPUESTO DE GASTOS'!D7 -> 108 | E7: ='PRESUPUESTO DE GASTOS'!E7 -> 108 | F7: ='PRESUPUESTO DE GASTOS'!F7 -> 108 | G7: ='PRESUPUESTO DE GASTOS'!G7 -> 108 | H7: ='PRESUPUESTO DE GASTOS'!H7 -> 108 | I7: ='PRESUPUESTO DE GASTOS'!I7 -> 108 | J7: ='PRESUPUESTO DE GASTOS'!J7 -> 108 | K7: ='PRESUPUESTO DE GASTOS'!K7 -> 108 | L7: ='PRESUPUESTO DE GASTOS'!L7 -> 108 | M7: ='PRESUPUESTO DE GASTOS'!M7 -> 108 | N7: ='PRESUPUESTO DE GASTOS'!N7 -> 181.840867 | O7: ='PRESUPUESTO DE GASTOS'!O7 -> 124.2 | P7: ='PRESUPUESTO DE GASTOS'!P7 -> 124.2 | Q7: ='PRESUPUESTO DE GASTOS'!Q7 -> 124.2 | R7: ='PRESUPUESTO DE GASTOS'!R7 -> 124.2 | S7: ='PRESUPUESTO DE GASTOS'!S7 -> 124.2 | T7: ='PRESUPUESTO DE GASTOS'!T7 -> 124.2 | U7: ='PRESUPUESTO DE GASTOS'!U7 -> 124.2 | V7: ='PRESUPUESTO DE GASTOS'!V7 -> 124.2 | W7: ='PRESUPUESTO DE GASTOS'!W7 -> 124.2 | X7: ='PRESUPUESTO DE GASTOS'!X7 -> 124.2 | Y7: ='PRESUPUESTO DE GASTOS'!Y7 -> 124.2
A8: Costos Indirectos | B8: ='PRESUPUESTO DE GASTOS'!B13 -> 2576.5 | C8: ='PRESUPUESTO DE GASTOS'!C13 -> 1100 | D8: ='PRESUPUESTO DE GASTOS'!D13 -> 1100 | E8: ='PRESUPUESTO DE GASTOS'!E13 -> 1100 | F8: ='PRESUPUESTO DE GASTOS'!F13 -> 1100 | G8: ='PRESUPUESTO DE GASTOS'!G13 -> 1100 | H8: ='PRESUPUESTO DE GASTOS'!H13 -> 1100 | I8: ='PRESUPUESTO DE GASTOS'!I13 -> 1100 | J8: ='PRESUPUESTO DE GASTOS'!J13 -> 1100 | K8: ='PRESUPUESTO DE GASTOS'!K13 -> 1100 | L8: ='PRESUPUESTO DE GASTOS'!L13 -> 1100 | M8: ='PRESUPUESTO DE GASTOS'!M13 -> 1100 | N8: ='PRESUPUESTO DE GASTOS'!N13 -> 1050 | O8: ='PRESUPUESTO DE GASTOS'!O13 -> 1050 | P8: ='PRESUPUESTO DE GASTOS'!P13 -> 1100 | Q8: ='PRESUPUESTO DE GASTOS'!Q13 -> 1100 | R8: ='PRESUPUESTO DE GASTOS'!R13 -> 1100 | S8: ='PRESUPUESTO DE GASTOS'!S13 -> 1100 | T8: ='PRESUPUESTO DE GASTOS'!T13 -> 1100 | U8: ='PRESUPUESTO DE GASTOS'!U13 -> 1100 | V8: ='PRESUPUESTO DE GASTOS'!V13 -> 1100 | W8: ='PRESUPUESTO DE GASTOS'!W13 -> 1100 | X8: ='PRESUPUESTO DE GASTOS'!X13 -> 1100 | Y8: ='PRESUPUESTO DE GASTOS'!Y13 -> 1100
A9: C. UTILIDAD BRUTA | B9: =+B4-B5 -> 25931.84946 | C9: =+C4-C5 -> 16762.76 | D9: 16762.76 | E9: 16762.76 | F9: 16762.76 | G9: 16762.76 | H9: 11462.76 | I9: 16762.76 | J9: 16762.76 | K9: 16762.76 | L9: 16762.76 | M9: 11462.76 | N9: 32428.98788 | O9: 20186.56 | P9: 20136.56 | Q9: 20136.56 | R9: 20136.56 | S9: 20136.56 | T9: 14836.56 | U9: 20136.56 | V9: 20136.56 | W9: 20136.56 | X9: 20136.56 | Y9: 14836.56
A10: Administración | B10: ='PRESUPUESTO DE GASTOS'!B29 -> 926.5 | C10: ='PRESUPUESTO DE GASTOS'!C29 -> 926.5 | D10: ='PRESUPUESTO DE GASTOS'!D29 -> 926.5 | E10: ='PRESUPUESTO DE GASTOS'!E29 -> 926.5 | F10: ='PRESUPUESTO DE GASTOS'!F29 -> 926.5 | G10: ='PRESUPUESTO DE GASTOS'!G29 -> 926.5 | H10: ='PRESUPUESTO DE GASTOS'!H29 -> 926.5 | I10: ='PRESUPUESTO DE GASTOS'!I29 -> 926.5 | J10: ='PRESUPUESTO DE GASTOS'!J29 -> 926.5 | K10: ='PRESUPUESTO DE GASTOS'!K29 -> 926.5 | L10: ='PRESUPUESTO DE GASTOS'!L29 -> 926.5 | M10: ='PRESUPUESTO DE GASTOS'!M29 -> 926.5 | N10: ='PRESUPUESTO DE GASTOS'!N29 -> 926.5 | O10: ='PRESUPUESTO DE GASTOS'!O29 -> 926.5 | P10: ='PRESUPUESTO DE GASTOS'!P29 -> 926.5 | Q10: ='PRESUPUESTO DE GASTOS'!Q29 -> 926.5 | R10: ='PRESUPUESTO DE GASTOS'!R29 -> 926.5 | S10: ='PRESUPUESTO DE GASTOS'!S29 -> 926.5 | T10: ='PRESUPUESTO DE GASTOS'!T29 -> 926.5 | U10: ='PRESUPUESTO DE GASTOS'!U29 -> 926.5 | V10: ='PRESUPUESTO DE GASTOS'!V29 -> 926.5 | W10: ='PRESUPUESTO DE GASTOS'!W29 -> 926.5 | X10: ='PRESUPUESTO DE GASTOS'!X29 -> 926.5 | Y10: ='PRESUPUESTO DE GASTOS'!Y29 -> 926.5
A11: Ventas | B11: ='PRESUPUESTO DE GASTOS'!B25 -> 800 | C11: ='PRESUPUESTO DE GASTOS'!C25 -> 800 | D11: ='PRESUPUESTO DE GASTOS'!D25 -> 800 | E11: ='PRESUPUESTO DE GASTOS'!E25 -> 800 | F11: ='PRESUPUESTO DE GASTOS'!F25 -> 800 | G11: ='PRESUPUESTO DE GASTOS'!G25 -> 800 | H11: ='PRESUPUESTO DE GASTOS'!H25 -> 800 | I11: ='PRESUPUESTO DE GASTOS'!I25 -> 800 | J11: ='PRESUPUESTO DE GASTOS'!J25 -> 800 | K11: ='PRESUPUESTO DE GASTOS'!K25 -> 800 | L11: ='PRESUPUESTO DE GASTOS'!L25 -> 800 | M11: ='PRESUPUESTO DE GASTOS'!M25 -> 800 | N11: ='PRESUPUESTO DE GASTOS'!N25 -> 800 | O11: ='PRESUPUESTO DE GASTOS'!O25 -> 800 | P11: ='PRESUPUESTO DE GASTOS'!P25 -> 800 | Q11: ='PRESUPUESTO DE GASTOS'!Q25 -> 800 | R11: ='PRESUPUESTO DE GASTOS'!R25 -> 800 | S11: ='PRESUPUESTO DE GASTOS'!S25 -> 800 | T11: ='PRESUPUESTO DE GASTOS'!T25 -> 800 | U11: ='PRESUPUESTO DE GASTOS'!U25 -> 800 | V11: ='PRESUPUESTO DE GASTOS'!V25 -> 800 | W11: ='PRESUPUESTO DE GASTOS'!W25 -> 800 | X11: ='PRESUPUESTO DE GASTOS'!X25 -> 800 | Y11: ='PRESUPUESTO DE GASTOS'!Y25 -> 800
A12: D. UTILIDAD DE OPERACIÓN | B12: =+B9-B10-B11 -> 24205.34946 | C12: =+C9-C10-C11 -> 15036.26 | D12: 15036.26 | E12: 15036.26 | F12: 15036.26 | G12: 15036.26 | H12: 9736.26 | I12: 15036.26 | J12: 15036.26 | K12: 15036.26 | L12: 15036.26 | M12: 9736.26 | N12: 30702.48788 | O12: 18460.06 | P12: 18410.06 | Q12: 18410.06 | R12: 18410.06 | S12: 18410.06 | T12: 13110.06 | U12: 18410.06 | V12: 18410.06 | W12: 18410.06 | X12: 18410.06 | Y12: 13110.06
A13: Gastos Financieros | B13: ='AMORTIZACION DE CREDITO'!E16 -> 190.3011838 | C13: ='AMORTIZACION DE CREDITO'!E17 -> 182.7978881 | D13: ='AMORTIZACION DE CREDITO'!E18 -> 175.2588371 | E13: ='AMORTIZACION DE CREDITO'!E19 -> 167.6838606 | F13: ='AMORTIZACION DE CREDITO'!E20 -> 160.0727872 | G13: ='AMORTIZACION DE CREDITO'!E21 -> 152.4254451 | H13: ='AMORTIZACION DE CREDITO'!E22 -> 144.7416614 | I13: ='AMORTIZACION DE CREDITO'!E23 -> 137.0212624 | J13: ='AMORTIZACION DE CREDITO'!E24 -> 129.2640736 | K13: ='AMORTIZACION DE CREDITO'!E25 -> 121.4699198 | L13: ='AMORTIZACION DE CREDITO'!E26 -> 113.6386247 | M13: ='AMORTIZACION DE CREDITO'!E27 -> 105.7700115 | N13: ='AMORTIZACION DE CREDITO'!E28 -> 97.86390215 | O13: ='AMORTIZACION DE CREDITO'!E29 -> 89.92011813 | P13: ='AMORTIZACION DE CREDITO'!E30 -> 81.93847986 | Q13: ='AMORTIZACION DE CREDITO'!E31 -> 73.91880696 | R13: ='AMORTIZACION DE CREDITO'!E32 -> 65.86091818 | S13: ='AMORTIZACION DE CREDITO'!E33 -> 57.76463141 | T13: ='AMORTIZACION DE CREDITO'!E34 -> 49.62976368 | U13: ='AMORTIZACION DE CREDITO'!E35 -> 41.45613114 | V13: ='AMORTIZACION DE CREDITO'!E36 -> 33.24354907 | W13: ='AMORTIZACION DE CREDITO'!E37 -> 24.99183185 | X13: ='AMORTIZACION DE CREDITO'!E38 -> 16.700793 | Y13: ='AMORTIZACION DE CREDITO'!E39 -> 8.370245139
A14: Depreciación equipo | B14: ='PRESUPUESTO DE GASTOS'!B31 -> 942.6666667 | C14: ='PRESUPUESTO DE GASTOS'!C31 -> 942.6666667 | D14: ='PRESUPUESTO DE GASTOS'!D31 -> 942.6666667 | E14: ='PRESUPUESTO DE GASTOS'!E31 -> 942.6666667 | F14: ='PRESUPUESTO DE GASTOS'!F31 -> 942.6666667 | G14: ='PRESUPUESTO DE GASTOS'!G31 -> 942.6666667 | H14: ='PRESUPUESTO DE GASTOS'!H31 -> 942.6666667 | I14: ='PRESUPUESTO DE GASTOS'!I31 -> 942.6666667 | J14: ='PRESUPUESTO DE GASTOS'!J31 -> 942.6666667 | K14: ='PRESUPUESTO DE GASTOS'!K31 -> 942.6666667 | L14: ='PRESUPUESTO DE GASTOS'!L31 -> 942.6666667 | M14: ='PRESUPUESTO DE GASTOS'!M31 -> 942.6666667 | N14: ='PRESUPUESTO DE GASTOS'!N31 -> 942.6666667 | O14: ='PRESUPUESTO DE GASTOS'!O31 -> 942.6666667 | P14: ='PRESUPUESTO DE GASTOS'!P31 -> 942.6666667 | Q14: ='PRESUPUESTO DE GASTOS'!Q31 -> 942.6666667 | R14: ='PRESUPUESTO DE GASTOS'!R31 -> 942.6666667 | S14: ='PRESUPUESTO DE GASTOS'!S31 -> 942.6666667 | T14: ='PRESUPUESTO DE GASTOS'!T31 -> 942.6666667 | U14: ='PRESUPUESTO DE GASTOS'!U31 -> 942.6666667 | V14: ='PRESUPUESTO DE GASTOS'!V31 -> 942.6666667 | W14: ='PRESUPUESTO DE GASTOS'!W31 -> 942.6666667 | X14: ='PRESUPUESTO DE GASTOS'!X31 -> 942.6666667 | Y14: ='PRESUPUESTO DE GASTOS'!Y31 -> 942.6666667
A15: E. UTILIDAD ANTES DE IMPUESTOS | B15: =+B12-B13-B14 -> 23072.38161 | C15: 13910.79545 | D15: 13918.3345 | E15: 13925.90947 | F15: 13933.52055 | G15: 13941.16789 | H15: 8648.851672 | I15: 13956.57207 | J15: 13964.32926 | K15: 13972.12341 | L15: 13979.95471 | M15: 8687.823322 | N15: 29661.95731 | O15: 17427.47322 | P15: 17385.45485 | Q15: 17393.47453 | R15: 17401.53242 | S15: 17409.6287 | T15: 12117.76357 | U15: 17425.9372 | V15: 17434.14978 | W15: 17442.4015 | X15: 17450.69254 | Y15: 12159.02309
A16: Impuesto a la Renta | B16: =IF(B15>1,B15*0.3,0) -> 6921.714482 | C16: 4173.238634 | D16: 4175.500349 | E16: 4177.772842 | F16: 4180.056164 | G16: 4182.350366 | H16: 2594.655502 | I16: 4186.971621 | J16: 4189.298778 | K16: 4191.637024 | L16: 4193.986413 | M16: 2606.346997 | N16: 8898.587192 | O16: 5228.241965 | P16: 5215.636456 | Q16: 5218.042358 | R16: 5220.459725 | S16: 5222.888611 | T16: 3635.329071 | U16: 5227.781161 | V16: 5230.244935 | W16: 5232.72045 | X16: 5235.207762 | Y16: 3647.706926
A17: UTILIDAD NETA | B17: =B15-B16 -> 16150.66712 | C17: 9737.556812 | D17: 9742.834147 | E17: 9748.136631 | F17: 9753.464382 | G17: 9758.817522 | H17: 6054.19617 | I17: 9769.60045 | J17: 9775.030482 | K17: 9780.486389 | L17: 9785.968296 | M17: 6081.476325 | N17: 20763.37011 | O17: 12199.23125 | P17: 12169.8184 | Q17: 12175.43217 | R17: 12181.07269 | S17: 12186.74009 | T17: 8482.434499 | U17: 12198.15604 | V17: 12203.90485 | W17: 12209.68105 | X17: 12215.48478 | Y17: 8511.316162
A19: RENTABILIDAD DE VENTAS ((UTILIDAD NETA/INGRESOS)*100) | B19: =B17/B4*100 -> 48.5067481 | C19: 43.08653457 | D19: 43.10988561 | E19: 43.13334792 | F19: 43.15692205 | G19: 43.1806085 | H19: 26.78847863 | I19: 43.22832057 | J19: 43.25234726 | K19: 43.27648845 | L19: 43.30074467 | M19: 26.90918728 | N19: 54.22651564 | O19: 46.93817334 | P19: 46.82500345 | Q19: 46.84660319 | R19: 46.86830585 | S19: 46.89011193 | T19: 32.63730088 | U19: 46.93403633 | V19: 46.95615563 | W19: 46.97838034 | X19: 47.00071096 | Y19: 32.74842694
B38: 6548.33 | C38: 9074.69 | D38: 11573.45 | E38: 10052.23 | F38: 8507.76 | G38: 10897.5 | H38: 13280.56 | I38: 11682.79

Sheet PRINCIPALES RATIOS
A1: RATIOS FINANCIEROS
A3: CUENTAS DE LOS ESTADOS FINANCIEROS DE DAY SPA
A4: ABREV | B4: PRINCIPALES CTAS | C4: 1ER TRIMESTRE | D4: 2DO TRIMESTRE | E4: 3ER TRIMESTRE | F4: 4TO TRIMESTRE | G4: 5TO TRIMESTRE | H4: 6TO TRIMESTRE | I4: 7MO TRIMESTRE | J4: 8VO TRIMESTRE
A5: AC | B5: Activo Corriente | C5: ='BALANCE GENERAL'!D9 -> 50238.13237 | D5: ='BALANCE GENERAL'!E9 -> 40534.25732 | E5: ='BALANCE GENERAL'!F9 -> 34384.25732 | F5: ='BALANCE GENERAL'!G9 -> 34384.25732 | G5: ='BALANCE GENERAL'!H9 -> 64145.30701 | H5: ='BALANCE GENERAL'!I9 -> 51187.87569 | I5: ='BALANCE GENERAL'!J9 -> 45037.87569 | J5: ='BALANCE GENERAL'!K9 -> 45037.87569
A6: PC | B6: Pasivo Corriente | C6: ='BALANCE GENERAL'!D21 -> 20016.74073 | D6: ='BALANCE GENERAL'!E21 -> 17354.64245 | E6: ='BALANCE GENERAL'!F21 -> 15854.54408 | F6: ='BALANCE GENERAL'!G21 -> 15945.73705 | G6: ='BALANCE GENERAL'!H21 -> 24367.38829 | H6: ='BALANCE GENERAL'!I21 -> 20758.49151 | I6: ='BALANCE GENERAL'!J21 -> 19263.6709 | J6: ='BALANCE GENERAL'!K21 -> 19360.21744
A7: Exit | B7: Existencias | C7: ='BALANCE GENERAL'!D8 -> 158.122493 | D7: ='BALANCE GENERAL'!E8 -> 158.122493 | E7: ='BALANCE GENERAL'!F8 -> 158.122493 | F7: ='BALANCE GENERAL'!G8 -> 158.122493 | G7: ='BALANCE GENERAL'!H8 -> 181.840867 | H7: ='BALANCE GENERAL'!I8 -> 181.840867 | I7: ='BALANCE GENERAL'!J8 -> 181.840867 | J7: ='BALANCE GENERAL'!K8 -> 181.840867
A8: CyB | B8: Caja y Bancos | C8: ='BALANCE GENERAL'!D6 -> 46155.22428 | D8: ='BALANCE GENERAL'!E6 -> 36986.13483 | E8: ='BALANCE GENERAL'!F6 -> 30836.13483 | F8: ='BALANCE GENERAL'!G6 -> 30836.13483 | G8: ='BALANCE GENERAL'!H6 -> 59449.9627 | H8: ='BALANCE GENERAL'!I6 -> 47107.53483 | I8: ='BALANCE GENERAL'!J6 -> 40957.53483 | J8: ='BALANCE GENERAL'!K6 -> 40957.53483
A9: Patri | B9: Patrimonio | C9: ='BALANCE GENERAL'!D30 -> 50631.05808 | D9: ='BALANCE GENERAL'!E30 -> 79891.47662 | E9: ='BALANCE GENERAL'!F30 -> 105490.3037 | F9: ='BALANCE GENERAL'!G30 -> 131138.2347 | G9: ='BALANCE GENERAL'!H30 -> 176270.6545 | H9: ='BALANCE GENERAL'!I30 -> 212813.8994 | I9: ='BALANCE GENERAL'!J30 -> 245698.3948 | J9: ='BALANCE GENERAL'!K30 -> 278634.8768
A10: PNC | B10: Pasivo No Corriente | C10: 0 | D10: 0 | E10: 0 | F10: 0 | G10: 0 | H10: 0 | I10: 0 | J10: 0
A11: UN | B11: Utilidad Neta | C11: ='BALANCE GENERAL'!D28 -> 35631.05808 | D11: ='BALANCE GENERAL'!E28 -> 29260.41853 | E11: ='BALANCE GENERAL'!F28 -> 25598.8271 | F11: ='BALANCE GENERAL'!G28 -> 25647.93101 | G11: ='BALANCE GENERAL'!H28 -> 45132.41976 | H11: ='BALANCE GENERAL'!I28 -> 36543.24495 | I11: ='BALANCE GENERAL'!J28 -> 32884.49539 | J11: ='BALANCE GENERAL'!K28 -> 32936.48199
A12: TA | B12: Total Activo | C12: ='BALANCE GENERAL'!D15 -> 94102.46571 | D12: ='BALANCE GENERAL'!E15 -> 84398.59065 | E12: ='BALANCE GENERAL'!F15 -> 78248.59065 | F12: ='BALANCE GENERAL'!G15 -> 78248.59065 | G12: ='BALANCE GENERAL'!H15 -> 108009.6403 | H12: ='BALANCE GENERAL'!I15 -> 95052.20903 | I12: ='BALANCE GENERAL'!J15 -> 88902.20903 | J12: ='BALANCE GENERAL'!K15 -> 88902.20903
A13: IME | B13: Inmueble Maquinaria y Eq | C13: ='BALANCE GENERAL'!D11 -> 43409 | D13: ='BALANCE GENERAL'!E11 -> 43409 | E13: ='BALANCE GENERAL'!F11 -> 43409 | F13: ='BALANCE GENERAL'!G11 -> 43409 | G13: ='BALANCE GENERAL'!H11 -> 43409 | H13: ='BALANCE GENERAL'!I11 -> 43409 | I13: ='BALANCE GENERAL'!J11 -> 43409 | J13: ='BALANCE GENERAL'!K11 -> 43409
A14: TP | B14: Total Pasivo | C14: ='BALANCE GENERAL'!D25 -> 55205.51013 | D14: ='BALANCE GENERAL'!E25 -> 47728.94877 | E14: ='BALANCE GENERAL'!F25 -> 41345.23222 | F14: ='BALANCE GENERAL'!G25 -> 36482.65858 | G14: ='BALANCE GENERAL'!H25 -> 39879.38714 | H14: ='BALANCE GENERAL'!I25 -> 31173.38954 | I14: ='BALANCE GENERAL'!J25 -> 24508.2532 | J14: ='BALANCE GENERAL'!K25 -> 19360.21744
A15: UB | B15: Utilidad Bruta | C15: ='ESTADO DE GANACIAS Y PERDIDAS'!B15+'ESTADO DE GANACIAS Y PERDIDAS'!C15+'ESTADO DE GANACIAS Y PERDIDAS'!D15 -> 50901.51155 | D15: ='ESTADO DE GANACIAS Y PERDIDAS'!E15+'ESTADO DE GANACIAS Y PERDIDAS'!F15+'ESTADO DE GANACIAS Y PERDIDAS'!G15 -> 41800.59791 | E15: ='ESTADO DE GANACIAS Y PERDIDAS'!H15+'ESTADO DE GANACIAS Y PERDIDAS'!I15+'ESTADO DE GANACIAS Y PERDIDAS'!J15 -> 36569.753 | F15: ='ESTADO DE GANACIAS Y PERDIDAS'!K15+'ESTADO DE GANACIAS Y PERDIDAS'!L15+'ESTADO DE GANACIAS Y PERDIDAS'!M15 -> 36639.90144 | G15: ='ESTADO DE GANACIAS Y PERDIDAS'!N15+'ESTADO DE GANACIAS Y PERDIDAS'!O15+'ESTADO DE GANACIAS Y PERDIDAS'!P15 -> 64474.88538 | H15: ='ESTADO DE GANACIAS Y PERDIDAS'!Q15+'ESTADO DE GANACIAS Y PERDIDAS'!R15+'ESTADO DE GANACIAS Y PERDIDAS'!S15 -> 52204.63564 | I15: ='ESTADO DE GANACIAS Y PERDIDAS'!T15+'ESTADO DE GANACIAS Y PERDIDAS'!U15+'ESTADO DE GANACIAS Y PERDIDAS'!V15 -> 46977.85056 | J15: ='ESTADO DE GANACIAS Y PERDIDAS'!W15+'ESTADO DE GANACIAS Y PERDIDAS'!X15+'ESTADO DE GANACIAS Y PERDIDAS'!Y15 -> 47052.11713
A16: VN | B16: Ventas Netas | C16: ='ESTADO DE GANACIAS Y PERDIDAS'!B4+'ESTADO DE GANACIAS Y PERDIDAS'!C4+'ESTADO DE GANACIAS Y PERDIDAS'!D4 -> 78495.71195 | D16: ='ESTADO DE GANACIAS Y PERDIDAS'!E4+'ESTADO DE GANACIAS Y PERDIDAS'!F4+'ESTADO DE GANACIAS Y PERDIDAS'!G4 -> 67800 | E16: ='ESTADO DE GANACIAS Y PERDIDAS'!H4+'ESTADO DE GANACIAS Y PERDIDAS'!I4+'ESTADO DE GANACIAS Y PERDIDAS'!J4 -> 67800 | F16: ='ESTADO DE GANACIAS Y PERDIDAS'!K4+'ESTADO DE GANACIAS Y PERDIDAS'!L4+'ESTADO DE GANACIAS Y PERDIDAS'!M4 -> 67800 | G16: ='ESTADO DE GANACIAS Y PERDIDAS'!N4+'ESTADO DE GANACIAS Y PERDIDAS'!O4+'ESTADO DE GANACIAS Y PERDIDAS'!P4 -> 90270.06874 | H16: ='ESTADO DE GANACIAS Y PERDIDAS'!Q4+'ESTADO DE GANACIAS Y PERDIDAS'!R4+'ESTADO DE GANACIAS Y PERDIDAS'!S4 -> 77970 | I16: ='ESTADO DE GANACIAS Y PERDIDAS'!T4+'ESTADO DE GANACIAS Y PERDIDAS'!U4+'ESTADO DE GANACIAS Y PERDIDAS'!V4 -> 77970 | J16: ='ESTADO DE GANACIAS Y PERDIDAS'!W4+'ESTADO DE GANACIAS Y PERDIDAS'!X4+'ESTADO DE GANACIAS Y PERDIDAS'!Y4 -> 77970
A17: CPCC | B17: Cuentas por Cobrar Comerciales | C17: 0 | D17: 0 | E17: 0 | F17: 0 | G17: 0 | H17: 0 | I17: 0 | J17: 0
A18: CV | B18: Costo de Ventas | C18: ='ESTADO DE GANACIAS Y PERDIDAS'!B5+'ESTADO DE GANACIAS Y PERDIDAS'!C5+'ESTADO DE GANACIAS Y PERDIDAS'!D5 -> 19038.34249 | D18: ='ESTADO DE GANACIAS Y PERDIDAS'!E5+'ESTADO DE GANACIAS Y PERDIDAS'!F5+'ESTADO DE GANACIAS Y PERDIDAS'!G5 -> 17511.72 | E18: ='ESTADO DE GANACIAS Y PERDIDAS'!H5+'ESTADO DE GANACIAS Y PERDIDAS'!I5+'ESTADO DE GANACIAS Y PERDIDAS'!J5 -> 22811.72 | F18: ='ESTADO DE GANACIAS Y PERDIDAS'!K5+'ESTADO DE GANACIAS Y PERDIDAS'!L5+'ESTADO DE GANACIAS Y PERDIDAS'!M5 -> 22811.72 | G18: ='ESTADO DE GANACIAS Y PERDIDAS'!N5+'ESTADO DE GANACIAS Y PERDIDAS'!O5+'ESTADO DE GANACIAS Y PERDIDAS'!P5 -> 17517.96087 | H18: ='ESTADO DE GANACIAS Y PERDIDAS'!Q5+'ESTADO DE GANACIAS Y PERDIDAS'!R5+'ESTADO DE GANACIAS Y PERDIDAS'!S5 -> 17560.32 | I18: ='ESTADO DE GANACIAS Y PERDIDAS'!T5+'ESTADO DE GANACIAS Y PERDIDAS'!U5+'ESTADO DE GANACIAS Y PERDIDAS'!V5 -> 22860.32 | J18: ='ESTADO DE GANACIAS Y PERDIDAS'!W5+'ESTADO DE GANACIAS Y PERDIDAS'!X5+'ESTADO DE GANACIAS Y PERDIDAS'!Y5 -> 22860.32
A19: AF | B19: Activo fijo | C19: ='BALANCE GENERAL'!D11 -> 43409 | D19: ='BALANCE GENERAL'!E11 -> 43409 | E19: ='BALANCE GENERAL'!F11 -> 43409 | F19: ='BALANCE GENERAL'!G11 -> 43409 | G19: ='BALANCE GENERAL'!H11 -> 43409 | H19: ='BALANCE GENERAL'!I11 -> 43409 | I19: ='BALANCE GENERAL'!J11 -> 43409 | J19: ='BALANCE GENERAL'!K11 -> 43409
A20: UAI | B20: Utilidad antes de los impuestos | C20: =C11 -> 35631.05808 | D20: =D11 -> 29260.41853 | E20: 25598.8271 | F20: 25647.93101 | G20: 45132.41976 | H20: 36543.24495 | I20: 32884.49539 | J20: 32936.48199
A21: GF | B21: Gastos financieros | C21: ='FLUJO DE CAJA ECON FINANCI'!C15+'FLUJO DE CAJA ECON FINANCI'!D15+'FLUJO DE CAJA ECON FINANCI'!E15 -> 548.357909 | D21: ='FLUJO DE CAJA ECON FINANCI'!F15+'FLUJO DE CAJA ECON FINANCI'!G15+'FLUJO DE CAJA ECON FINANCI'!H15 -> 480.1820929 | E21: ='FLUJO DE CAJA ECON FINANCI'!I15+'FLUJO DE CAJA ECON FINANCI'!J15+'FLUJO DE CAJA ECON FINANCI'!K15 -> 411.0269974 | F21: ='FLUJO DE CAJA ECON FINANCI'!L15 -> 121.4699198 | G21: 0 | H21: 0 | I21: 0 | J21: 0
A22: GO | B22: Gastos operacionales | C22: ='ESTADO DE GANACIAS Y PERDIDAS'!B10+'ESTADO DE GANACIAS Y PERDIDAS'!B11+'ESTADO DE GANACIAS Y PERDIDAS'!C10+'ESTADO DE GANACIAS Y PERDIDAS'!C11+'ESTADO DE GANACIAS Y PERDIDAS'!D10+'ESTADO DE GANACIAS Y PERDIDAS'!D11 -> 5179.5 | D22: =C22 -> 5179.5 | E22: =D22 -> 5179.5 | F22: =E22 -> 5179.5 | G22: =C22 -> 5179.5 | H22: =D22 -> 5179.5 | I22: =E22 -> 5179.5 | J22: =F22 -> 5179.5
A23: CS | B23: Capital social | C23: ='BALANCE GENERAL'!D27 -> 15000 | D23: ='BALANCE GENERAL'!E27 -> 15000 | E23: ='BALANCE GENERAL'!F27 -> 15000 | F23: ='BALANCE GENERAL'!G27 -> 15000 | G23: ='BALANCE GENERAL'!H27 -> 15000 | H23: ='BALANCE GENERAL'!I27 -> 15000 | I23: ='BALANCE GENERAL'!J27 -> 15000 | J23: ='BALANCE GENERAL'!K27 -> 15000
B26: 1. RATIOS DE LIQUIDEZ | C26: 1ER TRIMESTRE | D26: 2DO TRIMESTRE | E26: 3ER TRIMESTRE | F26: 4TO TRIMESTRE | G26: 5TO TRIMESTRE | H26: 6TO TRIMESTRE | I26: 7MO TRIMESTRE | J26: 8VO TRIMESTRE
B27: Liquidez General (AC/PC) | C27: =C5/C6 -> 2.50980582 | D27: =D5/D6 -> 2.33564347 | E27: 2.168732015 | F27: 2.156329131 | G27: 2.63242438 | H27: 2.465876466 | I27: 2.337969535 | J27: 2.326310426
A28: UNIDADES MONETARIAS | B28: Prueba Acida ( (AC-EXIS)/PC) | C28: =(C5-C7)/C6 -> 2.501906307 | D28: =(D5-D7)/D6 -> 2.32653222 | E28: 2.158758691 | F28: 2.146412845 | G28: 2.624961912 | H28: 2.457116636 | I28: 2.32852996 | J28: 2.316917925
B29: Prueba Defensiva (CB/PC) | C29: =C8/C6 -> 2.305831149 | D29: =D8/D6 -> 2.131195438 | E29: 1.944939866 | F29: 1.933816839 | G29: 2.439734698 | H29: 2.269313972 | I29: 2.126154202 | J29: 2.115551385
B30: Capital de Trabajo (AC-PC) | C30: =C5-C6 -> 30221.39164 | D30: =D5-D6 -> 23179.61487 | E30: 18529.71324 | F30: 18438.52027 | G30: 39777.91872 | H30: 30429.38418 | I30: 25774.2048 | J30: 25677.65825
B32: 2. RATIOS DE GESTION O ACTIVIDAD | C32: 1ER TRIMESTRE | D32: 2DO TRIMESTRE | E32: 3ER TRIMESTRE | F32: 4TO TRIMESTRE | G32: 5TO TRIMESTRE | H32: 6TO TRIMESTRE | I32: 7MO TRIMESTRE | J32: 8VO TRIMESTRE
B33: Rotacion de Inmueble Maquinaria y Equipo | C33: =C16/C13 -> 1.808281968 | D33: =D16/D13 -> 1.561888088 | E33: 1.561888088 | F33: 1.561888088 | G33: 2.079524263 | H33: 1.796171301 | I33: =I16/I13 -> 1.796171301 | J33: 1.796171301
A34: VECES | B34: Rotacion de existencias | C34: =C18/C7 -> 120.4024938 | D34: 110.7478112 | E34: 144.2661291 | F34: 144.2661291 | G34: 96.33676497 | H34: 96.56971114 | I34: 125.7160746 | J34: 125.7160746
B35: Rotacion de caja y bancos | C35: =C8/C16*360 -> 211.6788335 | D35: 196.3865566 | E35: 163.7316893 | F35: 163.7316893 | G35: 237.0884045 | H35: 217.5030465 | I35: =I8/I16*360 -> 189.1075098 | J35: =J8/J16*360 -> 189.1075098
B36: Rotacion de activos totales | C36: =C16/C12 -> 0.8341514897 | D36: =D16/D12 -> 0.8033309499 | E36: 0.86646928 | F36: 0.86646928 | G36: 0.835759368 | H36: 0.8202860386 | I36: 0.8770310755 | J36: 0.8770310755
B37: Rotacion de activo fijo | C37: =C16/C13 -> 1.808281968 | D37: =D16/D13 -> 1.561888088 | E37: 1.561888088 | F37: 1.561888088 | G37: 2.079524263 | H37: 1.796171301 | I37: 1.796171301 | J37: 1.796171301
B39: 3. RATIOS DE SOLVENCIA O APALANCAMIENTO | C39: 1ER TRIMESTRE | D39: 2DO TRIMESTRE | E39: 3ER TRIMESTRE | F39: 4TO TRIMESTRE | G39: 5TO TRIMESTRE | H39: 6TO TRIMESTRE | I39: 7MO TRIMESTRE | J39: 8VO TRIMESTRE
B40: Estructura de capital(Pasivo total/Patrimonio) | C40: =C14/C9 -> 1.090348735 | D40: =D14/D9 -> 0.5974222883 | E40: 0.3919339576 | F40: 0.2782000128 | G40: 0.2262395136 | H40: 0.1464819245 | I40: 0.09974934194 | J40: 0.06948239095
A41: PORCENTAJE | B41: Endeudamiento total | C41: =C14/C12 -> 0.5866531734 | D41: =D14/D12 -> 0.565518315 | E41: 0.5283830913 | F41: 0.4662404559 | G41: 0.3692206271 | H41: 0.3279607056 | I41: 0.275676538 | J41: 0.2177698131
B43: 4. RATIOS DE RENTABILIDAD | C43: 1ER TRIMESTRE | D43: 2DO TRIMESTRE | E43: 3ER TRIMESTRE | F43: 4TO TRIMESTRE | G43: 5TO TRIMESTRE | H43: 6TO TRIMESTRE | I43: 7MO TRIMESTRE | J43: 8VO TRIMESTRE
A44: PORCENTAJE | B44: Rentabilidad sobre la inversion | C44: =C11/C12 -> 0.3786410676 | D44: =D11/D12 -> 0.3466932126 | E44: 0.3271474526 | F44: 0.3277749899 | G44: 0.4178554768 | H44: 0.3844544522 | I44: 0.3698951438 | J44: =J11/J12 -> 0.3704799054 | L44: =J44*100 -> 37.04799054
B45: Rentabilidad sobre el patrimonio | C45: =C11/C9 -> 0.703739156 | D45: =D11/D9 -> 0.3662520681 | E45: 0.2426652138 | F45: 0.1955793523 | G45: 0.2560404617 | H45: 0.1717145593 | I45: 0.1338409045 | J45: 0.118206602
B46: Rentabilidad sobre ventas | C46: =C11/C16 -> 0.4539236246 | D46: 0.4315695949 | E46: 0.3775638216 | F46: 0.378288068 | G46: 0.4999710357 | H46: 0.4686834032 | I46: 0.4217583095 | J46: 0.4224250608
B47: Margen comercial | C47: =(C16-C18)/C16 -> 0.7574600953 | D47: 0.7417150442 | E47: 0.6635439528 | F47: 0.6635439528 | G47: 0.8059383236 | H47: 0.7747810696 | I47: =(I16-I18)/I16 -> 0.7068062075 | J47: =(J16-J18)/J16 -> 0.7068062075

Sheet CUADROS DE RATIOS

Sheet ENCUESTA
A1: 1. ¿Usted tuvo alguna dolencia muscular o alguna discapacidad temporal? | K1: 13.¿Al momento de elegir un centro de fisioterapia y rehabilitación física, que aspectos tendría en cuenta?
B3: SI | C3: 226 | D3: =(C3/C5) -> 0.6848484848 | M3: SEGURIIDAD | N3: 39 | O3: =N3/N9 -> 0.1181818182
B4: NO | C4: =330-C3 -> 104 | D4: =C4/C5 -> 0.3151515152 | M4: CONFIABILIDAD | N4: 20 | O4: =N4/N9 -> 0.06060606061
C5: =SUM(C3:C4) -> 330 | D5: =SUM(D3:D4) -> 1 | M5: UBICACIÓN | N5: 56 | O5: =N5/N9 -> 0.1696969697
M6: BUEN TRATO | N6: 84 | O6: =N6/N9 -> 0.2545454545
M7: PERSONAL | N7: 95 | O7: =N7/N9 -> 0.2878787879
M8: INSTALACIONES | N8: 36 | O8: =N8/N9 -> 0.1090909091
N9: =SUM(N3:N8) -> 330 | O9: =SUM(O3:O8) -> 1
A20: 2. ¿Tiene usted parientes que tengan alguna discapacidad o con alguna molestia muscular?
B22: SI | C22: 123 | D22: =(C22/C24) -> 0.3727272727
B23: NO | C23: =330-C22 -> 207 | D23: =C23/C24 -> 0.6272727273 | K23: 14. ¿En qué horario le gustaría que se prestara el servicio?
C24: =SUM(C22:C23) -> 330 | D24: =SUM(D22:D23) -> 1
L25: 7:00 am – 5:00 pm | M25: 56 | N25: =M25/M29 -> 0.1696969697
L26: 8:00 am – 7:00 pm | M26: 173 | N26: =M26/M29 -> 0.5242424242
L27: 7:00 am – 12:00 m | M27: 49 | N27: =M27/M29 -> 0.1484848485
L28: 9:00 am – 8:00 pm | M28: 52 | N28: =M28/M29 -> 0.1575757576
M29: =SUM(M25:M28) -> 330 | N29: =SUM(N25:N28) -> 1
A39: 3. ¿Actualmente están siendo tratados en un centro especializado o fueron tratados?
B43: SI | C43: 104 | D43: =(C43/C45) -> 0.3151515152
B44: NO | C44: =330-C43 -> 226 | D44: =C44/C45 -> 0.6848484848
C45: =SUM(C43:C44) -> 330 | D45: =SUM(D43:D44) -> 1
K50: 15. ¿Cuánto está dispuesto a pagar por el servicio?
K53: Entre s/.30.00 y S/. 60.00 | L53: 91 | M53: =L53/L57 -> 0.2757575758
K54: Entre S/. 60.00 y S/.90.00 | L54: 178 | M54: =L54/L57 -> 0.5393939394
K55: Entre S/. 90.00 y S/. 100.00 | L55: 56 | M55: =L55/L57 -> 0.1696969697
K56: Entre S/.100.00 y S/. 130.00 | L56: 5 | M56: =L56/L57 -> 0.01515151515
L57: =SUM(L53:L56) -> 330 | M57: =SUM(M53:M56) -> 1
A63: 4. ¿Le gustaría o le hubiera gustado hacer ver o tratar en un centro especializado en fisioterapia o rehabilitación física?
B65: SI | C65: 271 | D65: =(C65/C67) -> 0.8212121212
B66: NO | C66: =330-C65 -> 59 | D66: =C66/C67 -> 0.1787878788
C67: =SUM(C65:C66) -> 330 | D67: =SUM(D65:D66) -> 1
A83: 5. ¿Le gustaría que en la ciudad de ilo se cree un centro de fisioterapia y rehabilitación física nuevo e innovador donde cuando usted trabaje pueda dejar a sus hijos con cuidados especiales?
A85: SI | B85: 258 | C85: =(B85/B87) -> 0.7818181818
A86: NO | B86: =330-B85 -> 72 | C86: =B86/B87 -> 0.2181818182
B87: =SUM(B85:B86) -> 330 | C87: =SUM(C85:C86) -> 1
K90: 16.¿De los siguientes servicios le gustaría que especialistas vengan continuamente en campañas hechas por el centro de rehabilitación?
L92: SI | M92: 254 | N92: =M92/M94 -> 0.8466666667
L93: NO | M93: =300-M92 -> 46 | N93: =M93/M94 -> 0.1533333333
M94: =SUM(M92:M93) -> 300 | N94: =SUM(N92:N93) -> 1
A102: 6. ¿utilizaria estos servicios?
B104: SI | C104: 286 | D104: =(C104/C106) -> 0.8666666667
B105: NO | C105: =330-C104 -> 44 | D105: =C105/C106 -> 0.1333333333
C106: =SUM(C104:C105) -> 330 | D106: =SUM(D104:D105) -> 1
A121: 7. Si usted pudiera elegir la ubicación del centro de fisioterapia y rehabilitación física, ¿Cuál de las siguientes alternativas preferiría?
B124: PAMPA INALAMBRICA | C124: 86 | D124: =(C124/C127) -> 0.2606060606
B125: PUERTO | C125: 165 | D125: =C125/C127 -> 0.5
B126: CIUDAD NUEVA | C126: 79 | D126: =C126/C127 -> 0.2393939394
C127: =SUM(C124:C126) -> 330 | D127: =SUM(D124:D126) -> 1
A148: 8. ¿Sabe usted o conoce de un Centro de rehabilitacion fisica privada en la ciudad de Ilo ?
B151: SI | C151: 138 | D151: =(C151/C153) -> 0.4181818182
B152: NO | C152: =330-C151 -> 192 | D152: =C152/C153 -> 0.5818181818
C153: =SUM(C151:C152) -> 330
A169: 9. ¿Se siente satisfecho con los servicios brindados en Essalud, SIS o el servicio de una institución privada en sus servicios de fisioterapia o rehabilitación física?
B171: SI | C171: 93 | D171: =C171/$C$173 -> 0.2818181818
B172: NO | C172: =330-C171 -> 237 | D172: =C172/$C$173 -> 0.7181818182
C173: =SUM(C171:C172) -> 330 | D173: =SUM(D171:D172) -> 1
A190: 10. ¿Entre cuánto tiempo fue tratado su discapacidad o molestias musculares?
B193: 1 mes – 2 meses | C193: 129 | D193: =C193/$C$196 -> 0.3909090909
B194: 2 meses – a mas. | C194: 43 | D194: =C194/$C$196 -> 0.1303030303
B195: NO FUE TRATADO | C195: 158 | D195: =C195/$C$196 -> 0.4787878788
C196: =SUM(C193:C195) -> 330 | D196: =SUM(D193:D195) -> 1
A211: 11.¿Cuenta con alguien que cuide de sus hijos o algun familiar que tienen alguna discapacidad mientras usted trabaja?
B213: NO LO TIENE | C213: 261 | D213: =(C213/C215) -> 0.7909090909
B214: NO | C214: =330-C213 -> 69 | D214: =C214/C215 -> 0.2090909091
C215: =SUM(C213:C214) -> 330 | D215: =SUM(D213:D214) -> 1
A233: 12. ¿Conoce el tratamiento que les dan cuando tiene alguna dolencia muscular o alguna discapacidad?
B236: SI | C236: 217 | D236: =(C236/C238) -> 0.6575757576
B237: NO | C237: =330-C236 -> 113 | D237: =C237/C238 -> 0.3424242424
C238: =SUM(C236:C237) -> 330 | D238: =SUM(D236:D237) -> 1

Sheet MUESTRA
G4: CLASE | I4: % | K4: PEA (DE ILO PROVINCIA) | M4: =J17 -> 25192.944
G5: A | H5: RICOS | I5: 2.7 | K5: CLASE A Y B % | L5: =I5+I6 -> 53.3 | M5: =(M4*L5)/100 -> 13427.83915
G6: B | H6: CLASE MEDIA | I6: 50.6 | K6: N° MIEMBROS (PEA) X FAMILIA | L6: 2 | M6: =M5/L6 -> 6713.919576 | N6: N
G7: C | H7: VULNERABLES | I7: 33.6
G8: D | H8: POBRES | I8: 13.1
B10: N= | C10: =B36 -> 49986
B11: p= | C11: =B36/L48 -> 0.683018146 | I11: PEA POR EDADES | J11: % | K11: demanda potencia | L11: Q = n x q | M11: =M6*R37 -> 18784.82719
B12: q= | C12: =1-C11 -> 0.316981854 | E12: n = | F12: =((C14^2)*(C11*C12*C10)) -> 41574.513 | I12: 20-35 | J12: 0.228 | L12: AL MES | M12: =M11/4 -> 4696.206797
B13: E= | C13: 0.05 | F13: =((C13^2)*(C10-1)+(C14^2)*(C11*C12)) -> 125.7942231 | I13: 36-45 | J13: 0.108
B14: Z= | C14: 1.96 | I14: 46-70 | J14: 0.168
J15: =SUM(J12:J14) -> 0.504
E16: n= | F16: =F12/F13 -> 330.4962022 | G16: encuestas
I17: PEA | J17: =C10*J15 -> 25192.944
L20: CONSUMO PER CAPITA
A21: MERCADO OBJETIVO
A22: EDAD | B22: POBLACION-2016 | L22: % | M22: N° ENCUEST | N22: PROMEDIO
A23: 18 | B23: 1049 | K23: molestias mosculares o familiares con alguna discapacidad | L23: =6800%/100 -> 0.68 | M23: =$F$16*L23 -> 224.7374175 | N23: =$J$17*L23 -> 17131.20192
A24: 19 | B24: 1051 | K24: NUNCA TUVO MOLESTIAS | L24: =3200%/100 -> 0.32 | M24: =$F$16*L24 -> 105.7587847 | N24: =$J$17*L24 -> 8061.74208
A25: 20-24 | B25: 5350 | L25: =SUM(L23:L24) -> 1 | M25: 330.4962022
A26: 25-29 | B26: 5773
A27: 30-34 | B27: 5972
A28: 35-39 | B28: 6211 | K28: tratados | L28: =3200%/100 -> 0.32 | M28: =$F$16*L28 -> 105.7587847 | N28: =$N$23*L28 -> 5481.984614
A29: 40-44 | B29: 5766 | K29: no tratados | L29: =6800%/100 -> 0.68 | M29: =$F$16*L29 -> 224.7374175 | N29: =$N$23*L29 -> 11649.21731
A30: 45-49 | B30: 5260 | L30: =SUM(L28:L29) -> 1 | M30: =SUM(M28:M29) -> 330.4962022 | P30: NO TRATADOS | R30: =N29 -> 11649.21731
A31: 50-54 | B31: 4362 | P31: POBLACION INSATISFECHA | R31: =N34*L35 -> 1105.168098
A32: 55-59 | B32: 3442 | R32: =SUM(R30:R31) -> 12754.3854
A33: 60-64 | B33: 2548
A34: 65-69 | B34: 1922 | K34: poblacion satisfecha | L34: =2800%/100 -> 0.28 | M34: =$F$16*L34 -> 92.53893661 | N34: =$N$28*L34 -> 1534.955692 | P34: UTILIZARIA NUESTROS SERVICIOS | R34: =R32*L39 -> 11096.3153 | T34: ESENARIO NORMAL | V34: MARGEN DE ERROR
A35: 70-74 | B35: 1280 | K35: poblacion insatisfecha | L35: =7200%/100 -> 0.72 | M35: =$F$16*L35 -> 237.9572656 | N35: =$N$28*L35 -> 3947.028922 | P35: AL MES | R35: =R34/12 -> 924.6929418 | T35: =R35*60% -> 554.8157651 | V35: =T35*0.05 -> 27.74078825
A36: TOTAL | B36: =SUM(B23:B35) -> 49986 | L36: =SUM(L34:L35) -> 1 | M36: =$F$16*L36 -> 330.4962022
P37: q= CONX MES /N ENCU | R37: =R35/M36 -> 2.797892792 | S37: Q | T37: =T35-V35 -> 527.0749768
K39: utilizaria nuestros servicios | L39: =8700%/100 -> 0.87 | M39: =$F$16*L39 -> 287.5316959
K40: no utilizaria nuestros servicos | L40: =1300%/100 -> 0.13 | M40: =$F$16*L40 -> 42.96450628
L41: =SUM(L39:L40) -> 1 | M41: =SUM(M39:M40) -> 330.4962022
A43: EDAD | B43: PORCENTAJE | P43: PROGRAMA DE REHABILITACION CARDIACA
A44: 18 | B44: =(B23/$L$47)*100% -> 0.03577884648 | I44: POBLACION TOTAL PROYECTADA DE ILO | P44: PROGRAMA DE PREVENCION CARDIOVASCULAR: PRIM. Y SEC.
A45: 19 | B45: 0.03584706163 | I45: PROYECCION ANUAL | J45: 2014 | K45: 2015 | L45: 2016 | M45: 2017 | P45: FISIOTERARIA EN SALUD OCUPACIONAL
A46: 20-24 | B46: 0.1824755278 | I46: M.NIETO | J46: 81691 | K46: 83039 | L46: 84409 | M46: 85802 | P46: REHABILITACION DEPORTIVA.
A47: 25-29 | B47: 0.1969030322 | I47: S.CERRO | J47: 28275 | K47: 28792 | L47: 29319 | M47: 29856 | P47: PROGRAMA DE FISIOTERAPIA
A48: 30-34 | B48: 0.2036904396 | I48: ILO | J48: 70981 | K48: 72075 | L48: 73184 | M48: 74312 | P48: TRATAMIENTO DE FISIOTERAPIA INTEGRAL.
A49: 35-39 | B49: 0.2118421501 | I49: TOTAL | J49: =SUM(J46:J48) -> 180947 | K49: =SUM(K46:K48) -> 183906 | L49: =SUM(L46:L48) -> 186912 | M49: =SUM(M46:M48) -> 189970 | P49: REHABILITACIÓN CON HIDROTERAPIA
A50: 40-44 | B50: 0.1966642791 | P50: REHABILITACIÓN PACIENTES QUEMADOS
A51: 45-49 | B51: 0.179405846 | P51: TERAPIA PSICOMOTRIZ PARA NIÑOS
A52: 50-54 | B52: 0.1487772434
A53: 55-59 | B53: 0.1173982742
A54: 60-64 | B54: 0.08690610185
A55: 65-69 | B55: 0.06555475971
A56: 70-74 | B56: 0.04365769637

Sheet ENTREVISTA
A3: ¿Cuántos pacientes con lesiones atiende aproximadamente al día?
B5: 0-10 | C5: 1 | D5: =C5/$C$8 -> 0.1
B6: 10 A 20 | C6: 3 | D6: =C6/$C$8 -> 0.3
B7: 20 A 30 | C7: 6 | D7: 0.6
C8: =SUM(C5:C7) -> 10 | D8: =SUM(D5:D7) -> 1
A10: ¿Cuáles son las 5 patologías y/o traumas más comunes que atiende en consulta?
A11: Siendo 1 la de mayor frecuencia y 3 la de menor. | K11: Muestra total | L11: % | M11: % | N11: %
A12: 1 | B12: Lesión Deportiva | E12: alta | F12: 7 | G12: media | H12: 3 | I12: baja | J12: 0 | K12: =SUM(F12,H12,J12) -> 10 | L12: =F12/K12 -> 0.7 | M12: =H12/K12 -> 0.3 | N12: =J12/K12 -> 0 | O12: =SUM(L12:N12) -> 1
A13: 2 | B13: Lesión Laboral | E13: alta | F13: 5 | G13: media | H13: 4 | I13: baja | J13: 1 | K13: =SUM(F13,H13,J13) -> 10 | L13: =F13/K13 -> 0.5 | M13: =H13/K13 -> 0.4 | N13: =J13/K13 -> 0.1 | O13: =SUM(L13:N13) -> 1
A14: 3 | B14: Postquirúrgico | E14: alta | F14: 4 | G14: media | H14: 4 | I14: baja | J14: 2 | K14: 10 | L14: 0.4 | M14: 0.4 | N14: 0.2 | O14: 1
A15: 4 | B15: Dolor repentino | E15: alta | F15: 8 | G15: media | H15: 2 | I15: baja | J15: 0 | K15: 10 | L15: 0.8 | M15: 0.2 | N15: 0 | O15: 1
A16: 5 | B16: Dolor cardiovascular | E16: alta | F16: 3 | G16: media | H16: 2 | I16: baja | J16: 5 | K16: 10 | L16: 0.3 | M16: 0.2 | N16: 0.5 | O16: 1
A18: ¿de los servicio propuestos cuales cree que tendria mas acogida según su experiencia
A19: “FISIOKINE ofreciera? Siendo 1 la de mayor frecuencia y 3 la de menor.
B21: PROGRAMA DE REHABILITACION CARDIACA | G21: alta | H21: 2 | I21: media | J21: 4 | K21: baja | L21: 4 | M21: =SUM(H21,J21,L21) -> 10
B22: PROGRAMA DE PREVENCION CARDIOVASCULAR: PRIM. Y SEC. | G22: alta | H22: 3 | I22: media | J22: 5 | K22: baja | L22: 2 | M22: =SUM(H22,J22,L22) -> 10
B23: FISIOTERARIA EN SALUD OCUPACIONAL | G23: alta | H23: 5 | I23: media | J23: 5 | K23: baja | L23: 0 | M23: 10
B24: REHABILITACION DEPORTIVA. | G24: alta | H24: 8 | I24: media | J24: 2 | K24: baja | L24: 0 | M24: 10
B25: PROGRAMA DE FISIOTERAPIA | G25: alta | H25: 7 | I25: media | J25: 2 | K25: baja | L25: 1 | M25: 10
B26: TRATAMIENTO DE FISIOTERAPIA INTEGRAL. | G26: alta | H26: 6 | I26: media | J26: 3 | K26: baja | L26: 1 | M26: 10
B27: REHABILITACIÓN CON HIDROTERAPIA | G27: alta | H27: 4 | I27: media | J27: 5 | K27: baja | L27: 1 | M27: 10
B28: REHABILITACIÓN PACIENTES QUEMADOS | G28: alta | H28: 3 | I28: media | J28: 4 | K28: baja | L28: 3 | M28: 10
B29: TERAPIA PSICOMOTRIZ PARA NIÑOS | G29: alta | H29: 3 | I29: media | J29: 5 | K29: baja | L29: 2 | M29: 10
H30: =SUM(H21:H29) -> 41 | J30: =SUM(J21:J29) -> 35 | L30: =SUM(L21:L29) -> 14
G31: participacion | H31: =((H21/$H$30)*100)/100 -> 0.0487804878
G32: esperada | H32: =((H22/$H$30)*100)/100 -> 0.07317073171
H33: 0.1219512195
H34: 0.1951219512
H35: 0.1707317073
H36: 0.1463414634
H37: 0.09756097561
H38: 0.07317073171
H39: 0.07317073171
H40: 1
